Service Area,Service Division,Expense Type,Expense Code,Detailed Expense Type,Payment Date,Transaction Number,Amount Exc VAT,Supplier Name
Resources BK0010,Legal & Democratic Services,Supplies and Services,338042,Services,01/04/2022,3986809-117612,"5,420.00",11KBW LTD.
Adult and Health Services,Public Health CC0450,Third Party Payments,460803,Contract Payments,01/04/2022,3986811-INV-1423,"28,175.06",ABL HEALTH LTD.
Dedicated Schools Grant BG0015,DSG High Needs Block,Supplies and Services,384302,Miscellaneous Expenses,01/04/2022,3986815-BASI10,"8,000.00",ADVANCE LEARNING PARTNERSHIP.
Dedicated Schools Grant BG0015,DSG High Needs Block,Supplies and Services,384302,Miscellaneous Expenses,01/04/2022,3986816-PASI221,"3,000.00",ADVANCE LEARNING PARTNERSHIP.
Children and Young Peoples Services,Head of Early Help Inclusion & Vulnerable Children.,Supplies and Services,384700,Miscellaneous Expenses,01/04/2022,3986814-CAS-03-2022-187,700.00,ADVANCE LEARNING PARTNERSHIP.
Children and Young Peoples Services,Head of Early Help Inclusion & Vulnerable Children.,Supplies and Services,384700,Miscellaneous Expenses,01/04/2022,3986817-CAS-03-2022-186,700.00,ADVANCE LEARNING PARTNERSHIP.
Neighbourhoods and Climate Change,Technical Services CM0300,Supplies and Services,304221,Equipment and Materials,01/04/2022,3986819-32789629,"1,016.26",AGGREGATE INDUSTRIES UK LTD.
Neighbourhoods and Climate Change,Technical Services CM0300,Supplies and Services,304221,Equipment and Materials,01/04/2022,3986819-32795938,"1,191.94",AGGREGATE INDUSTRIES UK LTD.
Adult and Health Services,Head of Adults,Supplies and Services,304259,Equipment and Materials,01/04/2022,3986821-174406,"2,369.00",ALBANY OFFICE EQUIPMENT (WHOLESALE) LTD.
Children and Young Peoples Services,Head of Early Help Inclusion & Vulnerable Children.,Supplies and Services,308011,Furniture,01/04/2022,3986821-174358,645.00,ALBANY OFFICE EQUIPMENT (WHOLESALE) LTD.
Children and Young Peoples Services,Head of Early Help Inclusion & Vulnerable Children.,Supplies and Services,308011,Furniture,01/04/2022,3986821-174395,"1,634.00",ALBANY OFFICE EQUIPMENT (WHOLESALE) LTD.
Children and Young Peoples Services,Head of Early Help Inclusion & Vulnerable Children.,Supplies and Services,308011,Furniture,01/04/2022,3986821-174396,"1,634.00",ALBANY OFFICE EQUIPMENT (WHOLESALE) LTD.
Regeneration Economy and Growth,Culture Sport and Tourism,Supplies and Services,338099,Services,01/04/2022,3986822-9725,"28,350.00",ALLIANCE LEISURE SERVICES LTD.
Adult and Health Services,Head of Adults,Third Party Payments,472101,Purchase of Care,01/04/2022,3986823-I-22-2975593.,"5,876.64",ALLIED HEALTH-SERVICES LTD T/A ALLIED HEALTHCARE.
Adult and Health Services,Head of Adults,Third Party Payments,472101,Purchase of Care,01/04/2022,3986823-I-22-3135874.,"7,092.64",ALLIED HEALTH-SERVICES LTD T/A ALLIED HEALTHCARE.
Adult and Health Services,Head of Adults,Third Party Payments,472101,Purchase of Care,01/04/2022,3986823-I-22-3215926.,"5,876.64",ALLIED HEALTH-SERVICES LTD T/A ALLIED HEALTHCARE.
Resources BK0010,Digital Services,Supplies and Services,304252,Equipment and Materials,01/04/2022,3986824-11222,"2,995.00",ALPHATEC 2000 LTD.
Neighbourhoods and Climate Change,Environmental Services,Supplies and Services,338066,Services,01/04/2022,3986830-BURSARYAPRIL22,638.32,ANNA HOLLIDAY (NATURE RESTORATION TRAINEE).
Regeneration Economy and Growth,Corporate Property and Land,Third Party Payments,430100,Rendered by Private Contractors,01/04/2022,3986832-5274,"4,950.00",APEX ROOFING SPECIALISTS LTD.
Resources - C A C,LCTSS,Third Party Payments,440070,Other third party payments E440,01/04/2022,3986839-RES-04-2022-032A,"1,857.00",BEARPARK PARISH COUNCIL.
Regeneration Economy and Growth,Corporate Property and Land,Third Party Payments,430100,Rendered by Private Contractors,01/04/2022,3986841-SI-7013,"3,786.00",BELL CONTROL SOLUTIONS LTD.
Resources - C A C,LCTSS,Third Party Payments,440070,Other third party payments E440,01/04/2022,3986843-RES-04-2022-005A,"5,771.00",BELMONT PARISH COUNCIL.
Adult and Health Services,Head of Adults,Supplies and Services,384616,Miscellaneous Expenses,01/04/2022,3986844-2/2122/DEALO,698.49,BERNICIA GROUP LTD.*
Adult and Health Services,Head of Adults,Supplies and Services,384616,Miscellaneous Expenses,01/04/2022,3986844-8/2122/RUSHG,931.32,BERNICIA GROUP LTD.*
Adult and Health Services,Head of Adults,Third Party Payments,478151,Purchase of Care,01/04/2022,3986844-06/2021/MULB3,580.96,BERNICIA GROUP LTD.*
Adult and Health Services,Head of Adults,Transport,230005,Contract Hire,01/04/2022,3986848-0531,"2,515.00",BIRDS TAXIS LTD.
Resources - C A C,LCTSS,Third Party Payments,440070,Other third party payments E440,01/04/2022,3986849-RES-04-2022-060A,"8,654.00",BISHOP AUCKLAND TOWN COUNCIL.
Dedicated Schools Grant BG0015,DSG High Needs Block,Supplies and Services,384302,Miscellaneous Expenses,01/04/2022,3986850-BBSI29,"4,000.00",BISHOP CHADWICK CATHOLIC EDUCATION TRUST (NSCET).
Children and Young Peoples Services,Head of Early Help Inclusion & Vulnerable Children.,Supplies and Services,384700,Miscellaneous Expenses,01/04/2022,3986851-CAS-03-2022-181,700.00,BISHOP CHADWICK CATHOLIC EDUCATION TRUST (NSCET).
Children and Young Peoples Services,Head of Early Help Inclusion & Vulnerable Children.,Supplies and Services,384700,Miscellaneous Expenses,01/04/2022,3986852-CAS-03-2022-184,700.00,BISHOP CHADWICK CATHOLIC EDUCATION TRUST (NSCET).
Children and Young Peoples Services,Head of Early Help Inclusion & Vulnerable Children.,Supplies and Services,384700,Miscellaneous Expenses,01/04/2022,3986853-CAS-03-2022-180,700.00,BISHOP CHADWICK CATHOLIC EDUCATION TRUST (NSCET).
Dedicated Schools Grant BG0015,DSG High Needs Block,Supplies and Services,384302,Miscellaneous Expenses,01/04/2022,3986854-SJSI595,"8,000.00",BISHOP HOGARTH CATHOLIC EDUCATION TRUST.
Dedicated Schools Grant BG0015,DSG High Needs Block,Supplies and Services,384302,Miscellaneous Expenses,01/04/2022,3986854-SJSI596,"3,000.00",BISHOP HOGARTH CATHOLIC EDUCATION TRUST.
Resources - C A C,LCTSS,Third Party Payments,440070,Other third party payments E440,01/04/2022,3986855-RES-04-2022-107A,"2,708.00",BISHOP MIDDLEHAM PARISH COUNCIL.
Children and Young Peoples Services,Head of Early Help Inclusion & Vulnerable Children.,Supplies and Services,384700,Miscellaneous Expenses,01/04/2022,3986856-CAS-03-2022-183,700.00,BISHOP WILKINSON CE TRUST.
Children and Young Peoples Services,Head of Early Help Inclusion & Vulnerable Children.,Supplies and Services,384700,Miscellaneous Expenses,01/04/2022,3986858-CAS-03-2022-179,700.00,BISHOP WILKINSON CE TRUST.
Children and Young Peoples Services,Head of Education and Skills,Transport,230034,Contract Hire,01/04/2022,3986859-39790,"1,277.70",BLUELINE SOUTH INCORPORATING NAVIGATION TAXIS T/A BLUELINE TAXIS.
Children and Young Peoples Services,Head of Education and Skills,Transport,230034,Contract Hire,01/04/2022,3986859-39994,"1,566.51",BLUELINE SOUTH INCORPORATING NAVIGATION TAXIS T/A BLUELINE TAXIS.
Children and Young Peoples Services,Head of Education and Skills,Transport,230007,Contract Hire,01/04/2022,3986859-39820,"1,613.80",BLUELINE SOUTH INCORPORATING NAVIGATION TAXIS T/A BLUELINE TAXIS.
Children and Young Peoples Services,Head of Education and Skills,Transport,230009,Contract Hire,01/04/2022,3986859-37148,581.59,BLUELINE SOUTH INCORPORATING NAVIGATION TAXIS T/A BLUELINE TAXIS.
Resources - C A C,LCTSS,Third Party Payments,440070,Other third party payments E440,01/04/2022,3986861-RES-04-2022-062A,"1,200.00",BOURNMOOR PARISH COUNCIL.
Regeneration Economy and Growth,Transport and Contracted Services,Supplies and Services,384197,Miscellaneous Expenses,01/04/2022,3986863-0029444,530.25,BOX-IT NORTH.
Resources - C A C,LCTSS,Third Party Payments,440070,Other third party payments E440,01/04/2022,3986870-RES-04-2022-051A,573.00,BURNHOPE PARISH COUNCIL.
Neighbourhoods and Climate Change,Environmental Services,Third Party Payments,430100,Rendered by Private Contractors,01/04/2022,3986872-248IN300322-177DCW,700.00,CAMPBELL SINCLAIR T/A NORTH EASTERN TREE COMPANY.
Resources - C A C,LCTSS,Third Party Payments,440070,Other third party payments E440,01/04/2022,3986880-RES-04-2022-106A,"6,787.00",CHARTER TRUSTEES FOR THE CITY OF DURHAM.
Children and Young Peoples Services,Head of Education and Skills,Transport,230006,Contract Hire,01/04/2022,3986881-1578,888.00,CHEVRON TAXIS LTD.
Resources BK0010,Internal Audit and Insurance,Supplies and Services,338066,Services,01/04/2022,3986883-3163782,"5,850.00",CIPFA BUSINESS LTD.
Resources BK0010,Transactional & Customer Services,Supplies and Services,304040,Equipment and Materials,01/04/2022,3986888-C/BN239588,"4,578.10",CIVICA UK LTD.
Resources - C A C,LCTSS,Third Party Payments,440070,Other third party payments E440,01/04/2022,3986892-RES-04-2022-056A,"3,571.00",COCKFIELD PARISH COUNCIL.
Resources - C A C,LCTSS,Third Party Payments,440070,Other third party payments E440,01/04/2022,3986897-RES-04-2022-019A,"23,985.00",CORNFORTH PARISH COUNCIL.
Resources - C A C,LCTSS,Third Party Payments,440070,Other third party payments E440,01/04/2022,3986898-RES-04-2022-042A,916.00,CORNSAY PARISH COUNCIL.
Regeneration Economy and Growth,Business Durham CL0850,Supplies and Services,368008,Incentives to Industrialists,01/04/2022,3986901-RED-03-2022-285,"4,081.14",COUNTY DURHAM ENGINEERING & MANUFACTURING NETWORK LTD (CDEMN).
Children and Young Peoples Services,Head of Early Help Inclusion & Vulnerable Children.,Supplies and Services,384899,Miscellaneous Expenses,01/04/2022,3986902-THK066,560.00,COUNTY DURHAM FURNITURE HELP SCHEME (CDFHS).
Children and Young Peoples Services,Head of Early Help Inclusion & Vulnerable Children.,Supplies and Services,384700,Miscellaneous Expenses,01/04/2022,3986902-WSFS2028,"12,258.00",COUNTY DURHAM FURNITURE HELP SCHEME (CDFHS).
Regeneration Economy and Growth,Culture Sport and Tourism,Supplies and Services,384700,Miscellaneous Expenses,01/04/2022,3986903-SI-4260,"3,169.92",COUNTY DURHAM SPORT.
Children and Young Peoples Services,Head of Education and Skills,Transport,230008,Contract Hire,01/04/2022,3986906-112275,"1,617.00",CROFT BUSINESS SERVICES LTD T/A CROFT TRAVEL.
Resources - C A C,LCTSS,Third Party Payments,440070,Other third party payments E440,01/04/2022,3986907-RES-04-2022-067A,"1,398.00",CROXDALE & HETT PARISH COUNCIL.
Adult and Health Services,Head of Adults,Third Party Payments,478151,Purchase of Care,01/04/2022,3986913-INV-1104,"1,708.80",DEACONSTAR LTD.
Adult and Health Services,Head of Adults,Third Party Payments,478151,Purchase of Care,01/04/2022,3986913-INV-1105,"2,502.72",DEACONSTAR LTD.
Adult and Health Services,Head of Adults,Third Party Payments,478151,Purchase of Care,01/04/2022,3986913-INV-1106,"2,160.00",DEACONSTAR LTD.
Adult and Health Services,Head of Adults,Supplies and Services,338042,Services,01/04/2022,3986916-354558/INVGHE334,750.00,DERE STREET BARRISTERS.
Adult and Health Services,Head of Adults,Supplies and Services,338042,Services,01/04/2022,3986916-363049/INVJJS173,720.00,DERE STREET BARRISTERS.
Adult and Health Services,Head of Adults,Supplies and Services,338042,Services,01/04/2022,3986916-365816/INVJEB34,"3,900.00",DERE STREET BARRISTERS.
Adult and Health Services,Head of Adults,Supplies and Services,338042,Services,01/04/2022,3986916-368283/INVEMC483,"2,400.00",DERE STREET BARRISTERS.
Adult and Health Services,Head of Adults,Supplies and Services,338042,Services,01/04/2022,3986916-370218/INVJJS172,570.00,DERE STREET BARRISTERS.
Adult and Health Services,Head of Adults,Supplies and Services,338042,Services,01/04/2022,3986916-371407/INVAD0116,750.00,DERE STREET BARRISTERS.
Adult and Health Services,Head of Adults,Supplies and Services,338042,Services,01/04/2022,3986916-371478/INVJEB35,800.00,DERE STREET BARRISTERS.
Neighbourhoods and Climate Change,Community Protection,Supplies and Services,338099,Services,01/04/2022,3986919-032022,"1,205.94",DURHAM ST NICHOLAS PCC.
Neighbourhoods and Climate Change,Community Protection,Supplies and Services,338099,Services,01/04/2022,3986919-HIRE30322,539.98,DURHAM ST NICHOLAS PCC.
Resources - C A C,LCTSS,Third Party Payments,440070,Other third party payments E440,01/04/2022,3986920-RES-04-2022-018A,"30,695.00",EASINGTON COLLIERY PARISH COUNCIL.
Children and Young Peoples Services,Head of Early Help Inclusion & Vulnerable Children.,Supplies and Services,384700,Miscellaneous Expenses,01/04/2022,3986924-CAS-03-2022-217,600.00,EDEN LEARNING TRUST T/A CHILTON ACADEMY.
Dedicated Schools Grant BG0015,Dedicated Schools Grant CG0050,Central Support and Other Recharges,615208,Support Services,01/04/2022,3986925-RES-03-2022-122,861.18,EDEN LEARNING TRUST T/A WOODHAM ACADEMY.
Resources - C A C,LCTSS,Third Party Payments,440070,Other third party payments E440,01/04/2022,3986926-RES-04-2022-069A,"1,257.00",EDMONDSLEY PARISH COUNCIL.
Regeneration Economy and Growth,Corporate Property and Land,Supplies and Services,304221,Equipment and Materials,01/04/2022,3986927-059-297987,"1,575.00",EDMUNDSON ELECTRICAL LTD.
Resources - C A C,LCTSS,Third Party Payments,440070,Other third party payments E440,01/04/2022,3986933-RES-04-2022-071A,"1,422.00",ELDON PARISH COUNCIL.
Regeneration Economy and Growth,Business Durham CL0850,Supplies and Services,338066,Services,01/04/2022,3986934-INV-16734,"2,250.00",ENTREPRENEURS FORUM.
Regeneration Economy and Growth,Business Durham CL0850,Supplies and Services,338066,Services,01/04/2022,3986934-INV-16735,"4,500.00",ENTREPRENEURS FORUM.
Resources - C A C,LCTSS,Third Party Payments,440070,Other third party payments E440,01/04/2022,3986935-RES-04-2022-028A,"1,040.00",ESH PARISH COUNCIL.
Resources - C A C,LCTSS,Third Party Payments,440070,Other third party payments E440,01/04/2022,3986936-RES-04-2022-024A,566.00,ETHERLEY PARISH COUNCIL.
Resources - C A C,LCTSS,Third Party Payments,440070,Other third party payments E440,01/04/2022,3986939-RES-04-2022-072A,"2,657.00",EVENWOOD & BARONY PARISH COUNCIL.
Dedicated Schools Grant BG0015,DSG High Needs Block,Supplies and Services,384302,Miscellaneous Expenses,01/04/2022,3986941-0000000760,"7,722.56",EXCEL ACADEMY PARTNERSHIP T/A FRAMWELLGATE SCHOOL DURHAM.
Dedicated Schools Grant BG0015,DSG High Needs Block,Supplies and Services,384302,Miscellaneous Expenses,01/04/2022,3986941-0000000761,"2,350.00",EXCEL ACADEMY PARTNERSHIP T/A FRAMWELLGATE SCHOOL DURHAM.
Resources - C A C,LCTSS,Third Party Payments,440070,Other third party payments E440,01/04/2022,3986946-RES-04-2022-001A,"73,402.00",FERRYHILL TOWN COUNCIL.
Resources - C A C,LCTSS,Third Party Payments,440070,Other third party payments E440,01/04/2022,3986948-RES-04-2022-023A,"10,947.00",FISHBURN PARISH COUNCIL.
Children and Young Peoples Services,Head of Childrens Social Care,Supplies and Services,338044,Services,01/04/2022,3986950-84368,543.15,FORENSIC TESTING SERVICE LTD.
Resources - C A C,LCTSS,Third Party Payments,440070,Other third party payments E440,01/04/2022,3986954-RES-04-2022-039A,550.00,GAINFORD & LANGTON PARISH COUNCIL.
Children and Young Peoples Services,Head of Education and Skills,Transport,230008,Contract Hire,01/04/2022,3986956-14600,"3,121.70",GATESHEAD CENTRAL TAXIS LTD.
Neighbourhoods and Climate Change,Environmental Services,Supplies and Services,304259,Equipment and Materials,01/04/2022,3986957-9685,"2,844.33",GB SPORT & LEISURE UK LTD.
Resources - C A C,Non Distributed Costs,Supplies and Services,338059,Services,01/04/2022,3986959-P0059147,540.00,GEL LTD T/A HEALTHWORK.
Resources - C A C,LCTSS,Third Party Payments,440070,Other third party payments E440,01/04/2022,3986966-RES-04-2022-002A,"95,840.50",GREAT AYCLIFFE TOWN COUNCIL.
Resources - C A C,LCTSS,Third Party Payments,440070,Other third party payments E440,01/04/2022,3986968-RES-04-2022-074A,"3,912.00",GREATER WILLINGTON TOWN COUNCIL.
Regeneration Economy and Growth,Culture Sport and Tourism,Premises,145023,Cleaning and Domestic Supplies,01/04/2022,3986970-06/167845,"2,325.14",GREENHAM TRADING LTD.
Children and Young Peoples Services,Head of Early Help Inclusion & Vulnerable Children.,Supplies and Services,384491,Miscellaneous Expenses,01/04/2022,3986973-4100753549-300322,880.00,HAPPYTIMES DAYCARE LTD.
Children and Young Peoples Services,Head of Education and Skills,Transport,230007,Contract Hire,01/04/2022,3986976-HT578,"3,080.00",HARRY`S TAXI`S.
Resources - C A C,LCTSS,Third Party Payments,440070,Other third party payments E440,01/04/2022,3986978-RES-04-2022-048A,"8,105.00",HASWELL PARISH COUNCIL.
Neighbourhoods and Climate Change,Environmental Services,Fees,901002,Professional fees 901002,01/04/2022,3986983-24771,"1,100.00",HICKTON CONSULTANTS LIMITED.
Adult and Health Services,Head of Adults,Third Party Payments,478151,Purchase of Care,01/04/2022,3986984-HLC633,"2,949.43",HIGHLEA CARE LTD.
Adult and Health Services,Head of Adults,Third Party Payments,478151,Purchase of Care,01/04/2022,3986984-HLC634,"4,873.82",HIGHLEA CARE LTD.
Adult and Health Services,Head of Adults,Third Party Payments,478151,Purchase of Care,01/04/2022,3986984-HLC635,"2,845.80",HIGHLEA CARE LTD.
Adult and Health Services,Head of Adults,Third Party Payments,478151,Purchase of Care,01/04/2022,3986984-HLC636,"3,694.31",HIGHLEA CARE LTD.
Resources - C A C,LCTSS,Third Party Payments,440070,Other third party payments E440,01/04/2022,3986988-RES-04-2022-007A,"50,125.00",HORDEN PARISH COUNCIL.
Resources - C A C,LCTSS,Third Party Payments,440070,Other third party payments E440,01/04/2022,3986989-RES-04-2022-077A,"3,772.00",HUTTON HENRY PARISH COUNCIL.
Neighbourhoods and Climate Change,Technical Services CM0300,Third Party Payments,430128,Rendered by Private Contractors,01/04/2022,3986992-C494,"3,727.50",IAN WILSON.
Adult and Health Services,Commissioning inc Supporting People,Supplies and Services,342033,Computers and Communications,01/04/2022,3986995-2100183201,"4,549.75",INSIGHT DIRECT (UK) LTD.
Children and Young Peoples Services,Head of Childrens Social Care,Third Party Payments,460305,Contract Payments,01/04/2022,3986996-658,"8,157.68",INVESTING IN CHILDREN CIC.
Children and Young Peoples Services,Head of Early Help Inclusion & Vulnerable Children.,Supplies and Services,384199,Miscellaneous Expenses,01/04/2022,3986996-657,601.88,INVESTING IN CHILDREN CIC.
Regeneration Economy and Growth,Transport and Contracted Services,Third Party Payments,460151,Contract Payments,01/04/2022,3987001-26122,893.93,JACK COUPE & SONS LTD T/A COUPE LINE.
Children and Young Peoples Services,Head of Education and Skills,Transport,230008,Contract Hire,01/04/2022,3987003-2338,"1,553.94",JDS PRIVATE HIRE DURHAM.
Regeneration Economy and Growth,Development and Housing,Construction work A908,908105,Construction work,01/04/2022,3987005-0000083559,"6,850.00",JOHN WADE (HAULAGE) LTD.
Neighbourhoods and Climate Change,Technical Services CM0300,Supplies and Services,304221,Equipment and Materials,01/04/2022,3987009-0104/00607280,"1,897.74",JT DOVE LTD.
Neighbourhoods and Climate Change,Technical Services CM0300,Supplies and Services,304221,Equipment and Materials,01/04/2022,3987009-0303/00607281,876.60,JT DOVE LTD.
Regeneration Economy and Growth,Corporate Property and Land,Supplies and Services,304221,Equipment and Materials,01/04/2022,3987009-0213/00613269,"2,278.92",JT DOVE LTD.
Children and Young Peoples Services,Head of Education and Skills,Supplies and Services,338027,Services,01/04/2022,3987013-160222-11.,653.22,KNETIC LTD.
Resources - C A C,LCTSS,Third Party Payments,440070,Other third party payments E440,01/04/2022,3987015-RES-04-2022-025A,702.00,LANCHESTER PARISH COUNCIL.
Neighbourhoods and Climate Change,Technical Services CM0300,Third Party Payments,440999,Other third party payments E440,01/04/2022,3987023-DN004616,650.00,LIVE PROMOTIONS EVENTS LTD.
Neighbourhoods and Climate Change,Technical Services CM0300,Supplies and Services,304221,Equipment and Materials,01/04/2022,3987030-6215,"3,681.60",MAKEPEACE MOTORS.
Resources - C A C,LCTSS,Third Party Payments,440070,Other third party payments E440,01/04/2022,3987031-RES-04-2022-108A,"1,872.00",MARES SPA.
Neighbourhoods and Climate Change,Environmental Services,Cap Exp on Grants & Other Financial Assistance (REFCUS),918501,Exp assets not owned by authority,01/04/2022,3987032-1309,"46,332.00",MARSDEN AES LTD.
Neighbourhoods and Climate Change,Environmental Services,Cap Exp on Grants & Other Financial Assistance (REFCUS),918501,Exp assets not owned by authority,01/04/2022,3987032-1310,"6,800.00",MARSDEN AES LTD.
Neighbourhoods and Climate Change,Technical Services CM0300,Supplies and Services,304221,Equipment and Materials,01/04/2022,3987033-Z001224341,651.84,MARSHALLS MONO LTD.
Neighbourhoods and Climate Change,Environmental Services,Supplies and Services,384700,Miscellaneous Expenses,01/04/2022,3987037-RED-03-2022-287,"2,436.25",MD DONALD.
Resources - C A C,LCTSS,Third Party Payments,440070,Other third party payments E440,01/04/2022,3987043-RES-04-2022-031A,"23,929.50",MONK HESLEDEN PARISH COUNCIL.
Resources - C A C,LCTSS,Third Party Payments,440070,Other third party payments E440,01/04/2022,3987052-RES-04-2022-050A,"21,238.50",MURTON PARISH COUNCIL.
Neighbourhoods and Climate Change,Environmental Services,Supplies and Services,304221,Equipment and Materials,01/04/2022,3987058-065483,"1,215.00",NEW ROW FARM NURSERIES.
Children and Young Peoples Services,Head of Early Help Inclusion & Vulnerable Children.,Supplies and Services,384700,Miscellaneous Expenses,01/04/2022,3987062-CAS-03-2022-185,700.00,NORTH DURHAM ACADEMY.
Children and Young Peoples Services,Head of Education and Skills,Supplies and Services,384906,Miscellaneous Expenses,01/04/2022,3987064-CAS-03-2022-212,525.00,NORTH EAST LEARNING TRUST (NELT).
Neighbourhoods and Climate Change,Technical Services CM0300,Third Party Payments,430100,Rendered by Private Contractors,01/04/2022,3987066-DI20380676,"1,506.54",NORTHERN POWERGRID (NORTHEAST) LTD.
Children and Young Peoples Services,Head of Childrens Social Care,Premises,135005,Water Services,01/04/2022,3987067-697001861820490819,558.40,NORTHUMBRIAN WATER LTD.
Regeneration Economy and Growth,Culture Sport and Tourism,Supplies and Services,384199,Miscellaneous Expenses,01/04/2022,3987068-00019926,590.10,NSL LTD.
Neighbourhoods and Climate Change,Technical Services CM0300,Third Party Payments,430100,Rendered by Private Contractors,01/04/2022,3987069-7600,"4,994.94",NU PHALT CONTRACTING LTD.
Adult and Health Services,Head of Adults,Third Party Payments,478151,Purchase of Care,01/04/2022,3987070-42806,"1,398.72",OAKLEA TRUST.
Children and Young Peoples Services,Head of Childrens Social Care,Supplies and Services,304516,Equipment and Materials,01/04/2022,3987074-0000181702,"1,399.66",ONLINE ERGONOMICS LTD.
Regeneration Economy and Growth,Corporate Property and Land,Third Party Payments,430100,Rendered by Private Contractors,01/04/2022,3987075-10979-86,"1,134.28",OPUS BUILDING SERVICES LTD.
Neighbourhoods and Climate Change,Environmental Services,Supplies and Services,304999,Equipment and Materials,01/04/2022,3987078-1222,"1,335.50",PAUL SEEDHOUSE - FENCING & GROUNDWORKS.
Resources - C A C,LCTSS,Third Party Payments,440070,Other third party payments E440,01/04/2022,3987083-RES-04-2022-003A,"134,372.00",PETERLEE TOWN COUNCIL.
Children and Young Peoples Services,Head of Education and Skills,Transport,230034,Contract Hire,01/04/2022,3987084-46440,"1,168.12",PHOENIX TAXIS T/A PRATT`S TAXIS.
Children and Young Peoples Services,Head of Education and Skills,Transport,230007,Contract Hire,01/04/2022,3987084-46438,720.00,PHOENIX TAXIS T/A PRATT`S TAXIS.
Children and Young Peoples Services,Head of Education and Skills,Transport,230008,Contract Hire,01/04/2022,3987084-46461,"1,315.78",PHOENIX TAXIS T/A PRATT`S TAXIS.
Regeneration Economy and Growth,Business Durham CL0850,Supplies and Services,304259,Equipment and Materials,01/04/2022,3987085-68898090,580.21,PHS GROUP PLC.
Resources BK0010,Legal & Democratic Services,Supplies and Services,304259,Equipment and Materials,01/04/2022,3987089-0000442660,"1,048.95",PRESERVATION EQUIPMENT LTD.
Regeneration Economy and Growth,Culture Sport and Tourism,Supplies and Services,304259,Equipment and Materials,01/04/2022,3987094-50054,"1,040.00",R & J HILL ENGINEERING LTD.
Regeneration Economy and Growth,Transport and Contracted Services,Supplies and Services,332029,Printing Stationery and Gen Off Exps,01/04/2022,3987095-19754,"1,387.00",RADECAL SIGNS GRAPHICS & ADVERTISING.
Children and Young Peoples Services,Head of Education and Skills,Transport,230008,Contract Hire,01/04/2022,3987096-17595,691.25,RAPID MINIBUSES.
Children and Young Peoples Services,Head of Education and Skills,Transport,230008,Contract Hire,01/04/2022,3987096-17595-JULY,"1,036.00",RAPID MINIBUSES.
Children and Young Peoples Services,Head of Education and Skills,Transport,230008,Contract Hire,01/04/2022,3987096-17595-MAY20,888.75,RAPID MINIBUSES.
Children and Young Peoples Services,Head of Education and Skills,Transport,230008,Contract Hire,01/04/2022,3987097-17592,875.00,RAPID MINIBUSES.
Children and Young Peoples Services,Head of Education and Skills,Transport,230008,Contract Hire,01/04/2022,3987097-17592-JUNE,"1,750.00",RAPID MINIBUSES.
Children and Young Peoples Services,Head of Education and Skills,Transport,230008,Contract Hire,01/04/2022,3987097-17592-MAY,"1,125.00",RAPID MINIBUSES.
Children and Young Peoples Services,Head of Education and Skills,Transport,230008,Contract Hire,01/04/2022,3987097-17595-JUNE,"1,244.25",RAPID MINIBUSES.
Children and Young Peoples Services,Head of Education and Skills,Transport,230008,Contract Hire,01/04/2022,3986889-INV-072,"1,020.00",REDACTED - PAYMENT TO INDIVIDUAL
Regeneration Economy and Growth,Culture Sport and Tourism,Supplies and Services,304337,Equipment and Materials,01/04/2022,3987031-4236052107,"1,357.83",REDACTED - PAYMENT TO INDIVIDUAL
Children and Young Peoples Services,Head of Childrens Social Care,Supplies and Services,338042,Services,01/04/2022,3987041-8037,800.00,REDACTED - PAYMENT TO INDIVIDUAL
Children and Young Peoples Services,Head of Education and Skills,Transport,230034,Contract Hire,01/04/2022,3987047-INV0085,"1,320.60",REDACTED - PAYMENT TO INDIVIDUAL
Children and Young Peoples Services,Head of Education and Skills,Transport,230012,Contract Hire,01/04/2022,3987048-TNB-25,561.65,REDACTED - PAYMENT TO INDIVIDUAL
Children and Young Peoples Services,Head of Education and Skills,Transport,230003,Contract Hire,01/04/2022,3987079-2076,"2,187.00",REDACTED - PAYMENT TO INDIVIDUAL
Adult and Health Services,Head of Adults,Third Party Payments,478151,Purchase of Care,01/04/2022,3987102-CUSTLNV-00146961,"8,872.63",RICHMOND FELLOWSHIP.
Regeneration Economy and Growth,Culture Sport and Tourism,Supplies and Services,304259,Equipment and Materials,01/04/2022,3987104-SIN011476,"1,390.00",RLSS UK ENTERPRISES LTD T/A RLSS UK SHOP.
Resources - C A C,LCTSS,Third Party Payments,440070,Other third party payments E440,01/04/2022,3987111-RES-04-2022-026A,"6,381.00",SACRISTON PARISH COUNCIL.
Children and Young Peoples Services,Head of Early Help Inclusion & Vulnerable Children.,Supplies and Services,384302,Miscellaneous Expenses,01/04/2022,3987113-00042,890.00,SANDY DUFF T/A METHOD LOUNGE.
Regeneration Economy and Growth,Corporate Property and Land,Third Party Payments,430100,Rendered by Private Contractors,01/04/2022,3987116-3963,"18,598.33",SCH SITE SERVICES LTD.
Resources - C A C,LCTSS,Third Party Payments,440070,Other third party payments E440,01/04/2022,3987117-RES-04-2022-041A,"86,217.00",SEAHAM TOWN COUNCIL.
Children and Young Peoples Services,Head of Education and Skills,Third Party Payments,440999,Other third party payments E440,01/04/2022,3987121-KICK5044718INVOICE000678,750.00,SELF MADE STUDIOS CIC.
Children and Young Peoples Services,Head of Education and Skills,Third Party Payments,440999,Other third party payments E440,01/04/2022,3987121-KICK5044718INVOICE000681,750.00,SELF MADE STUDIOS CIC.
Resources - C A C,LCTSS,Third Party Payments,440070,Other third party payments E440,01/04/2022,3987124-RES-04-2022-029A,"2,856.00",SHERBURN VILLAGE PARISH COUNCIL.
Resources - C A C,LCTSS,Third Party Payments,440070,Other third party payments E440,01/04/2022,3987125-RES-04-2022-010A,"28,945.50",SHILDON TOWN COUNCIL.
Neighbourhoods and Climate Change,Technical Services CM0300,Stock A926,926900,Stock in hand-Inventory system,01/04/2022,3987131-661,"2,805.84",SNAPFAST LTD.
Children and Young Peoples Services,Head of Education and Skills,Supplies and Services,384199,Miscellaneous Expenses,01/04/2022,3987133-INV-4437,975.00,SOLVENDIS LTD.
Resources - C A C,LCTSS,Third Party Payments,440070,Other third party payments E440,01/04/2022,3987135-RES-04-2022-020A,"12,319.00",SOUTH HETTON PARISH COUNCIL.
Children and Young Peoples Services,Head of Education and Skills,Supplies and Services,338027,Services,01/04/2022,3987136-EPINAY-360,543.75,SOUTH TYNESIDE COUNCIL.
Regeneration Economy and Growth,Culture Sport and Tourism,Supplies and Services,304259,Equipment and Materials,01/04/2022,3987138-SI-21220358,625.00,SPORTS MAINTENANCE SERVICES LTD.
Neighbourhoods and Climate Change,Environmental Services,Supplies and Services,304259,Equipment and Materials,01/04/2022,3987140-INV-X000182,500.00,SPRYTAR LTD.
Neighbourhoods and Climate Change,Environmental Services,Supplies and Services,332029,Printing Stationery and Gen Off Exps,01/04/2022,3987140-INV-X000181,500.00,SPRYTAR LTD.
Children and Young Peoples Services,Head of Education and Skills,Supplies and Services,338094,Services,01/04/2022,3987142-1719,630.00,ST PAULS (SPENNYMOOR) CENTRE LTD.
Resources - C A C,LCTSS,Third Party Payments,440070,Other third party payments E440,01/04/2022,3987147-RES-04-2022-094A,"54,067.50",STANLEY TOWN COUNCIL.*
Regeneration Economy and Growth,Corporate Property and Land,Third Party Payments,430100,Rendered by Private Contractors,01/04/2022,3987150-0001111269,595.00,STROMA BUILT ENVIRONMENT LTD.
Children and Young Peoples Services,Head of Early Help Inclusion & Vulnerable Children.,Transport,240045,Car allowances E240,01/04/2022,3987151-11616,"1,900.38",SUPPORTIVE SRC LTD.
Regeneration Economy and Growth,Corporate Property and Land,Supplies and Services,304221,Equipment and Materials,01/04/2022,3987153-772839,640.68,T CROSSLING & CO LTD.
Children and Young Peoples Services,Head of Education and Skills,Transport,230010,Contract Hire,01/04/2022,3987156-02/2022/006,"2,443.19",TARNS TAXIS LTD.
Neighbourhoods and Climate Change,Technical Services CM0300,Fees,901004,Capital - Detailed Design,01/04/2022,3987158-15900,715.00,TEESDALE MERCURY LTD.
Children and Young Peoples Services,Head of Early Help Inclusion & Vulnerable Children.,Supplies and Services,384700,Miscellaneous Expenses,01/04/2022,3987159-CAS-03-2022-178,700.00,TEESDALE SCHOOL (FUND).*
Regeneration Economy and Growth,Culture Sport and Tourism,Supplies and Services,336005,Advertising E336,01/04/2022,3987160-6469,"4,800.00",THE CRACK LTD.
Children and Young Peoples Services,Head of Early Help Inclusion & Vulnerable Children.,Supplies and Services,384302,Miscellaneous Expenses,01/04/2022,3987162-12656,"2,900.00",THE NO WAY TRUST LTD.
Resources - C A C,LCTSS,Third Party Payments,440070,Other third party payments E440,01/04/2022,3987167-RES-04-2022-096A,"11,038.00",THORNLEY PARISH COUNCIL.
Resources - C A C,LCTSS,Third Party Payments,440070,Other third party payments E440,01/04/2022,3987169-RES-04-2022-097A,"2,457.00",TOW LAW TOWN COUNCIL.
Regeneration Economy and Growth,Corporate Property and Land,Third Party Payments,430100,Rendered by Private Contractors,01/04/2022,3987172-2107,"15,476.01",TRIDENT MAINTENANCE SERVICES LTD.
Resources - C A C,LCTSS,Third Party Payments,440070,Other third party payments E440,01/04/2022,3987173-RES-04-2022-054A,"12,399.00",TRIMDON FOUNDRY PARISH COUNCIL.
Resources - C A C,LCTSS,Third Party Payments,440070,Other third party payments E440,01/04/2022,3987174-RES-04-2022-022A,"14,173.50",TRIMDON PARISH COUNCIL.
Children and Young Peoples Services,Head of Early Help Inclusion & Vulnerable Children.,Supplies and Services,384302,Miscellaneous Expenses,01/04/2022,3987176-INUK12371,774.40,TRIPLE P UK LTD.
Regeneration Economy and Growth,Transport and Contracted Services,Third Party Payments,440999,Other third party payments E440,01/04/2022,3987178-30043299,"33,337.08",TUNSTALL HEALTHCARE (UK) LTD.
Regeneration Economy and Growth,Corporate Property and Land,Third Party Payments,430100,Rendered by Private Contractors,01/04/2022,3987180-17121,"1,971.58",TYNE TEES THERMAL LTD.
Neighbourhoods and Climate Change,Technical Services CM0300,Supplies and Services,304221,Equipment and Materials,01/04/2022,3987181-231772,"1,241.92",TYNEDALE ROADSTONE LTD.
Neighbourhoods and Climate Change,Technical Services CM0300,Supplies and Services,304221,Equipment and Materials,01/04/2022,3987181-231776,975.05,TYNEDALE ROADSTONE LTD.
Neighbourhoods and Climate Change,Technical Services CM0300,Supplies and Services,304221,Equipment and Materials,01/04/2022,3987181-231778,606.90,TYNEDALE ROADSTONE LTD.
Neighbourhoods and Climate Change,Technical Services CM0300,Supplies and Services,304221,Equipment and Materials,01/04/2022,3987181-231917,506.76,TYNEDALE ROADSTONE LTD.
Neighbourhoods and Climate Change,Technical Services CM0300,Supplies and Services,304221,Equipment and Materials,01/04/2022,3987181-231925,"1,714.00",TYNEDALE ROADSTONE LTD.
Resources - C A C,LCTSS,Third Party Payments,440070,Other third party payments E440,01/04/2022,3987183-RES-04-2022-098A,"2,070.00",URPETH PARISH COUNCIL.
Neighbourhoods and Climate Change,Technical Services CM0300,Third Party Payments,430128,Rendered by Private Contractors,01/04/2022,3987186-50484,728.00,W MARLEY AGRICULTURAL CONTRACTORS LTD.
Resources - C A C,LCTSS,Third Party Payments,440070,Other third party payments E440,01/04/2022,3987187-RES-04-2022-013A,928.00,WALDRIDGE PARISH COUNCIL.
Adult and Health Services,Head of Adults,Transport,230005,Contract Hire,01/04/2022,3987189-1294-22,"1,800.00",WAYNE`S TAXIS.
Adult and Health Services,Central/Other,Supplies and Services,338043,Services,01/04/2022,3987190-02075567,"4,538.00",WEIGHTMANS LLP.
Resources - C A C,LCTSS,Third Party Payments,440070,Other third party payments E440,01/04/2022,3987191-RES-04-2022-099A,"3,544.00",WEST AUCKLAND PARISH COUNCIL.
Resources - C A C,LCTSS,Third Party Payments,440070,Other third party payments E440,01/04/2022,3987192-RES-04-2022-100A,"3,187.00",WEST RAINTON PARISH COUNCIL.
Resources - C A C,LCTSS,Third Party Payments,440070,Other third party payments E440,01/04/2022,3987194-RES-04-2022-055A,"8,432.00",WHEATLEY HILL PARISH COUNCIL.
Neighbourhoods and Climate Change,Technical Services CM0300,Third Party Payments,430100,Rendered by Private Contractors,01/04/2022,3987198-627,"1,050.00",WHORLTON LAND SURVEYS LTD.
Resources - C A C,LCTSS,Third Party Payments,440070,Other third party payments E440,01/04/2022,3987201-RES-04-2022-044A,"3,763.00",WINGATE PARISH COUNCIL.
Resources BK0010,Legal & Democratic Services,Supplies and Services,342051,Computers and Communications,01/04/2022,3987207-17242,"12,700.00",WPC SOFTWARE LTD.
Children and Young Peoples Services,Head of Childrens Social Care,Transport,230007,Contract Hire,01/04/2022,3987210-46336,680.45,WRIXON SECURITY SERVICES LTD T/A WRIXON CARE.
Children and Young Peoples Services,Head of Early Help Inclusion & Vulnerable Children.,Supplies and Services,384199,Miscellaneous Expenses,01/04/2022,3987210-46353,546.15,WRIXON SECURITY SERVICES LTD T/A WRIXON CARE.
Neighbourhoods and Climate Change,Environmental Services,Transport,215005,Running Costs of Vehicles,01/04/2022,3987213-913955,"17,407.20",YOUR NRG LTD.
Neighbourhoods and Climate Change,Environmental Services,Transport,215005,Running Costs of Vehicles,01/04/2022,3987213-912859,"2,941.20",YOUR NRG LTD.
Neighbourhoods and Climate Change,Technical Services CM0300,Third Party Payments,430100,Rendered by Private Contractors,01/04/2022,3987215-145469124,"20,736.00",ZG LIGHTING (UK) LTD.
Neighbourhoods and Climate Change,Technical Services CM0300,Stock A926,926900,Stock in hand-Inventory system,01/04/2022,3987215-145468787,984.18,ZG LIGHTING (UK) LTD.
Neighbourhoods and Climate Change,Technical Services CM0300,Stock A926,926900,Stock in hand-Inventory system,01/04/2022,3987215-145468788,"4,428.00",ZG LIGHTING (UK) LTD.
Neighbourhoods and Climate Change,Technical Services CM0300,Stock A926,926900,Stock in hand-Inventory system,01/04/2022,3987215-145469027,"4,800.00",ZG LIGHTING (UK) LTD.
Neighbourhoods and Climate Change,Technical Services CM0300,Stock A926,926900,Stock in hand-Inventory system,01/04/2022,3987215-145469235,"8,518.98",ZG LIGHTING (UK) LTD.
Dedicated Schools Grant BG0015,DSG High Needs Block,Supplies and Services,384302,Miscellaneous Expenses,04/04/2022,3987218-WHSI46,"3,000.00",ADVANCE LEARNING PARTNERSHIP.
Neighbourhoods and Climate Change,Technical Services CM0300,Supplies and Services,304221,Equipment and Materials,04/04/2022,3987220-32802219,"1,895.34",AGGREGATE INDUSTRIES UK LTD.
Neighbourhoods and Climate Change,Technical Services CM0300,Supplies and Services,304221,Equipment and Materials,04/04/2022,3987220-32808929,"1,229.63",AGGREGATE INDUSTRIES UK LTD.
Neighbourhoods and Climate Change,Technical Services CM0300,Supplies and Services,304221,Equipment and Materials,04/04/2022,3987220-32817011,"1,697.98",AGGREGATE INDUSTRIES UK LTD.
Neighbourhoods and Climate Change,Technical Services CM0300,Supplies and Services,304221,Equipment and Materials,04/04/2022,3987220-32823233,"1,389.40",AGGREGATE INDUSTRIES UK LTD.
Neighbourhoods and Climate Change,Technical Services CM0300,Supplies and Services,304221,Equipment and Materials,04/04/2022,3987220-32829938,"1,865.59",AGGREGATE INDUSTRIES UK LTD.
Neighbourhoods and Climate Change,Technical Services CM0300,Supplies and Services,304221,Equipment and Materials,04/04/2022,3987220-32838143,933.57,AGGREGATE INDUSTRIES UK LTD.
Neighbourhoods and Climate Change,Environmental Services,Supplies and Services,338099,Services,04/04/2022,3987221-CD971293653,"2,508.00",AGROVISTA UK LTD FORMERLY MAXWELL AMENITY LTD.
Children and Young Peoples Services,Head of Early Help Inclusion & Vulnerable Children.,Supplies and Services,308011,Furniture,04/04/2022,3987223-174335,"1,155.00",ALBANY OFFICE EQUIPMENT (WHOLESALE) LTD.
Regeneration Economy and Growth,Culture Sport and Tourism,Supplies and Services,338099,Services,04/04/2022,3987224-9727,"30,000.00",ALLIANCE LEISURE SERVICES LTD.
Neighbourhoods and Climate Change,Technical Services CM0300,Third Party Payments,460224,Contract Payments,04/04/2022,3987227-22051,"427,197.65",ARM PIPETEK LTD.
Regeneration Economy and Growth,Corporate Property and Land,Third Party Payments,430100,Rendered by Private Contractors,04/04/2022,3987227-21978,600.00,ARM PIPETEK LTD.
Neighbourhoods and Climate Change,Technical Services CM0300,Supplies and Services,304221,Equipment and Materials,04/04/2022,3987235-20608810,639.93,BREEDON TRADING LTD.
Regeneration Economy and Growth,Development and Housing,Supplies and Services,338094,Services,04/04/2022,3987243-410,"2,273.31",CDC ENTERPRISE AGENCY LTD.
Regeneration Economy and Growth,Corporate Property and Land,Third Party Payments,430100,Rendered by Private Contractors,04/04/2022,3987244-676,608.40,CEILINGS DIRECT LTD.
Regeneration Economy and Growth,Culture Sport and Tourism,Supplies and Services,384199,Miscellaneous Expenses,04/04/2022,3987245-INV-0733,"4,000.00",CHANNELL EVENTS LTD.
Regeneration Economy and Growth,Transport and Contracted Services,Third Party Payments,430106,Rendered by Private Contractors,04/04/2022,3987246-1601,532.00,CHEVRON TAXIS LTD.
Resources BK0010,Transactional & Customer Services,Supplies and Services,342051,Computers and Communications,04/04/2022,3987248-C/BN238084,"6,961.88",CIVICA UK LTD.
Regeneration Economy and Growth,Corporate Property and Land,Supplies and Services,338066,Services,04/04/2022,3987254-9461,"24,605.00",COUNTERCULTURE PARTNERSHIP LLP.
Neighbourhoods and Climate Change,Partnerships & Community Engagement Div.,Supplies and Services,308011,Furniture,04/04/2022,3987255-RND0011-A,"2,908.40",COUNTY DURHAM FURNITURE HELP SCHEME (CDFHS).
Children and Young Peoples Services,Head of Early Help Inclusion & Vulnerable Children.,Supplies and Services,324500,Provisions E324,04/04/2022,3987256-24343,"14,205.80",CREATIVE MANAGEMENT SERVICES LTD.
Neighbourhoods and Climate Change,Technical Services CM0300,Third Party Payments,430127,Rendered by Private Contractors,04/04/2022,3987258-INV-0188,"1,067.50",D & L HOPPS.
Neighbourhoods and Climate Change,Environmental Services,Supplies and Services,384199,Miscellaneous Expenses,04/04/2022,3987268-220590,"3,909.92",DURHAM CATHEDRAL LTD.
Neighbourhoods and Climate Change,Community Protection,Supplies and Services,384199,Miscellaneous Expenses,04/04/2022,3987270-WIFI240322,"2,378.40",DURHAM ST NICHOLAS PCC.
Neighbourhoods and Climate Change,Environmental Services,Supplies and Services,304221,Equipment and Materials,04/04/2022,3987272-0000145061,"2,466.74",EARLEY ORNAMENTALS LTD.
Regeneration Economy and Growth,Culture Sport and Tourism,Supplies and Services,384302,Miscellaneous Expenses,04/04/2022,3987275-6102,690.00,EAST DURHAM COMMUNITY DEVELOPMENT TRUST LTD T/A EAST DURHAM TRUST.
Neighbourhoods and Climate Change,Technical Services CM0300,Supplies and Services,304221,Equipment and Materials,04/04/2022,3987292-06/168416,"1,119.48",GREENHAM TRADING LTD.
Regeneration Economy and Growth,Corporate Property and Land,Third Party Payments,430100,Rendered by Private Contractors,04/04/2022,3987294-3156/2,"50,282.89",H MALONE & SONS LTD.
Adult and Health Services,Public Health CC0450,Supplies and Services,338089,Services,04/04/2022,3987295-227,"3,600.00",HALO PROJECT.
Children and Young Peoples Services,Head of Education and Skills,Supplies and Services,352001,Conference Expenses,04/04/2022,3987304-837/22/1220,"2,250.00",HUMANKIND CHARITY.
Neighbourhoods and Climate Change,Technical Services CM0300,Supplies and Services,338066,Services,04/04/2022,3987306-SI7509562,"87,911.73",IAN FARMER ASSOCIATES (1998) LTD.
Children and Young Peoples Services,Head of Education and Skills,Supplies and Services,338035,Services,04/04/2022,3987308-805931528,710.00,INSTITUTE OF LEADERSHIP & MANAGEMENT (ILM).
Resources BK0010,Legal & Democratic Services,Construction work A908,908105,Construction work,04/04/2022,3987316-10283897,"847,767.67",KIER CONSTRUCTION LTD - SCOTLAND
Regeneration Economy and Growth,Corporate Property and Land,Third Party Payments,430100,Rendered by Private Contractors,04/04/2022,3987320-96014,975.00,LEISURETEQ.
Resources BK0010,Digital Services,Supplies and Services,332029,Printing Stationery and Gen Off Exps,04/04/2022,3987326-418295,"3,190.00",MAIL SOLUTIONS GROUP LTD.
Neighbourhoods and Climate Change,Environmental Services,Cap Exp on Grants & Other Financial Assistance (REFCUS),918501,Exp assets not owned by authority,04/04/2022,3987327-1311,"37,800.00",MARSDEN AES LTD.
Regeneration Economy and Growth,Corporate Property and Land,Supplies and Services,304221,Equipment and Materials,04/04/2022,3987331-804753,"1,029.01",NATIONWIDE CHIMNEY COMPONENTS LTD.
Regeneration Economy and Growth,Corporate Property and Land,Supplies and Services,304221,Equipment and Materials,04/04/2022,3987333-37532,"2,954.52",NE & C WINDOWS & DOORS LTD.
Regeneration Economy and Growth,Corporate Property and Land,Supplies and Services,304221,Equipment and Materials,04/04/2022,3987333-37533,"2,954.52",NE & C WINDOWS & DOORS LTD.
Regeneration Economy and Growth,Corporate Property and Land,Supplies and Services,304221,Equipment and Materials,04/04/2022,3987333-37534,"2,954.52",NE & C WINDOWS & DOORS LTD.
Dedicated Schools Grant BG0015,DSG High Needs Block,Supplies and Services,384302,Miscellaneous Expenses,04/04/2022,3987336-SI/001133,"16,587.04",NORTH EAST LEARNING TRUST (NELT).
Regeneration Economy and Growth,Transport and Contracted Services,Construction work A908,908201,Capital - Public Utilities - Electricity Services,04/04/2022,3987337-50059628,"1,720.00",NORTHERN POWERGRID (NORTHEAST) LTD.
Neighbourhoods and Climate Change,Technical Services CM0300,Stock A926,926900,Stock in hand-Inventory system,04/04/2022,3987343-XL283964,"5,650.00",PARK ELECTRICAL DISTRIBUTORS LTD.
Neighbourhoods and Climate Change,Technical Services CM0300,Stock A926,926900,Stock in hand-Inventory system,04/04/2022,3987343-XL284032,"4,760.00",PARK ELECTRICAL DISTRIBUTORS LTD.
Regeneration Economy and Growth,Business Durham CL0850,Supplies and Services,304259,Equipment and Materials,04/04/2022,3987350-68898089,580.21,PHS GROUP PLC.
Adult and Health Services,Public Health CC0450,Supplies and Services,304259,Equipment and Materials,04/04/2022,3987351-900956090,688.98,PORTAKABIN LTD.
Resources BK0010,Legal & Democratic Services,Supplies and Services,304259,Equipment and Materials,04/04/2022,3987355-0000442659,770.60,PRESERVATION EQUIPMENT LTD.
Regeneration Economy and Growth,Transport and Contracted Services,Supplies and Services,332029,Printing Stationery and Gen Off Exps,04/04/2022,3987359-19759,570.00,RADECAL SIGNS GRAPHICS & ADVERTISING.
Neighbourhoods and Climate Change,Environmental Services,Supplies and Services,384073,Miscellaneous Expenses,04/04/2022,3987361-INV-0335,846.00,REFUSE CIC.
Regeneration Economy and Growth,Business Durham CL0850,Construction work A908,908105,Construction work,04/04/2022,3987363-RCPX3546,"102,050.00",ROBERTSON CAPITAL PROJECTS.
Children and Young Peoples Services,Childrens Services Operational Support,Supplies and Services,338089,Services,04/04/2022,3987365-21/63/02,500.00,RUTH PEARSON TRAINING LTD.
Regeneration Economy and Growth,Corporate Property and Land,Third Party Payments,430100,Rendered by Private Contractors,04/04/2022,3987368-3975,"2,350.00",SCH SITE SERVICES LTD.
Adult and Health Services,Head of Adults,Third Party Payments,478151,Purchase of Care,04/04/2022,3987379-4322,"3,257.70",SOVEREIGN CARE (NORTH EAST) LTD.
Neighbourhoods and Climate Change,Environmental Services,Third Party Payments,430100,Rendered by Private Contractors,04/04/2022,3987381-0001677550,"2,000.67",SRCL LTD.
Dedicated Schools Grant BG0015,DSG High Needs Block,Supplies and Services,384302,Miscellaneous Expenses,04/04/2022,3987383-STSI153,"3,000.00",STAINDROP ACADEMY.
Regeneration Economy and Growth,Corporate Property and Land,Third Party Payments,430100,Rendered by Private Contractors,04/04/2022,3987387-180697,"2,100.13",SUPATINT LTD T/A SUPATINT WINDOW FILMS & BLINDS.
Neighbourhoods and Climate Change,Environmental Services,Third Party Payments,430100,Rendered by Private Contractors,04/04/2022,3987391-096,800.00,TELFORD`S COUNTRYSIDE & LANDSCAPE CONTRACTORS.
Regeneration Economy and Growth,Transport and Contracted Services,Supplies and Services,384199,Miscellaneous Expenses,04/04/2022,3987401-INV-0109,"3,750.00",TRAVELINE INFORMATION LTD.
Resources BK0010,Legal & Democratic Services,Supplies and Services,338042,Services,04/04/2022,3987403-297304/INVJ0532,650.00,TRINITY CHAMBERS.
Neighbourhoods and Climate Change,Technical Services CM0300,Third Party Payments,430127,Rendered by Private Contractors,04/04/2022,3987412-50522,597.50,W MARLEY AGRICULTURAL CONTRACTORS LTD.
Neighbourhoods and Climate Change,Technical Services CM0300,Supplies and Services,304221,Equipment and Materials,04/04/2022,3987413-26802,"1,782.00",WARD TIMBER LTD.
Children and Young Peoples Services,Head of Education and Skills,Transport,230005,Contract Hire,04/04/2022,3987416-17500,"1,678.00",WEARDALE MOTOR SERVICES LTD.
Children and Young Peoples Services,Head of Education and Skills,Transport,230005,Contract Hire,04/04/2022,3987416-17503,700.00,WEARDALE MOTOR SERVICES LTD.
Neighbourhoods and Climate Change,Environmental Services,Supplies and Services,384899,Miscellaneous Expenses,04/04/2022,3987417-UOTR4889412,"1,286.32",WESTERN UNION BUSINESS SOLUTIONS.
Regeneration Economy and Growth,Corporate Property and Land,Third Party Payments,430100,Rendered by Private Contractors,04/04/2022,3987420-55763,"1,950.00",WILLOWCRETE MANUFACTURING COMPANY LTD (MFG).
Regeneration Economy and Growth,Corporate Property and Land,Third Party Payments,430100,Rendered by Private Contractors,04/04/2022,3987422-53728-1,"1,270.64",XTRALITE (ROOFLIGHTS) LTD.
Neighbourhoods and Climate Change,Environmental Services,Supplies and Services,338066,Services,04/04/2022,3987424-SI104017,"2,962.12",YORKSHIRE DALES NATIONAL PARK AUTHORITY (NPA).
Regeneration Economy and Growth,Culture Sport and Tourism,Supplies and Services,384237,Miscellaneous Expenses,04/04/2022,3987425-SI-1775724,"1,186.43",YORKSHIRE PURCHASING ORGANISATION.
Neighbourhoods and Climate Change,Technical Services CM0300,Stock A926,926900,Stock in hand-Inventory system,04/04/2022,3987426-909018,599.51,YOUR NRG LTD.
Dedicated Schools Grant BG0015,DSG Early Years Block,Transfer Payments,510030,School Children,05/04/2022,3988014-30064,"20,128.78",1EXCELLENCE MULTI ACADEMY TRUST.
Dedicated Schools Grant BG0015,DSG Early Years Block,Transfer Payments,510030,School Children,05/04/2022,3988015-30016,"9,234.23",1EXCELLENCE MULTI ACADEMY TRUST.
Dedicated Schools Grant BG0015,DSG Early Years Block,Transfer Payments,510032,School Children,05/04/2022,3988021-29882,"6,399.90",ADVANCE LEARNING PARTNERSHIP.
Dedicated Schools Grant BG0015,DSG Early Years Block,Transfer Payments,510032,School Children,05/04/2022,3988022-29883,"1,599.98",ADVANCE LEARNING PARTNERSHIP.
Dedicated Schools Grant BG0015,DSG Early Years Block,Transfer Payments,510030,School Children,05/04/2022,3988021-30050,"19,348.88",ADVANCE LEARNING PARTNERSHIP.
Dedicated Schools Grant BG0015,DSG Early Years Block,Transfer Payments,510030,School Children,05/04/2022,3988022-30051,"18,279.79",ADVANCE LEARNING PARTNERSHIP.
Dedicated Schools Grant BG0015,DSG Early Years Block,Transfer Payments,510030,School Children,05/04/2022,3988023-30027,"20,422.94",ADVANCE LEARNING PARTNERSHIP.
Dedicated Schools Grant BG0015,DSG Early Years Block,Transfer Payments,510030,School Children,05/04/2022,3988024-30094,"9,674.44",ADVANCE LEARNING PARTNERSHIP.
Children and Young Peoples Services,Head of Education and Skills,Transport,230008,Contract Hire,05/04/2022,3988025-03/22,"2,806.00",ADVANCE TRAVEL.
Dedicated Schools Grant BG0015,DSG Early Years Block,Transfer Payments,510032,School Children,05/04/2022,3988026-29899,"2,311.08",ADVENTURE VALLEY DAY NURSERY LTD.
Dedicated Schools Grant BG0015,DSG Early Years Block,Transfer Payments,510030,School Children,05/04/2022,3988026-30082,"15,783.30",ADVENTURE VALLEY DAY NURSERY LTD.
Neighbourhoods and Climate Change,Technical Services CM0300,Supplies and Services,304221,Equipment and Materials,05/04/2022,3988029-CD971299878,776.35,AGROVISTA UK LTD FORMERLY SHERRIFF AMENITY.
Children and Young Peoples Services,Head of Education and Skills,Supplies and Services,308011,Furniture,05/04/2022,3988032-174360,984.00,ALBANY OFFICE EQUIPMENT (WHOLESALE) LTD.
Dedicated Schools Grant BG0015,DSG Early Years Block,Transfer Payments,510030,School Children,05/04/2022,3988053-30084,637.65,AROUND THE CLOCK CHILD-MINDER.
Regeneration Economy and Growth,Culture Sport and Tourism,Supplies and Services,338047,Services,05/04/2022,3988058-31/3/22,"12,749.35",AVALON PROMOTIONS LTD.
Dedicated Schools Grant BG0015,DSG Early Years Block,Transfer Payments,510032,School Children,05/04/2022,3988059-29906,"2,399.96",AYCLIFFE DAY NURSERY.
Dedicated Schools Grant BG0015,DSG Early Years Block,Transfer Payments,510030,School Children,05/04/2022,3988059-30090,"7,954.54",AYCLIFFE DAY NURSERY.
Children and Young Peoples Services,Head of Childrens Social Care,Supplies and Services,384500,Miscellaneous Expenses,05/04/2022,3988063-142004702,"1,869.14",BARNARDO SERVICES LTD.
Regeneration Economy and Growth,Development and Housing,Supplies and Services,384999,Miscellaneous Expenses,05/04/2022,3988065-RINV/00002563,956.18,BELIEVE HOUSING LTD.
Regeneration Economy and Growth,Corporate Property and Land,Third Party Payments,430100,Rendered by Private Contractors,05/04/2022,3988066-SI-7028,694.00,BELL CONTROL SOLUTIONS LTD.
Regeneration Economy and Growth,Transport and Contracted Services,Supplies and Services,304245,Equipment and Materials,05/04/2022,3988067-DHP0129,"1,524.25",BERNICIA GROUP LTD.*
Dedicated Schools Grant BG0015,DSG Early Years Block,Transfer Payments,510032,School Children,05/04/2022,3988072-29843,"7,999.88",BISHOP AUCKLAND COLLEGE NURSERY.
Dedicated Schools Grant BG0015,DSG Early Years Block,Transfer Payments,510030,School Children,05/04/2022,3988072-29996,"37,621.35",BISHOP AUCKLAND COLLEGE NURSERY.
Children and Young Peoples Services,Head of Education and Skills,Transfer Payments,510051,School Children,05/04/2022,3988073-AWPU-05-2021-227,"2,978.83",BISHOP BARRINGTON SCHOOL FUND.
Children and Young Peoples Services,Head of Education and Skills,Transfer Payments,510051,School Children,05/04/2022,3988073-AWPU-05-2021-235,"2,772.61",BISHOP BARRINGTON SCHOOL FUND.
Children and Young Peoples Services,Head of Education and Skills,Transfer Payments,510051,School Children,05/04/2022,3988073-AWPU-05-2021-238,"2,589.29",BISHOP BARRINGTON SCHOOL FUND.
Children and Young Peoples Services,Head of Education and Skills,Transfer Payments,510051,School Children,05/04/2022,3988073-AWPU-05-2021-245,"2,474.72",BISHOP BARRINGTON SCHOOL FUND.
Children and Young Peoples Services,Head of Education and Skills,Transfer Payments,510051,School Children,05/04/2022,3988073-AWPU-05-2021-251,"4,570.59",BISHOP BARRINGTON SCHOOL FUND.
Children and Young Peoples Services,Head of Education and Skills,Transfer Payments,510051,School Children,05/04/2022,3988073-AWPU-05-2021-255,"2,291.41",BISHOP BARRINGTON SCHOOL FUND.
Children and Young Peoples Services,Head of Education and Skills,Transfer Payments,510051,School Children,05/04/2022,3988073-AWPU-05-2021-270,"4,055.80",BISHOP BARRINGTON SCHOOL FUND.
Children and Young Peoples Services,Head of Education and Skills,Transfer Payments,510051,School Children,05/04/2022,3988073-AWPU-05-2021-271,"2,862.77",BISHOP BARRINGTON SCHOOL FUND.
Children and Young Peoples Services,Head of Education and Skills,Transfer Payments,510051,School Children,05/04/2022,3988073-AWPU-05-2021-272,"2,862.77",BISHOP BARRINGTON SCHOOL FUND.
Children and Young Peoples Services,Head of Education and Skills,Transfer Payments,510051,School Children,05/04/2022,3988073-AWPU-05-2021-277,"3,826.66",BISHOP BARRINGTON SCHOOL FUND.
Dedicated Schools Grant BG0015,DSG Early Years Block,Transfer Payments,510032,School Children,05/04/2022,3988074-29885,"9,599.85",BISHOP CHADWICK CATHOLIC EDUCATION TRUST (NSCET).
Dedicated Schools Grant BG0015,DSG Early Years Block,Transfer Payments,510030,School Children,05/04/2022,3988074-30053,"25,064.33",BISHOP CHADWICK CATHOLIC EDUCATION TRUST (NSCET).
Dedicated Schools Grant BG0015,DSG Early Years Block,Transfer Payments,510030,School Children,05/04/2022,3988075-29998,"9,674.44",BISHOP CHADWICK CATHOLIC EDUCATION TRUST (NSCET).
Dedicated Schools Grant BG0015,DSG Early Years Block,Transfer Payments,510030,School Children,05/04/2022,3988077-30213,"3,009.83",BISHOP HOGARTH CATHOLIC EDUCATION TRUST T/A ST JOSEPHS PRIMARY SCHOOL.
Dedicated Schools Grant BG0015,DSG Early Years Block,Transfer Payments,510032,School Children,05/04/2022,3988082-29890,"7,199.89",BISHOP HOGARTH CATHOLIC EDUCATION TRUST.
Dedicated Schools Grant BG0015,DSG Early Years Block,Transfer Payments,510030,School Children,05/04/2022,3988078-30215,"7,223.58",BISHOP HOGARTH CATHOLIC EDUCATION TRUST.
Dedicated Schools Grant BG0015,DSG Early Years Block,Transfer Payments,510030,School Children,05/04/2022,3988079-29999,"11,609.33",BISHOP HOGARTH CATHOLIC EDUCATION TRUST.
Dedicated Schools Grant BG0015,DSG Early Years Block,Transfer Payments,510030,School Children,05/04/2022,3988080-30061,"5,673.04",BISHOP HOGARTH CATHOLIC EDUCATION TRUST.
Dedicated Schools Grant BG0015,DSG Early Years Block,Transfer Payments,510030,School Children,05/04/2022,3988081-30212,"5,073.71",BISHOP HOGARTH CATHOLIC EDUCATION TRUST.
Dedicated Schools Grant BG0015,DSG Early Years Block,Transfer Payments,510030,School Children,05/04/2022,3988082-30062,"12,532.16",BISHOP HOGARTH CATHOLIC EDUCATION TRUST.
Dedicated Schools Grant BG0015,DSG Early Years Block,Transfer Payments,510030,School Children,05/04/2022,3988083-30214,"6,376.01",BISHOP HOGARTH CATHOLIC EDUCATION TRUST.
Dedicated Schools Grant BG0015,DSG Early Years Block,Transfer Payments,510030,School Children,05/04/2022,3988084-29997,"8,619.98",BISHOP IAN RAMSEY C OF E PRIMARY SCHOOL.
Dedicated Schools Grant BG0015,DSG Early Years Block,Transfer Payments,510030,School Children,05/04/2022,3988085-30211,"8,824.73",BISHOP WILKINSON CE TRUST.
Dedicated Schools Grant BG0015,DSG Early Years Block,Transfer Payments,510030,School Children,05/04/2022,3988086-30067,"37,189.91",BISHOP WILKINSON CE TRUST.
Dedicated Schools Grant BG0015,DSG Early Years Block,Transfer Payments,510030,School Children,05/04/2022,3988087-30063,"28,249.36",BISHOP WILKINSON CE TRUST.
Dedicated Schools Grant BG0015,DSG Early Years Block,Transfer Payments,510032,School Children,05/04/2022,3988088-29875,"11,199.83",BLUE SKY CHILDCARE.
Dedicated Schools Grant BG0015,DSG Early Years Block,Transfer Payments,510030,School Children,05/04/2022,3988088-30042,"42,997.50",BLUE SKY CHILDCARE.
Dedicated Schools Grant BG0015,DSG Early Years Block,Transfer Payments,510032,School Children,05/04/2022,3988090-29844,"1,599.98",BOWES PRE SCHOOL.
Dedicated Schools Grant BG0015,DSG Early Years Block,Transfer Payments,510030,School Children,05/04/2022,3988090-30000,"7,929.48",BOWES PRE SCHOOL.
Neighbourhoods and Climate Change,Technical Services CM0300,Supplies and Services,304221,Equipment and Materials,05/04/2022,3988092-20617118,546.00,BREEDON TRADING LTD.
Dedicated Schools Grant BG0015,DSG Early Years Block,Transfer Payments,510032,School Children,05/04/2022,3988098-29846,"3,199.95",BUDDIES CHILDCARE CENTRE.
Dedicated Schools Grant BG0015,DSG Early Years Block,Transfer Payments,510030,School Children,05/04/2022,3988098-30002,"12,393.23",BUDDIES CHILDCARE CENTRE.
Dedicated Schools Grant BG0015,DSG Early Years Block,Transfer Payments,510032,School Children,05/04/2022,3988099-29847,"16,799.74",BUSY BEARS (DURHAM) LTD.
Dedicated Schools Grant BG0015,DSG Early Years Block,Transfer Payments,510030,School Children,05/04/2022,3988099-30003,"93,920.29",BUSY BEARS (DURHAM) LTD.
Dedicated Schools Grant BG0015,DSG Early Years Block,Transfer Payments,510032,School Children,05/04/2022,3988101-29848,"10,399.84",BUSY BEES (DURHAM) LTD.
Dedicated Schools Grant BG0015,DSG Early Years Block,Transfer Payments,510030,School Children,05/04/2022,3988100-30004,"152,541.68",BUSY BEES (DURHAM) LTD.
Dedicated Schools Grant BG0015,DSG Early Years Block,Transfer Payments,510032,School Children,05/04/2022,3988102-29910,799.99,BUTTERFLIES DAY CARE.
Dedicated Schools Grant BG0015,DSG Early Years Block,Transfer Payments,510030,School Children,05/04/2022,3988102-30095,"3,530.48",BUTTERFLIES DAY CARE.
Dedicated Schools Grant BG0015,DSG Early Years Block,Transfer Payments,510032,School Children,05/04/2022,3988103-29911,"4,533.26",BYERLEY ROAD PRE SCHOOL.
Dedicated Schools Grant BG0015,DSG Early Years Block,Transfer Payments,510030,School Children,05/04/2022,3988103-30096,"3,869.78",BYERLEY ROAD PRE SCHOOL.
Adult and Health Services,Commissioning inc Supporting People,Third Party Payments,479101,Purchase of Care,05/04/2022,3988107-INV015748,"12,500.00",CAREHOME SELECTION LTD (CHS HEALTHCARE).
Adult and Health Services,Commissioning inc Supporting People,Third Party Payments,479101,Purchase of Care,05/04/2022,3988107-INV015749,"12,917.00",CAREHOME SELECTION LTD (CHS HEALTHCARE).
Adult and Health Services,Commissioning inc Supporting People,Third Party Payments,479101,Purchase of Care,05/04/2022,3988107-INV015764,"7,000.00",CAREHOME SELECTION LTD (CHS HEALTHCARE).
Adult and Health Services,Commissioning inc Supporting People,Third Party Payments,479101,Purchase of Care,05/04/2022,3988107-INV015769,"12,500.00",CAREHOME SELECTION LTD (CHS HEALTHCARE).
Adult and Health Services,Commissioning inc Supporting People,Third Party Payments,479101,Purchase of Care,05/04/2022,3988107-INV015770,"12,917.00",CAREHOME SELECTION LTD (CHS HEALTHCARE).
Adult and Health Services,Commissioning inc Supporting People,Third Party Payments,479101,Purchase of Care,05/04/2022,3988107-INV015784,"7,000.00",CAREHOME SELECTION LTD (CHS HEALTHCARE).
Dedicated Schools Grant BG0015,DSG Early Years Block,Transfer Payments,510032,School Children,05/04/2022,3988111-29912,"4,266.60",CASTLE KINDERGARTEN LTD.
Dedicated Schools Grant BG0015,DSG Early Years Block,Transfer Payments,510032,School Children,05/04/2022,3988112-29913,"1,066.65",CASTLE KINDERGARTEN LTD.
Dedicated Schools Grant BG0015,DSG Early Years Block,Transfer Payments,510030,School Children,05/04/2022,3988111-30099,"13,815.75",CASTLE KINDERGARTEN LTD.
Dedicated Schools Grant BG0015,DSG Early Years Block,Transfer Payments,510030,School Children,05/04/2022,3988112-30100,"5,607.23",CASTLE KINDERGARTEN LTD.
Dedicated Schools Grant BG0015,DSG Early Years Block,Transfer Payments,510032,School Children,05/04/2022,3988114-29914,992.81,CASTLE VIEW PRIVATE DAY NURSERY LTD.
Dedicated Schools Grant BG0015,DSG Early Years Block,Transfer Payments,510030,School Children,05/04/2022,3988113-30101,"49,448.63",CASTLE VIEW PRIVATE DAY NURSERY LTD.
Regeneration Economy and Growth,Corporate Property and Land,Third Party Payments,430100,Rendered by Private Contractors,05/04/2022,3988117-7096,"2,250.00",CENTURY FABRICATIONS LTD.
Regeneration Economy and Growth,Corporate Property and Land,Third Party Payments,430100,Rendered by Private Contractors,05/04/2022,3988117-7097,905.00,CENTURY FABRICATIONS LTD.
Resources BK0010,Transactional & Customer Services,Supplies and Services,304040,Equipment and Materials,05/04/2022,3988128-C/BN239746,"4,506.17",CIVICA UK LTD.
Dedicated Schools Grant BG0015,DSG Early Years Block,Transfer Payments,510032,School Children,05/04/2022,3988132-29850,"8,799.86",CLEVER CLOGS DAY NURSERIES LTD.
Dedicated Schools Grant BG0015,DSG Early Years Block,Transfer Payments,510030,School Children,05/04/2022,3988132-30007,"43,073.06",CLEVER CLOGS DAY NURSERIES LTD.
Dedicated Schools Grant BG0015,DSG Early Years Block,Transfer Payments,510032,School Children,05/04/2022,3988133-29851,"6,399.90",CLEVER CLOGS DAY NURSERY (DURHAM) LTD.
Dedicated Schools Grant BG0015,DSG Early Years Block,Transfer Payments,510030,School Children,05/04/2022,3988133-30008,"45,174.19",CLEVER CLOGS DAY NURSERY (DURHAM) LTD.
Dedicated Schools Grant BG0015,DSG Early Years Block,Transfer Payments,510030,School Children,05/04/2022,3988134-30009,"41,277.60",CLEVES CROSS ACADEMY.
Children and Young Peoples Services,Head of Childrens Social Care,Transport,230005,Contract Hire,05/04/2022,3988136-CLUB2212Y,620.00,CLUBMAN CABS.
Children and Young Peoples Services,Head of Childrens Social Care,Transport,230005,Contract Hire,05/04/2022,3988136-CLUB2212D,760.00,CLUBMAN CABS.
Children and Young Peoples Services,Head of Childrens Social Care,Transport,230005,Contract Hire,05/04/2022,3988136-CLUB2212O,880.00,CLUBMAN CABS.
Neighbourhoods and Climate Change,Technical Services CM0300,Stock A926,926900,Stock in hand-Inventory system,05/04/2022,3988138-23000RX22005131,"2,478.24",COLAS LTD.
Dedicated Schools Grant BG0015,DSG Early Years Block,Transfer Payments,510030,School Children,05/04/2022,3988141-30109,"2,843.52",CONKERS LIFE LTD (NURSERY SCHOOL).
Dedicated Schools Grant BG0015,DSG Early Years Block,Transfer Payments,510032,School Children,05/04/2022,3988207-29858,"8,799.86",CORE CARE EVENWOOD LTD T/A FLOWERPOTS NURSERY.
Dedicated Schools Grant BG0015,DSG Early Years Block,Transfer Payments,510030,School Children,05/04/2022,3988207-30019,"8,838.47",CORE CARE EVENWOOD LTD T/A FLOWERPOTS NURSERY.
Dedicated Schools Grant BG0015,DSG Early Years Block,Transfer Payments,510032,School Children,05/04/2022,3988144-29864,"19,999.69",CORECARE NA LTD.
Dedicated Schools Grant BG0015,DSG Early Years Block,Transfer Payments,510030,School Children,05/04/2022,3988144-30026,"17,854.20",CORECARE NA LTD.
Dedicated Schools Grant BG0015,DSG Early Years Block,Transfer Payments,510032,School Children,05/04/2022,3988145-29919,"4,266.60",COUNDON & LEEHOLME EARLY YEARS CENTRE LTD.
Dedicated Schools Grant BG0015,DSG Early Years Block,Transfer Payments,510030,School Children,05/04/2022,3988145-30110,"7,827.30",COUNDON & LEEHOLME EARLY YEARS CENTRE LTD.
Resources BK0010,Transactional & Customer Services,Supplies and Services,384700,Miscellaneous Expenses,05/04/2022,3988146-WSFS1025,"5,199.00",COUNTY DURHAM FURNITURE HELP SCHEME (CDFHS).
Resources BK0010,Transactional & Customer Services,Supplies and Services,384700,Miscellaneous Expenses,05/04/2022,3988146-WSFS10274100749009,"9,605.00",COUNTY DURHAM FURNITURE HELP SCHEME (CDFHS).
Regeneration Economy and Growth,Culture Sport and Tourism,Supplies and Services,384999,Miscellaneous Expenses,05/04/2022,3988147-SI-4261,"1,666.00",COUNTY DURHAM SPORT.
Dedicated Schools Grant BG0015,DSG Early Years Block,Transfer Payments,510032,School Children,05/04/2022,3988149-29921,"3,999.94",CRAGHEAD CHILDCARE CENTRE.
Dedicated Schools Grant BG0015,DSG Early Years Block,Transfer Payments,510030,School Children,05/04/2022,3988149-30112,"7,060.95",CRAGHEAD CHILDCARE CENTRE.
Adult and Health Services,Commissioning inc Supporting People,Third Party Payments,442002,Supporting People E442,05/04/2022,3988155-15044,"3,750.00",DARLINGTON MIND LTD.
Neighbourhoods and Climate Change,Environmental Services,Supplies and Services,338066,Services,05/04/2022,3988156-INV-0087,625.20,DAVE BARRETT T/A TURNING MOMENT.
Dedicated Schools Grant BG0015,DSG Early Years Block,Transfer Payments,510032,School Children,05/04/2022,3988158-29852,"1,599.98",DAWN TILL DUSK CHILDCARE.
Dedicated Schools Grant BG0015,DSG Early Years Block,Transfer Payments,510032,School Children,05/04/2022,3988159-29898,"2,399.96",DAYPARK LTD T/A YELLOW WELLIES.
Dedicated Schools Grant BG0015,DSG Early Years Block,Transfer Payments,510032,School Children,05/04/2022,3988160-29897,"9,599.85",DAYPARK LTD T/A YELLOW WELLIES.
Dedicated Schools Grant BG0015,DSG Early Years Block,Transfer Payments,510030,School Children,05/04/2022,3988159-30081,"43,493.29",DAYPARK LTD T/A YELLOW WELLIES.
Dedicated Schools Grant BG0015,DSG Early Years Block,Transfer Payments,510030,School Children,05/04/2022,3988160-30080,"27,948.38",DAYPARK LTD T/A YELLOW WELLIES.
Dedicated Schools Grant BG0015,DSG Early Years Block,Transfer Payments,510032,School Children,05/04/2022,3988162-29854,"2,399.96",DEERNESS VALLEY NURSERY SCHOOL.
Dedicated Schools Grant BG0015,DSG Early Years Block,Transfer Payments,510030,School Children,05/04/2022,3988162-30012,"27,146.54",DEERNESS VALLEY NURSERY SCHOOL.
Resources BK0010,Digital Services,Vehicles Equipment Furniture and Fittings,912701,Computer equipment,05/04/2022,3988163-7402799621,"1,433.65",DELL COMPUTER CORPORATION LTD.
Resources BK0010,Digital Services,Stock A926,926900,Stock in hand-Inventory system,05/04/2022,3988163-7402804720,531.00,DELL COMPUTER CORPORATION LTD.
Neighbourhoods and Climate Change,Environmental Services,Supplies and Services,338066,Services,05/04/2022,3988167-INV-0437,"5,175.00",DIGVENTURES LTD.
Neighbourhoods and Climate Change,Environmental Services,Supplies and Services,384199,Miscellaneous Expenses,05/04/2022,3988168-INV-1725,"8,645.22",DINSDALE MOORLAND SPECIALISTS.
Neighbourhoods and Climate Change,Environmental Services,Supplies and Services,384199,Miscellaneous Expenses,05/04/2022,3988168-INV-1726,"60,410.05",DINSDALE MOORLAND SPECIALISTS.
Neighbourhoods and Climate Change,Environmental Services,Supplies and Services,384199,Miscellaneous Expenses,05/04/2022,3988168-INV-1741,"8,750.00",DINSDALE MOORLAND SPECIALISTS.
Dedicated Schools Grant BG0015,DSG Early Years Block,Transfer Payments,510032,School Children,05/04/2022,3988170-29855,"2,399.96",DO RE MI DAY NURSERY.
Dedicated Schools Grant BG0015,DSG Early Years Block,Transfer Payments,510030,School Children,05/04/2022,3988170-30014,"54,209.03",DO RE MI DAY NURSERY.
Dedicated Schools Grant BG0015,DSG Early Years Block,Transfer Payments,510030,School Children,05/04/2022,3988177-30141,"2,241.20",DURHAM & NEWCASTLE DIOCESAN LEARNING TRUST T/A INGLETON CE PRIMARY SCHOOL
Dedicated Schools Grant BG0015,DSG Early Years Block,Transfer Payments,510030,School Children,05/04/2022,3988178-30216,"7,406.47",DURHAM & NEWCASTLE DIOCESAN LEARNING TRUST T/A STANHOPE BARRINGTON C OF E PRIMARY SCHOOL.
Regeneration Economy and Growth,Culture Sport and Tourism,Supplies and Services,312013,Newspapers books and periodicals E312,05/04/2022,3988181-02-02-2022,"1,133.88",DURHAM CITY NEWSTORE.
Dedicated Schools Grant BG0015,DSG Early Years Block,Transfer Payments,510032,School Children,05/04/2022,3988184-29925,"1,866.64",EARLY LEARNERS PRIVATE DAY NURSERY.
Dedicated Schools Grant BG0015,DSG Early Years Block,Transfer Payments,510030,School Children,05/04/2022,3988184-30120,"1,204.45",EARLY LEARNERS PRIVATE DAY NURSERY.
Dedicated Schools Grant BG0015,DSG Early Years Block,Transfer Payments,510032,School Children,05/04/2022,3988185-29966,"2,399.96",EAST DURHAM COLLEGE.
Dedicated Schools Grant BG0015,DSG Early Years Block,Transfer Payments,510030,School Children,05/04/2022,3988185-30193,"7,353.94",EAST DURHAM COLLEGE.
Adult and Health Services,Public Health CC0450,Supplies and Services,384899,Miscellaneous Expenses,05/04/2022,3988186-6146,"15,940.00",EAST DURHAM COMMUNITY DEVELOPMENT TRUST LTD T/A EAST DURHAM TRUST.
Dedicated Schools Grant BG0015,DSG Early Years Block,Transfer Payments,510032,School Children,05/04/2022,3988187-29909,"1,866.64",EDEN ACADEMY TRUST LTD T/A BLUEBELL MEADOW PRIMARY SCHOOL.
Dedicated Schools Grant BG0015,DSG Early Years Block,Transfer Payments,510030,School Children,05/04/2022,3988187-30093,"6,019.65",EDEN ACADEMY TRUST LTD T/A BLUEBELL MEADOW PRIMARY SCHOOL.
Dedicated Schools Grant BG0015,DSG Early Years Block,Transfer Payments,510032,School Children,05/04/2022,3988188-29926,"3,466.61",EDEN GARDEN NURSERY.
Dedicated Schools Grant BG0015,DSG Early Years Block,Transfer Payments,510030,School Children,05/04/2022,3988188-30121,"9,004.32",EDEN GARDEN NURSERY.
Dedicated Schools Grant BG0015,DSG Early Years Block,Transfer Payments,510030,School Children,05/04/2022,3988189-30106,"14,189.18",EDEN LEARNING TRUST T/A CHILTON ACADEMY.
Regeneration Economy and Growth,Corporate Property and Land,Supplies and Services,304221,Equipment and Materials,05/04/2022,3988190-059-298363,670.80,EDMUNDSON ELECTRICAL LTD.
Dedicated Schools Grant BG0015,DSG Early Years Block,Transfer Payments,510032,School Children,05/04/2022,3988198-29928,"5,066.59",EMERALDS LITTLE GEMS DAYCARE LTD.
Dedicated Schools Grant BG0015,DSG Early Years Block,Transfer Payments,510032,School Children,05/04/2022,3988198-29929,"7,199.89",EMERALDS LITTLE GEMS DAYCARE LTD.
Dedicated Schools Grant BG0015,DSG Early Years Block,Transfer Payments,510030,School Children,05/04/2022,3988198-30124,"7,954.54",EMERALDS LITTLE GEMS DAYCARE LTD.
Dedicated Schools Grant BG0015,DSG Early Years Block,Transfer Payments,510030,School Children,05/04/2022,3988198-30125,"27,174.42",EMERALDS LITTLE GEMS DAYCARE LTD.
Regeneration Economy and Growth,Corporate Property and Land,Third Party Payments,430100,Rendered by Private Contractors,05/04/2022,3988199-SIN/22-081758-BD,"1,195.00",ENGINEERING PRECISION SOLUTIONS LTD T/A CYRUS-BRADFORD.
Regeneration Economy and Growth,Corporate Property and Land,Third Party Payments,430100,Rendered by Private Contractors,05/04/2022,3988199-SIN/22-081779-BD,986.00,ENGINEERING PRECISION SOLUTIONS LTD T/A CYRUS-BRADFORD.
Dedicated Schools Grant BG0015,DSG Early Years Block,Transfer Payments,510032,School Children,05/04/2022,3988202-29856,"9,599.85",EXPLORERS DAY CARE.
Dedicated Schools Grant BG0015,DSG Early Years Block,Transfer Payments,510030,School Children,05/04/2022,3988202-30017,"99,593.33",EXPLORERS DAY CARE.
Dedicated Schools Grant BG0015,DSG Early Years Block,Transfer Payments,510032,School Children,05/04/2022,3988206-29857,"2,399.96",FIRST STEPS NURSERY.
Dedicated Schools Grant BG0015,DSG Early Years Block,Transfer Payments,510030,School Children,05/04/2022,3988206-30018,"25,755.60",FIRST STEPS NURSERY.
Children and Young Peoples Services,Head of Childrens Social Care,Supplies and Services,384500,Miscellaneous Expenses,05/04/2022,3988208-2233,"2,500.00",FOCUS MENTAL HEALTH.
Regeneration Economy and Growth,Culture Sport and Tourism,Third Party Payments,430131,Rendered by Private Contractors,05/04/2022,3988212-29,630.00,GAIL SMITH (NETBALL COACH).
Dedicated Schools Grant BG0015,DSG Early Years Block,Transfer Payments,510032,School Children,05/04/2022,3988214-29932,"2,133.30",GIANT STEPS LTD.
Dedicated Schools Grant BG0015,DSG Early Years Block,Transfer Payments,510032,School Children,05/04/2022,3988216-29931,"2,666.63",GIANT STEPS LTD.
Dedicated Schools Grant BG0015,DSG Early Years Block,Transfer Payments,510032,School Children,05/04/2022,3988217-29933,"1,333.31",GIANT STEPS LTD.
Dedicated Schools Grant BG0015,DSG Early Years Block,Transfer Payments,510030,School Children,05/04/2022,3988215-30129,"8,479.58",GIANT STEPS LTD.
Dedicated Schools Grant BG0015,DSG Early Years Block,Transfer Payments,510030,School Children,05/04/2022,3988216-30128,"7,388.55",GIANT STEPS LTD.
Dedicated Schools Grant BG0015,DSG Early Years Block,Transfer Payments,510030,School Children,05/04/2022,3988217-30130,"3,738.15",GIANT STEPS LTD.
Dedicated Schools Grant BG0015,DSG Early Years Block,Transfer Payments,510032,School Children,05/04/2022,3988219-29934,"1,599.98",GREEN LANE NURSERY & CHILDCARE CENTRE.
Dedicated Schools Grant BG0015,DSG Early Years Block,Transfer Payments,510030,School Children,05/04/2022,3988219-30131,"14,644.84",GREEN LANE NURSERY & CHILDCARE CENTRE.
Neighbourhoods and Climate Change,Environmental Services,Supplies and Services,338066,Services,05/04/2022,3988223-190846,"2,000.00",H & H REEDS PRINTERS LTD.
Dedicated Schools Grant BG0015,DSG Early Years Block,Transfer Payments,510032,School Children,05/04/2022,3988229-29859,"9,599.85",HAPPY TIMES DAYCARE LTD.
Dedicated Schools Grant BG0015,DSG Early Years Block,Transfer Payments,510030,School Children,05/04/2022,3988229-30020,"3,825.90",HAPPY TIMES DAYCARE LTD.
Dedicated Schools Grant BG0015,DSG Early Years Block,Transfer Payments,510032,School Children,05/04/2022,3988230-29845,"9,599.85",HAPPYTIMES DAYCARE LTD.
Dedicated Schools Grant BG0015,DSG Early Years Block,Transfer Payments,510030,School Children,05/04/2022,3988230-30001,"6,291.48",HAPPYTIMES DAYCARE LTD.
Dedicated Schools Grant BG0015,DSG Early Years Block,Transfer Payments,510030,School Children,05/04/2022,3988231-30132,"7,739.55",HARTSIDE PRIMARY ACADEMY.
Dedicated Schools Grant BG0015,DSG Early Years Block,Transfer Payments,510032,School Children,05/04/2022,3988235-29936,533.33,HAYLEY PENEYCAD.
Dedicated Schools Grant BG0015,DSG Early Years Block,Transfer Payments,510030,School Children,05/04/2022,3988235-30134,"1,661.40",HAYLEY PENEYCAD.
Dedicated Schools Grant BG0015,DSG Early Years Block,Transfer Payments,510032,School Children,05/04/2022,3988237-29860,"3,999.94",HAYSTACKS NURSERY..
Dedicated Schools Grant BG0015,DSG Early Years Block,Transfer Payments,510030,School Children,05/04/2022,3988237-30021,"59,251.73",HAYSTACKS NURSERY..
Dedicated Schools Grant BG0015,DSG Early Years Block,Transfer Payments,510032,School Children,05/04/2022,3988238-29861,"3,999.94",HAZEL DENE CHILDCARE LTD.
Dedicated Schools Grant BG0015,DSG Early Years Block,Transfer Payments,510030,School Children,05/04/2022,3988238-30022,"7,651.80",HAZEL DENE CHILDCARE LTD.
Dedicated Schools Grant BG0015,DSG Early Years Block,Transfer Payments,510032,School Children,05/04/2022,3988242-29939,"1,066.65",HELEN PROW.
Dedicated Schools Grant BG0015,DSG Early Years Block,Transfer Payments,510030,School Children,05/04/2022,3988242-30139,"1,719.90",HELEN PROW.
Dedicated Schools Grant BG0015,DSG Early Years Block,Transfer Payments,510032,School Children,05/04/2022,3988245-29862,"1,279.98",HIPPITOTS LTD.
Dedicated Schools Grant BG0015,DSG Early Years Block,Transfer Payments,510030,School Children,05/04/2022,3988245-30024,"31,170.19",HIPPITOTS LTD.
Dedicated Schools Grant BG0015,DSG Early Years Block,Transfer Payments,510032,School Children,05/04/2022,3988248-29863,"7,999.88",HOUSE OF EDEN LTD.
Dedicated Schools Grant BG0015,DSG Early Years Block,Transfer Payments,510030,School Children,05/04/2022,3988248-30025,"49,533.12",HOUSE OF EDEN LTD.
Dedicated Schools Grant BG0015,DSG Early Years Block,Transfer Payments,510032,School Children,05/04/2022,3988250-29865,"8,799.86",HOWLETCH & SHOTTON CHILDCARE LTD.
Dedicated Schools Grant BG0015,DSG Early Years Block,Transfer Payments,510030,School Children,05/04/2022,3988250-30028,"24,134.18",HOWLETCH & SHOTTON CHILDCARE LTD.
Resources BK0010,Corporate Policy Planning & Performance,Supplies and Services,342051,Computers and Communications,05/04/2022,3988252-105789102,"1,068.00",IBM UNITED KINGDOM LTD.*
Resources BK0010,Digital Services,Supplies and Services,332029,Printing Stationery and Gen Off Exps,05/04/2022,3988253-39535,"2,324.71",INC DOT COM LTD T/A INC DOT DESIGN & PRINT.
Regeneration Economy and Growth,Culture Sport and Tourism,Supplies and Services,342033,Computers and Communications,05/04/2022,3988254-2100024650,"11,000.00",INSIGHT DIRECT (UK) LTD.
Neighbourhoods and Climate Change,Technical Services CM0300,Construction work A908,908105,Construction work,05/04/2022,3988258-26191,"1,475.30",JACK COUPE & SONS LTD T/A COUPE LINE.
Neighbourhoods and Climate Change,Technical Services CM0300,Construction work A908,908105,Construction work,05/04/2022,3988258-26192,"2,990.88",JACK COUPE & SONS LTD T/A COUPE LINE.
Neighbourhoods and Climate Change,Environmental Services,Supplies and Services,338066,Services,05/04/2022,3988259-BURSARY-APRIL22,"1,617.30",JACK RAVENSCROFT.
Dedicated Schools Grant BG0015,DSG Early Years Block,Transfer Payments,510030,School Children,05/04/2022,3988267-30188,"6,009.22",JIGSAW LEARNING TRUST.
Regeneration Economy and Growth,Corporate Property and Land,Construction work A908,908105,Construction work,05/04/2022,3988274-DEMOLITION-SPENNYMOOR22,"23,417.50",JOHN WADE (HAULAGE) LTD.
Neighbourhoods and Climate Change,Technical Services CM0300,Supplies and Services,304221,Equipment and Materials,05/04/2022,3988278-0122/00613267,924.58,JT DOVE LTD.
Regeneration Economy and Growth,Corporate Property and Land,Supplies and Services,304221,Equipment and Materials,05/04/2022,3988278-0213/00612100,"4,887.56",JT DOVE LTD.
Regeneration Economy and Growth,Corporate Property and Land,Supplies and Services,304221,Equipment and Materials,05/04/2022,3988278-0213/00615432,"6,156.07",JT DOVE LTD.
Regeneration Economy and Growth,Corporate Property and Land,Supplies and Services,304221,Equipment and Materials,05/04/2022,3988278-0213/00615434,814.92,JT DOVE LTD.
Regeneration Economy and Growth,Corporate Property and Land,Supplies and Services,304221,Equipment and Materials,05/04/2022,3988278-0213/00615435,940.47,JT DOVE LTD.
Neighbourhoods and Climate Change,Technical Services CM0300,Supplies and Services,342051,Computers and Communications,05/04/2022,3988281-1355-01/04/2022,"1,875.00",KAINOS SOFTWARE LTD.
Dedicated Schools Grant BG0015,DSG Early Years Block,Transfer Payments,510032,School Children,05/04/2022,3988288-29949,"3,733.28",KELLOE PHOENIX CENTRE (CHILDCARE).
Dedicated Schools Grant BG0015,DSG Early Years Block,Transfer Payments,510030,School Children,05/04/2022,3988288-30157,"5,399.55",KELLOE PHOENIX CENTRE (CHILDCARE).
Dedicated Schools Grant BG0015,DSG Early Years Block,Transfer Payments,510030,School Children,05/04/2022,3988290-30032,"57,876.98",KIDS 1ST NURSERIES DURHAM.
Dedicated Schools Grant BG0015,DSG Early Years Block,Transfer Payments,510032,School Children,05/04/2022,3988291-29868,"6,399.90",KIDZ VILLAGE LTD.
Dedicated Schools Grant BG0015,DSG Early Years Block,Transfer Payments,510030,School Children,05/04/2022,3988291-30033,"21,680.10",KIDZ VILLAGE LTD.
Dedicated Schools Grant BG0015,DSG Early Years Block,Transfer Payments,510032,School Children,05/04/2022,3988292-29950,"3,199.95",KIDZONE.
Dedicated Schools Grant BG0015,DSG Early Years Block,Transfer Payments,510030,School Children,05/04/2022,3988292-30159,"15,091.05",KIDZONE.
Dedicated Schools Grant BG0015,DSG Early Years Block,Transfer Payments,510030,School Children,05/04/2022,3988293-30160,"6,293.95",KIRK MERRINGTON PRE SCHOOL.
Dedicated Schools Grant BG0015,DSG Early Years Block,Transfer Payments,510030,School Children,05/04/2022,3988294-30161,"4,583.28",KIRKLANDS DAY NURSERY.
Dedicated Schools Grant BG0015,DSG Early Years Block,Transfer Payments,510032,School Children,05/04/2022,3988312-29954,"3,733.28",LEADGATE CHILD CENTRE LTD.
Dedicated Schools Grant BG0015,DSG Early Years Block,Transfer Payments,510030,School Children,05/04/2022,3988312-30169,"11,135.96",LEADGATE CHILD CENTRE LTD.
Dedicated Schools Grant BG0015,DSG Early Years Block,Transfer Payments,510032,School Children,05/04/2022,3988322-29956,"2,133.30",LITTLE ACORNS NORTH EAST LTD.
Dedicated Schools Grant BG0015,DSG Early Years Block,Transfer Payments,510030,School Children,05/04/2022,3988322-30172,"11,958.38",LITTLE ACORNS NORTH EAST LTD.
Dedicated Schools Grant BG0015,DSG Early Years Block,Transfer Payments,510032,School Children,05/04/2022,3988323-29871,"4,279.94",LITTLE CUBS DAY NURSERY.
Dedicated Schools Grant BG0015,DSG Early Years Block,Transfer Payments,510030,School Children,05/04/2022,3988323-30038,"54,798.41",LITTLE CUBS DAY NURSERY.
Dedicated Schools Grant BG0015,DSG Early Years Block,Transfer Payments,510032,School Children,05/04/2022,3988324-29872,"11,039.83",LITTLE STARS EARLY YEARS.
Dedicated Schools Grant BG0015,DSG Early Years Block,Transfer Payments,510030,School Children,05/04/2022,3988324-30039,"11,081.07",LITTLE STARS EARLY YEARS.
Dedicated Schools Grant BG0015,DSG Early Years Block,Transfer Payments,510032,School Children,05/04/2022,3988325-29958,"4,799.93",LITTLE WAVES DAY NURSERY LTD.
Dedicated Schools Grant BG0015,DSG Early Years Block,Transfer Payments,510030,School Children,05/04/2022,3988325-30175,"9,553.05",LITTLE WAVES DAY NURSERY LTD.
Neighbourhoods and Climate Change,Environmental Services,Supplies and Services,338066,Services,05/04/2022,3988121-BURSARY-APRIL22,577.20,LIZZY WOOD BENN.
Children and Young Peoples Services,Head of Early Help Inclusion & Vulnerable Children.,Transport,230005,Contract Hire,05/04/2022,3988326-5082,500.00,LOCAL TRANSPORT LTD.
Neighbourhoods and Climate Change,Environmental Services,Supplies and Services,338066,Services,05/04/2022,3988337-WP001,"1,400.00",MAKE THINGS HAPPEN DESIGN STUDIO LTD.
Neighbourhoods and Climate Change,Technical Services CM0300,Third Party Payments,430100,Rendered by Private Contractors,05/04/2022,3988338-6216,"4,956.00",MAKEPEACE MOTORS.
Neighbourhoods and Climate Change,Community Protection,Supplies and Services,338066,Services,05/04/2022,3988344-3106,"4,835.50",MARTIN CRANFIELD ASSOCIATES.
Neighbourhoods and Climate Change,Community Protection,Supplies and Services,338066,Services,05/04/2022,3988344-3107,733.40,MARTIN CRANFIELD ASSOCIATES.
Children and Young Peoples Services,Head of Education and Skills,Supplies and Services,338027,Services,05/04/2022,3988350-0105,"3,075.00",MICHAEL NELSON T/A CAD2CODE CIC.
Neighbourhoods and Climate Change,Environmental Services,Supplies and Services,304259,Equipment and Materials,05/04/2022,3988391-INVDUR003I4456,"2,003.85",NE TRUCK SPARES LTD (NETS).
Dedicated Schools Grant BG0015,DSG Early Years Block,Transfer Payments,510032,School Children,05/04/2022,3988392-29962,"3,199.95",NELLIE`S DAY NURSERY LTD.
Dedicated Schools Grant BG0015,DSG Early Years Block,Transfer Payments,510030,School Children,05/04/2022,3988392-30185,"6,156.15",NELLIE`S DAY NURSERY LTD.
Regeneration Economy and Growth,Business Durham CL0850,Supplies and Services,340001,Postages E340,05/04/2022,3988393-RED-04-2022-028,"2,000.00",NEOPOST CREDIFON.
Dedicated Schools Grant BG0015,DSG Early Years Block,Transfer Payments,510032,School Children,05/04/2022,3988394-29963,"2,933.29",NEW BEGINNINGS (MOORSIDE) CO LTD.
Dedicated Schools Grant BG0015,DSG Early Years Block,Transfer Payments,510030,School Children,05/04/2022,3988394-30186,"6,853.28",NEW BEGINNINGS (MOORSIDE) CO LTD.
Regeneration Economy and Growth,Transport and Contracted Services,Third Party Payments,430108,Rendered by Private Contractors,05/04/2022,3988395-1800011213788,"1,068.52",NEWCASTLE UPON TYNE CITY COUNCIL.
Regeneration Economy and Growth,Development and Housing,Supplies and Services,384437,Miscellaneous Expenses,05/04/2022,3988396-NMPR18032243,"2,100.00",NEWSMAKER PR & VIDEO PRODUCTION LTD.
Regeneration Economy and Growth,Development and Housing,Supplies and Services,336005,Advertising E336,05/04/2022,3988397-39543528,"1,468.05",NEWSQUEST (YORKSHIRE & NORTH EAST) LTD.
Adult and Health Services,Commissioning inc Supporting People,Supplies and Services,377015,County Durham Development,05/04/2022,3988397-39542436,"1,000.00",NEWSQUEST (YORKSHIRE & NORTH EAST) LTD.
Children and Young Peoples Services,Head of Early Help Inclusion & Vulnerable Children.,Supplies and Services,338094,Services,05/04/2022,3988398-3871,675.00,NEWTON AYCLIFFE YOUTH & COMMUNITY CENTRE.
Children and Young Peoples Services,Head of Childrens Social Care,Supplies and Services,384500,Miscellaneous Expenses,05/04/2022,3988403-3061,550.00,NORTH EAST ADOPTION THERAPY SERVICES LTD (NEATS).
Children and Young Peoples Services,Head of Childrens Social Care,Supplies and Services,384500,Miscellaneous Expenses,05/04/2022,3988403-3067,"3,000.00",NORTH EAST ADOPTION THERAPY SERVICES LTD (NEATS).
Children and Young Peoples Services,Head of Childrens Social Care,Supplies and Services,384500,Miscellaneous Expenses,05/04/2022,3988403-3068,850.00,NORTH EAST ADOPTION THERAPY SERVICES LTD (NEATS).
Children and Young Peoples Services,Head of Childrens Social Care,Supplies and Services,384500,Miscellaneous Expenses,05/04/2022,3988403-3070,700.00,NORTH EAST ADOPTION THERAPY SERVICES LTD (NEATS).
Adult and Health Services,Commissioning inc Supporting People,Supplies and Services,352001,Conference Expenses,05/04/2022,3988405-8110023816,"2,250.00",NORTH EAST AMBULANCE SERVICE NHS FOUNDATION TRUST.
Dedicated Schools Grant BG0015,DSG Early Years Block,Transfer Payments,510032,School Children,05/04/2022,3988410-29965,"2,666.63",NORTHUMBRIAN TRUST DAY NURSERIES LTD.
Dedicated Schools Grant BG0015,DSG Early Years Block,Transfer Payments,510030,School Children,05/04/2022,3988410-30191,"4,038.45",NORTHUMBRIAN TRUST DAY NURSERIES LTD.
Dedicated Schools Grant BG0015,DSG Early Years Block,Transfer Payments,510032,School Children,05/04/2022,3988411-29884,"8,799.86",NURSERYTIME LTD.
Dedicated Schools Grant BG0015,DSG Early Years Block,Transfer Payments,510030,School Children,05/04/2022,3988411-30052,"41,277.60",NURSERYTIME LTD.
Dedicated Schools Grant BG0015,DSG Early Years Block,Transfer Payments,510030,School Children,05/04/2022,3988413-30187,"2,731.46",OLD BRIDGE NURSERY.
Adult and Health Services,Commissioning inc Supporting People,Third Party Payments,479102,Purchase of Care,05/04/2022,3988416-INV-1015,"2,400.00",OM CHANGE & TRANSFORMATION LTD.
Regeneration Economy and Growth,Corporate Property and Land,Third Party Payments,430100,Rendered by Private Contractors,05/04/2022,3988417-11469-36,992.00,OPUS BUILDING SERVICES LTD.
Resources BK0010,HR & Employee Services,Supplies and Services,342051,Computers and Communications,05/04/2022,3988431-10417,"2,495.00",PILAT (UK) LTD.
Dedicated Schools Grant BG0015,DSG Early Years Block,Transfer Payments,510032,School Children,05/04/2022,3988434-29886,"7,199.89",PLAYDAY NURSERY.
Dedicated Schools Grant BG0015,DSG Early Years Block,Transfer Payments,510030,School Children,05/04/2022,3988434-30056,"53,562.60",PLAYDAY NURSERY.
Dedicated Schools Grant BG0015,DSG Early Years Block,Transfer Payments,510030,School Children,05/04/2022,3988435-30192,"5,757.08",PLAYOLOGY LTD.
Children and Young Peoples Services,Head of Childrens Social Care,Supplies and Services,384500,Miscellaneous Expenses,05/04/2022,3988437-21229,"1,600.00",PREFERRED FUTURE-NVR LTD.
Neighbourhoods and Climate Change,Technical Services CM0300,Third Party Payments,430100,Rendered by Private Contractors,05/04/2022,3988438-13942,"1,372.81",QUANTUM POWER CONNECTIONS LTD.
Neighbourhoods and Climate Change,Environmental Services,Supplies and Services,384199,Miscellaneous Expenses,05/04/2022,3988439-RAD51525,620.00,RA DALTON LTD.
Dedicated Schools Grant BG0015,DSG Early Years Block,Transfer Payments,510032,School Children,05/04/2022,3988445-29969,"3,466.61",RAINBOW NURSERY LTD (MIDDLESTONE MOOR).
Dedicated Schools Grant BG0015,DSG Early Years Block,Transfer Payments,510030,School Children,05/04/2022,3988445-30197,"17,872.63",RAINBOW NURSERY LTD (MIDDLESTONE MOOR).
Neighbourhoods and Climate Change,Environmental Services,Supplies and Services,338099,Services,05/04/2022,3988446-SI11830,"2,227.20",RDI ASSOCIATES LTD (RURAL DEVELOPMENT INITIATIVES).
Dedicated Schools Grant BG0015,DSG Early Years Block,Transfer Payments,510032,School Children,05/04/2022,3988037-29838,"1,599.98",REDACTED - PAYMENT TO INDIVIDUAL
Dedicated Schools Grant BG0015,DSG Early Years Block,Transfer Payments,510030,School Children,05/04/2022,3988037-29993,"5,541.41",REDACTED - PAYMENT TO INDIVIDUAL
Dedicated Schools Grant BG0015,DSG Early Years Block,Transfer Payments,510032,School Children,05/04/2022,3988040-29839,"1,599.98",REDACTED - PAYMENT TO INDIVIDUAL
Dedicated Schools Grant BG0015,DSG Early Years Block,Transfer Payments,510030,School Children,05/04/2022,3988040-29994,"1,912.95",REDACTED - PAYMENT TO INDIVIDUAL
Dedicated Schools Grant BG0015,DSG Early Years Block,Transfer Payments,510030,School Children,05/04/2022,3988041-30085,"1,496.04",REDACTED - PAYMENT TO INDIVIDUAL
Dedicated Schools Grant BG0015,DSG Early Years Block,Transfer Payments,510032,School Children,05/04/2022,3988045-29841,799.99,REDACTED - PAYMENT TO INDIVIDUAL
Dedicated Schools Grant BG0015,DSG Early Years Block,Transfer Payments,510030,School Children,05/04/2022,3988046-30087,811.20,REDACTED - PAYMENT TO INDIVIDUAL
Dedicated Schools Grant BG0015,DSG Early Years Block,Transfer Payments,510032,School Children,05/04/2022,3988047-29902,533.33,REDACTED - PAYMENT TO INDIVIDUAL
Dedicated Schools Grant BG0015,DSG Early Years Block,Transfer Payments,510030,School Children,05/04/2022,3988047-30088,830.70,REDACTED - PAYMENT TO INDIVIDUAL
Dedicated Schools Grant BG0015,DSG Early Years Block,Transfer Payments,510032,School Children,05/04/2022,3988050-29904,799.99,REDACTED - PAYMENT TO INDIVIDUAL
Dedicated Schools Grant BG0015,DSG Early Years Block,Transfer Payments,510032,School Children,05/04/2022,3988070-29907,"2,399.96",REDACTED - PAYMENT TO INDIVIDUAL
Dedicated Schools Grant BG0015,DSG Early Years Block,Transfer Payments,510030,School Children,05/04/2022,3988070-30091,"5,814.90",REDACTED - PAYMENT TO INDIVIDUAL
Dedicated Schools Grant BG0015,DSG Early Years Block,Transfer Payments,510030,School Children,05/04/2022,3988109-30098,830.70,REDACTED - PAYMENT TO INDIVIDUAL
Dedicated Schools Grant BG0015,DSG Early Years Block,Transfer Payments,510030,School Children,05/04/2022,3988123-30005,"1,260.68",REDACTED - PAYMENT TO INDIVIDUAL
Dedicated Schools Grant BG0015,DSG Early Years Block,Transfer Payments,510032,School Children,05/04/2022,3988130-29849,"1,599.98",REDACTED - PAYMENT TO INDIVIDUAL
Dedicated Schools Grant BG0015,DSG Early Years Block,Transfer Payments,510030,School Children,05/04/2022,3988130-30006,"5,475.60",REDACTED - PAYMENT TO INDIVIDUAL
Dedicated Schools Grant BG0015,DSG Early Years Block,Transfer Payments,510030,School Children,05/04/2022,3988172-30015,623.03,REDACTED - PAYMENT TO INDIVIDUAL
Dedicated Schools Grant BG0015,DSG Early Years Block,Transfer Payments,510030,School Children,05/04/2022,3988193-30122,601.09,REDACTED - PAYMENT TO INDIVIDUAL
Dedicated Schools Grant BG0015,DSG Early Years Block,Transfer Payments,510030,School Children,05/04/2022,3988213-30127,708.50,REDACTED - PAYMENT TO INDIVIDUAL
Dedicated Schools Grant BG0015,DSG Early Years Block,Transfer Payments,510030,School Children,05/04/2022,3988222-30174,"4,832.59",REDACTED - PAYMENT TO INDIVIDUAL
Dedicated Schools Grant BG0015,DSG Early Years Block,Transfer Payments,510030,School Children,05/04/2022,3988236-30135,811.20,REDACTED - PAYMENT TO INDIVIDUAL
Dedicated Schools Grant BG0015,DSG Early Years Block,Transfer Payments,510032,School Children,05/04/2022,3988239-29937,533.33,REDACTED - PAYMENT TO INDIVIDUAL
Dedicated Schools Grant BG0015,DSG Early Years Block,Transfer Payments,510030,School Children,05/04/2022,3988239-30136,840.45,REDACTED - PAYMENT TO INDIVIDUAL
Dedicated Schools Grant BG0015,DSG Early Years Block,Transfer Payments,510030,School Children,05/04/2022,3988261-30143,"1,062.75",REDACTED - PAYMENT TO INDIVIDUAL
Dedicated Schools Grant BG0015,DSG Early Years Block,Transfer Payments,510030,School Children,05/04/2022,3988264-30146,608.40,REDACTED - PAYMENT TO INDIVIDUAL
Dedicated Schools Grant BG0015,DSG Early Years Block,Transfer Payments,510030,School Children,05/04/2022,3988266-30147,623.03,REDACTED - PAYMENT TO INDIVIDUAL
Dedicated Schools Grant BG0015,DSG Early Years Block,Transfer Payments,510032,School Children,05/04/2022,3988270-29922,"1,066.65",REDACTED - PAYMENT TO INDIVIDUAL
Dedicated Schools Grant BG0015,DSG Early Years Block,Transfer Payments,510030,School Children,05/04/2022,3988270-30114,"8,040.31",REDACTED - PAYMENT TO INDIVIDUAL
Dedicated Schools Grant BG0015,DSG Early Years Block,Transfer Payments,510032,School Children,05/04/2022,3988271-29944,799.99,REDACTED - PAYMENT TO INDIVIDUAL
Dedicated Schools Grant BG0015,DSG Early Years Block,Transfer Payments,510030,School Children,05/04/2022,3988272-30029,623.03,REDACTED - PAYMENT TO INDIVIDUAL
Dedicated Schools Grant BG0015,DSG Early Years Block,Transfer Payments,510030,School Children,05/04/2022,3988283-30153,"2,052.38",REDACTED - PAYMENT TO INDIVIDUAL
Dedicated Schools Grant BG0015,DSG Early Years Block,Transfer Payments,510030,School Children,05/04/2022,3988285-30030,"1,246.05",REDACTED - PAYMENT TO INDIVIDUAL
Dedicated Schools Grant BG0015,DSG Early Years Block,Transfer Payments,510032,School Children,05/04/2022,3988286-29948,533.33,REDACTED - PAYMENT TO INDIVIDUAL
Dedicated Schools Grant BG0015,DSG Early Years Block,Transfer Payments,510032,School Children,05/04/2022,3988287-29867,"2,399.96",REDACTED - PAYMENT TO INDIVIDUAL
Dedicated Schools Grant BG0015,DSG Early Years Block,Transfer Payments,510030,School Children,05/04/2022,3988287-30031,"1,275.30",REDACTED - PAYMENT TO INDIVIDUAL
Dedicated Schools Grant BG0015,DSG Early Years Block,Transfer Payments,510030,School Children,05/04/2022,3988289-30158,"1,700.40",REDACTED - PAYMENT TO INDIVIDUAL
Dedicated Schools Grant BG0015,DSG Early Years Block,Transfer Payments,510032,School Children,05/04/2022,3988295-29869,799.99,REDACTED - PAYMENT TO INDIVIDUAL
Dedicated Schools Grant BG0015,DSG Early Years Block,Transfer Payments,510030,School Children,05/04/2022,3988295-30034,"3,115.13",REDACTED - PAYMENT TO INDIVIDUAL
Dedicated Schools Grant BG0015,DSG Early Years Block,Transfer Payments,510032,School Children,05/04/2022,3988297-29957,"1,066.65",REDACTED - PAYMENT TO INDIVIDUAL
Dedicated Schools Grant BG0015,DSG Early Years Block,Transfer Payments,510030,School Children,05/04/2022,3988307-30035,"4,275.18",REDACTED - PAYMENT TO INDIVIDUAL
Dedicated Schools Grant BG0015,DSG Early Years Block,Transfer Payments,510030,School Children,05/04/2022,3988308-30167,"1,402.54",REDACTED - PAYMENT TO INDIVIDUAL
Dedicated Schools Grant BG0015,DSG Early Years Block,Transfer Payments,510030,School Children,05/04/2022,3988310-30036,"1,803.26",REDACTED - PAYMENT TO INDIVIDUAL
Dedicated Schools Grant BG0015,DSG Early Years Block,Transfer Payments,510032,School Children,05/04/2022,3988317-29870,799.99,REDACTED - PAYMENT TO INDIVIDUAL
Dedicated Schools Grant BG0015,DSG Early Years Block,Transfer Payments,510030,School Children,05/04/2022,3988317-30037,"1,231.43",REDACTED - PAYMENT TO INDIVIDUAL
Dedicated Schools Grant BG0015,DSG Early Years Block,Transfer Payments,510030,School Children,05/04/2022,3988327-30176,"1,231.43",REDACTED - PAYMENT TO INDIVIDUAL
Dedicated Schools Grant BG0015,DSG Early Years Block,Transfer Payments,510032,School Children,05/04/2022,3988331-29874,"1,599.98",REDACTED - PAYMENT TO INDIVIDUAL
Dedicated Schools Grant BG0015,DSG Early Years Block,Transfer Payments,510030,School Children,05/04/2022,3988331-30041,"3,115.13",REDACTED - PAYMENT TO INDIVIDUAL
Regeneration Economy and Growth,Culture Sport and Tourism,Supplies and Services,304337,Equipment and Materials,05/04/2022,3988341-4236005809,"1,826.95",REDACTED - PAYMENT TO INDIVIDUAL
Dedicated Schools Grant BG0015,DSG Early Years Block,Transfer Payments,510032,School Children,05/04/2022,3988342-29876,"1,599.98",REDACTED - PAYMENT TO INDIVIDUAL
Dedicated Schools Grant BG0015,DSG Early Years Block,Transfer Payments,510030,School Children,05/04/2022,3988342-30043,"2,521.35",REDACTED - PAYMENT TO INDIVIDUAL
Dedicated Schools Grant BG0015,DSG Early Years Block,Transfer Payments,510030,School Children,05/04/2022,3988343-30182,"1,641.90",REDACTED - PAYMENT TO INDIVIDUAL
Regeneration Economy and Growth,Culture Sport and Tourism,Supplies and Services,384302,Miscellaneous Expenses,05/04/2022,3988345-INV-0129,"1,500.00",REDACTED - PAYMENT TO INDIVIDUAL
Dedicated Schools Grant BG0015,DSG Early Years Block,Transfer Payments,510032,School Children,05/04/2022,3988346-29877,799.99,REDACTED - PAYMENT TO INDIVIDUAL
Dedicated Schools Grant BG0015,DSG Early Years Block,Transfer Payments,510030,School Children,05/04/2022,3988346-30044,"2,404.35",REDACTED - PAYMENT TO INDIVIDUAL
Dedicated Schools Grant BG0015,DSG Early Years Block,Transfer Payments,510032,School Children,05/04/2022,3988348-29879,799.99,REDACTED - PAYMENT TO INDIVIDUAL
Dedicated Schools Grant BG0015,DSG Early Years Block,Transfer Payments,510030,School Children,05/04/2022,3988348-30046,630.34,REDACTED - PAYMENT TO INDIVIDUAL
Dedicated Schools Grant BG0015,DSG Early Years Block,Transfer Payments,510032,School Children,05/04/2022,3988349-29880,"1,599.98",REDACTED - PAYMENT TO INDIVIDUAL
Dedicated Schools Grant BG0015,DSG Early Years Block,Transfer Payments,510030,School Children,05/04/2022,3988349-30047,"1,172.93",REDACTED - PAYMENT TO INDIVIDUAL
Dedicated Schools Grant BG0015,DSG Early Years Block,Transfer Payments,510030,School Children,05/04/2022,3988351-30048,"5,101.20",REDACTED - PAYMENT TO INDIVIDUAL
Dedicated Schools Grant BG0015,DSG Early Years Block,Transfer Payments,510030,School Children,05/04/2022,3988352-30183,"1,246.05",REDACTED - PAYMENT TO INDIVIDUAL
Dedicated Schools Grant BG0015,DSG Early Years Block,Transfer Payments,510030,School Children,05/04/2022,3988355-30102,850.20,REDACTED - PAYMENT TO INDIVIDUAL
Dedicated Schools Grant BG0015,DSG Early Years Block,Transfer Payments,510032,School Children,05/04/2022,3988363-29873,"6,399.90",REDACTED - PAYMENT TO INDIVIDUAL
Dedicated Schools Grant BG0015,DSG Early Years Block,Transfer Payments,510030,School Children,05/04/2022,3988363-30040,"12,314.25",REDACTED - PAYMENT TO INDIVIDUAL
Dedicated Schools Grant BG0015,DSG Early Years Block,Transfer Payments,510032,School Children,05/04/2022,3988365-29840,799.99,REDACTED - PAYMENT TO INDIVIDUAL
Dedicated Schools Grant BG0015,DSG Early Years Block,Transfer Payments,510030,School Children,05/04/2022,3988365-29995,623.03,REDACTED - PAYMENT TO INDIVIDUAL
Dedicated Schools Grant BG0015,DSG Early Years Block,Transfer Payments,510030,School Children,05/04/2022,3988368-30117,"1,216.80",REDACTED - PAYMENT TO INDIVIDUAL
Dedicated Schools Grant BG0015,DSG Early Years Block,Transfer Payments,510032,School Children,05/04/2022,3988369-29930,533.33,REDACTED - PAYMENT TO INDIVIDUAL
Dedicated Schools Grant BG0015,DSG Early Years Block,Transfer Payments,510032,School Children,05/04/2022,3988374-29866,"1,599.98",REDACTED - PAYMENT TO INDIVIDUAL
Dedicated Schools Grant BG0015,DSG Early Years Block,Transfer Payments,510030,School Children,05/04/2022,3988377-30152,801.45,REDACTED - PAYMENT TO INDIVIDUAL
Dedicated Schools Grant BG0015,DSG Early Years Block,Transfer Payments,510032,School Children,05/04/2022,3988389-29961,"1,066.65",REDACTED - PAYMENT TO INDIVIDUAL
Dedicated Schools Grant BG0015,DSG Early Years Block,Transfer Payments,510030,School Children,05/04/2022,3988389-30184,"2,907.45",REDACTED - PAYMENT TO INDIVIDUAL
Dedicated Schools Grant BG0015,DSG Early Years Block,Transfer Payments,510030,School Children,05/04/2022,3988419-30189,606.97,REDACTED - PAYMENT TO INDIVIDUAL
Regeneration Economy and Growth,Culture Sport and Tourism,Supplies and Services,338047,Services,05/04/2022,3988422-4100763873,531.12,REDACTED - PAYMENT TO INDIVIDUAL
Dedicated Schools Grant BG0015,DSG Early Years Block,Transfer Payments,510032,School Children,05/04/2022,3988423-29964,533.33,REDACTED - PAYMENT TO INDIVIDUAL
Dedicated Schools Grant BG0015,DSG Early Years Block,Transfer Payments,510030,School Children,05/04/2022,3988423-30190,"1,891.01",REDACTED - PAYMENT TO INDIVIDUAL
Dedicated Schools Grant BG0015,DSG Early Years Block,Transfer Payments,510030,School Children,05/04/2022,3988427-30054,601.09,REDACTED - PAYMENT TO INDIVIDUAL
Dedicated Schools Grant BG0015,DSG Early Years Block,Transfer Payments,510030,School Children,05/04/2022,3988430-30055,"1,784.64",REDACTED - PAYMENT TO INDIVIDUAL
Dedicated Schools Grant BG0015,DSG Early Years Block,Transfer Payments,510032,School Children,05/04/2022,3988441-29967,533.33,REDACTED - PAYMENT TO INDIVIDUAL
Dedicated Schools Grant BG0015,DSG Early Years Block,Transfer Payments,510032,School Children,05/04/2022,3988442-29968,533.33,REDACTED - PAYMENT TO INDIVIDUAL
Dedicated Schools Grant BG0015,DSG Early Years Block,Transfer Payments,510030,School Children,05/04/2022,3988442-30196,"1,869.08",REDACTED - PAYMENT TO INDIVIDUAL
Dedicated Schools Grant BG0015,DSG Early Years Block,Transfer Payments,510030,School Children,05/04/2022,3988468-30202,820.95,REDACTED - PAYMENT TO INDIVIDUAL
Dedicated Schools Grant BG0015,DSG Early Years Block,Transfer Payments,510030,School Children,05/04/2022,3988469-30203,"1,038.38",REDACTED - PAYMENT TO INDIVIDUAL
Dedicated Schools Grant BG0015,DSG Early Years Block,Transfer Payments,510030,School Children,05/04/2022,3988471-30204,"1,001.81",REDACTED - PAYMENT TO INDIVIDUAL
Dedicated Schools Grant BG0015,DSG Early Years Block,Transfer Payments,510032,School Children,05/04/2022,3988480-29975,"1,066.65",REDACTED - PAYMENT TO INDIVIDUAL
Dedicated Schools Grant BG0015,DSG Early Years Block,Transfer Payments,510032,School Children,05/04/2022,3988481-29888,"3,199.95",REDACTED - PAYMENT TO INDIVIDUAL
Dedicated Schools Grant BG0015,DSG Early Years Block,Transfer Payments,510030,School Children,05/04/2022,3988481-30058,"4,111.97",REDACTED - PAYMENT TO INDIVIDUAL
Dedicated Schools Grant BG0015,DSG Early Years Block,Transfer Payments,510030,School Children,05/04/2022,3988496-30060,"2,492.10",REDACTED - PAYMENT TO INDIVIDUAL
Dedicated Schools Grant BG0015,DSG Early Years Block,Transfer Payments,510030,School Children,05/04/2022,3988530-30069,"2,375.10",REDACTED - PAYMENT TO INDIVIDUAL
Dedicated Schools Grant BG0015,DSG Early Years Block,Transfer Payments,510030,School Children,05/04/2022,3988556-30226,830.70,REDACTED - PAYMENT TO INDIVIDUAL
Dedicated Schools Grant BG0015,DSG Early Years Block,Transfer Payments,510032,School Children,05/04/2022,3988576-29895,"1,599.98",REDACTED - PAYMENT TO INDIVIDUAL
Dedicated Schools Grant BG0015,DSG Early Years Block,Transfer Payments,510030,School Children,05/04/2022,3988576-30076,"1,246.05",REDACTED - PAYMENT TO INDIVIDUAL
Dedicated Schools Grant BG0015,DSG Early Years Block,Transfer Payments,510030,School Children,05/04/2022,3988579-30231,623.03,REDACTED - PAYMENT TO INDIVIDUAL
Dedicated Schools Grant BG0015,DSG Early Years Block,Transfer Payments,510032,School Children,05/04/2022,3988591-29989,533.33,REDACTED - PAYMENT TO INDIVIDUAL
Regeneration Economy and Growth,Development and Housing,Supplies and Services,384999,Miscellaneous Expenses,05/04/2022,3988451-15396,790.00,RENT UK SERVICES LTD T/A RENT UK PROPERTY (LETTING AGENT).
Adult and Health Services,Commissioning inc Supporting People,Third Party Payments,479111,Purchase of Care,05/04/2022,3988452-27295,"28,055.94",RETHINK MENTAL ILLNESS LTD.
Dedicated Schools Grant BG0015,DSG Early Years Block,Transfer Payments,510030,School Children,05/04/2022,3988453-30199,"16,769.03",RIBBON ACADEMY TRUST.
Dedicated Schools Grant BG0015,DSG Early Years Block,Transfer Payments,510032,School Children,05/04/2022,3988454-29971,"7,199.89",RIBBON DAYCARE.
Dedicated Schools Grant BG0015,DSG Early Years Block,Transfer Payments,510030,School Children,05/04/2022,3988454-30200,"13,630.21",RIBBON DAYCARE.
Regeneration Economy and Growth,Development and Housing,Fees,901003,Capital - Contract Supervision,05/04/2022,3988457-J/22/05/2/APK/TM,"1,200.00",RNJ PARTNERSHIP LLP.
Regeneration Economy and Growth,Development and Housing,Fees,901003,Capital - Contract Supervision,05/04/2022,3988457-J/22/10/2/APK/TM,"1,200.00",RNJ PARTNERSHIP LLP.
Dedicated Schools Grant BG0015,DSG Early Years Block,Transfer Payments,510030,School Children,05/04/2022,3988463-30201,"3,224.81",SACRISTON ACADEMY - EARLY YEARS T/A PRIVATE NURSERY.
Regeneration Economy and Growth,Corporate Property and Land,Third Party Payments,430100,Rendered by Private Contractors,05/04/2022,3988464-6757,552.00,SAFE STRIP UK LTD.
Regeneration Economy and Growth,Business Durham CL0850,Premises,108099,Service Repairs and Maintenance,05/04/2022,3988465-15635,511.50,SAFEGUARD SECURITY (NE) LTD.
Dedicated Schools Grant BG0015,DSG Early Years Block,Transfer Payments,510032,School Children,05/04/2022,3988467-29887,"2,399.96",SAPLINGS NATURE KINDERGARTEN & FOREST SCHOOL.
Dedicated Schools Grant BG0015,DSG Early Years Block,Transfer Payments,510030,School Children,05/04/2022,3988467-30057,"17,156.00",SAPLINGS NATURE KINDERGARTEN & FOREST SCHOOL.
Dedicated Schools Grant BG0015,DSG Early Years Block,Transfer Payments,510032,School Children,05/04/2022,3988473-29974,799.99,SEASIDE LANE NURSERY.
Dedicated Schools Grant BG0015,DSG Early Years Block,Transfer Payments,510030,School Children,05/04/2022,3988473-30205,"2,975.70",SEASIDE LANE NURSERY.
Dedicated Schools Grant BG0015,DSG Early Years Block,Transfer Payments,510030,School Children,05/04/2022,3988477-30206,664.56,SEDGEFIELD OUT OF SCHOOL FUN CLUB.
Dedicated Schools Grant BG0015,DSG Early Years Block,Transfer Payments,510032,School Children,05/04/2022,3988483-29976,799.99,SHINING STARS PARKHILL LTD.
Dedicated Schools Grant BG0015,DSG Early Years Block,Transfer Payments,510030,School Children,05/04/2022,3988483-30208,830.70,SHINING STARS PARKHILL LTD.
Regeneration Economy and Growth,Corporate Property and Land,Supplies and Services,304221,Equipment and Materials,05/04/2022,3988484-0000135182,"4,400.00",SHORTS INDUSTRIES LTD T/A SHORTS LIFTS.
Dedicated Schools Grant BG0015,DSG Early Years Block,Transfer Payments,510032,School Children,05/04/2022,3988486-29889,"1,599.98",SHOTLEY BRIDGE NURSERY SCHOOL LTD.
Dedicated Schools Grant BG0015,DSG Early Years Block,Transfer Payments,510030,School Children,05/04/2022,3988486-30059,"57,991.05",SHOTLEY BRIDGE NURSERY SCHOOL LTD.
Neighbourhoods and Climate Change,Environmental Services,Third Party Payments,430113,Rendered by Private Contractors,05/04/2022,3988488-181444,"6,948.26",SHOWSEC INTERNATIONAL LTD.
Neighbourhoods and Climate Change,Environmental Services,Supplies and Services,338066,Services,05/04/2022,3988490-1071,"4,000.00",SIMON LEES T/A COUNTRYSIDE TRAINING PARTNERSHIP.
Neighbourhoods and Climate Change,Environmental Services,Supplies and Services,338027,Services,05/04/2022,3988495-0000946330,"1,728.61",SOCOTEC UK LTD.
Adult and Health Services,Public Health CC0450,Third Party Payments,460803,Contract Payments,05/04/2022,3988498-12250501,"1,000.00",SOUTH TYNESIDE COUNCIL.
Adult and Health Services,Head of Adults,Third Party Payments,478151,Purchase of Care,05/04/2022,3988501-0000010118,"3,087.56",ST ANNES COMMUNITY SERVICES.
Dedicated Schools Grant BG0015,DSG Early Years Block,Transfer Payments,510032,School Children,05/04/2022,3988504-29891,"8,679.86",ST OSWALD`S PRE SCHOOL LEARNING CENTRE.
Dedicated Schools Grant BG0015,DSG Early Years Block,Transfer Payments,510030,School Children,05/04/2022,3988504-30065,"46,803.51",ST OSWALD`S PRE SCHOOL LEARNING CENTRE.
Dedicated Schools Grant BG0015,DSG Early Years Block,Transfer Payments,510030,School Children,05/04/2022,3988505-30066,"26,039.52",ST OSWALD`S SUNSHINE CLUB.
Dedicated Schools Grant BG0015,DSG Early Years Block,Transfer Payments,510032,School Children,05/04/2022,3988509-29952,"3,466.61",STANLEY LEARNING PARTNERSHIP.
Dedicated Schools Grant BG0015,DSG Early Years Block,Transfer Payments,510032,School Children,05/04/2022,3988510-29977,799.99,STANLEY LEARNING PARTNERSHIP.
Dedicated Schools Grant BG0015,DSG Early Years Block,Transfer Payments,510032,School Children,05/04/2022,3988511-29908,533.33,STANLEY LEARNING PARTNERSHIP.
Dedicated Schools Grant BG0015,DSG Early Years Block,Transfer Payments,510030,School Children,05/04/2022,3988509-30163,"7,739.55",STANLEY LEARNING PARTNERSHIP.
Dedicated Schools Grant BG0015,DSG Early Years Block,Transfer Payments,510030,School Children,05/04/2022,3988510-30210,"6,376.01",STANLEY LEARNING PARTNERSHIP.
Dedicated Schools Grant BG0015,DSG Early Years Block,Transfer Payments,510030,School Children,05/04/2022,3988511-30092,"4,299.75",STANLEY LEARNING PARTNERSHIP.
Children and Young Peoples Services,Head of Early Help Inclusion & Vulnerable Children.,Supplies and Services,338078,Services,05/04/2022,3988515-18135,"17,844.32",STEADFAST SECURITY SOLUTIONS LTD.
Children and Young Peoples Services,Head of Childrens Social Care,Supplies and Services,384500,Miscellaneous Expenses,05/04/2022,3988516-NFSD163,"1,117.50",STEPHANIE DIXON (NURTURING FAMILIES).
Dedicated Schools Grant BG0015,DSG Early Years Block,Transfer Payments,510032,School Children,05/04/2022,3988517-29892,623.58,STEPPING STONES CO-OP NURSERY LTD.
Dedicated Schools Grant BG0015,DSG Early Years Block,Transfer Payments,510030,School Children,05/04/2022,3988517-30068,"6,876.48",STEPPING STONES CO-OP NURSERY LTD.
Dedicated Schools Grant BG0015,DSG Early Years Block,Transfer Payments,510032,School Children,05/04/2022,3988518-29978,533.33,STEPPING STONES DAY NURSERY (DURHAM).
Dedicated Schools Grant BG0015,DSG Early Years Block,Transfer Payments,510030,School Children,05/04/2022,3988518-30217,"2,770.95",STEPPING STONES DAY NURSERY (DURHAM).
Children and Young Peoples Services,Head of Childrens Social Care,Transport,230005,Contract Hire,05/04/2022,3988520-MAR116/STL,890.00,STL CABS.
Children and Young Peoples Services,Head of Childrens Social Care,Transport,230005,Contract Hire,05/04/2022,3988520-MAR117/STL,512.00,STL CABS.
Children and Young Peoples Services,Head of Childrens Social Care,Transport,230005,Contract Hire,05/04/2022,3988520-MAR118/STL,739.00,STL CABS.
Children and Young Peoples Services,Head of Education and Skills,Supplies and Services,338027,Services,05/04/2022,3988521-644614,"1,750.00",STOCKTON ON TEES BOROUGH COUNCIL.
Children and Young Peoples Services,Head of Education and Skills,Supplies and Services,338027,Services,05/04/2022,3988523-2807030133,"1,024.00",SUNDERLAND CITY COUNCIL.
Adult and Health Services,Public Health CC0450,Third Party Payments,460803,Contract Payments,05/04/2022,3988523-2803080387,"1,000.00",SUNDERLAND CITY COUNCIL.
Dedicated Schools Grant BG0015,DSG Early Years Block,Transfer Payments,510032,School Children,05/04/2022,3988524-29980,"4,266.60",SUNSHINE DAY NURSERY LTD.
Dedicated Schools Grant BG0015,DSG Early Years Block,Transfer Payments,510032,School Children,05/04/2022,3988525-29979,"4,799.93",SUNSHINE DAY NURSERY LTD.
Dedicated Schools Grant BG0015,DSG Early Years Block,Transfer Payments,510032,School Children,05/04/2022,3988526-29981,"3,466.61",SUNSHINE DAY NURSERY LTD.
Dedicated Schools Grant BG0015,DSG Early Years Block,Transfer Payments,510030,School Children,05/04/2022,3988525-30218,"16,306.88",SUNSHINE DAY NURSERY LTD.
Dedicated Schools Grant BG0015,DSG Early Years Block,Transfer Payments,510030,School Children,05/04/2022,3988526-30220,"7,739.55",SUNSHINE DAY NURSERY LTD.
Dedicated Schools Grant BG0015,DSG Early Years Block,Transfer Payments,510030,School Children,05/04/2022,3988527-30219,"12,752.03",SUNSHINE DAY NURSERY LTD.
Regeneration Economy and Growth,Communications Management,Supplies and Services,336005,Advertising E336,05/04/2022,3988539-1232,"2,293.00",TEKJA LTD.
Dedicated Schools Grant BG0015,DSG Early Years Block,Transfer Payments,510030,School Children,05/04/2022,3988542-30072,"3,782.03",THE EDUCATION PARTNERSHIP (UK) LTD.
Children and Young Peoples Services,Head of Childrens Social Care,Supplies and Services,384500,Miscellaneous Expenses,05/04/2022,3988543-23426,"2,177.50",THE FAMILY PLACE LTD.
Dedicated Schools Grant BG0015,DSG Early Years Block,Transfer Payments,510032,School Children,05/04/2022,3988545-29984,"3,199.95",THE LAURELS CHILD CARE COMPANY LTD.
Dedicated Schools Grant BG0015,DSG Early Years Block,Transfer Payments,510030,School Children,05/04/2022,3988545-30224,"7,035.60",THE LAURELS CHILD CARE COMPANY LTD.
Dedicated Schools Grant BG0015,DSG Early Years Block,Transfer Payments,510032,School Children,05/04/2022,3988546-29985,"4,799.93",THE NURSERY.
Dedicated Schools Grant BG0015,DSG Early Years Block,Transfer Payments,510030,School Children,05/04/2022,3988546-30225,"12,875.85",THE NURSERY.
Regeneration Economy and Growth,Culture Sport and Tourism,Supplies and Services,338047,Services,05/04/2022,3988548-SINRNT1013288,"1,237.44",THE ROYAL NATIONAL THEATRE.
Dedicated Schools Grant BG0015,DSG Early Years Block,Transfer Payments,510032,School Children,05/04/2022,3988549-29893,"6,399.90",TILLY MINTS CHERUBS DAY NURSERY LTD.
Dedicated Schools Grant BG0015,DSG Early Years Block,Transfer Payments,510030,School Children,05/04/2022,3988549-30074,"41,602.28",TILLY MINTS CHERUBS DAY NURSERY LTD.
Dedicated Schools Grant BG0015,DSG Early Years Block,Transfer Payments,510032,School Children,05/04/2022,3988551-29941,"2,666.63",TM NURSERY ENTERPRISES LTD T/A JACK IN THE BOX DAYCARE.
Dedicated Schools Grant BG0015,DSG Early Years Block,Transfer Payments,510030,School Children,05/04/2022,3988551-30142,"13,329.23",TM NURSERY ENTERPRISES LTD T/A JACK IN THE BOX DAYCARE.
Neighbourhoods and Climate Change,Technical Services CM0300,Stock A926,926900,Stock in hand-Inventory system,05/04/2022,3988553-110550,"2,691.34",TOTAL RENTAL SOLUTIONS.
Dedicated Schools Grant BG0015,DSG Early Years Block,Transfer Payments,510032,School Children,05/04/2022,3988555-29894,"12,479.81",TOTS `R` US.
Dedicated Schools Grant BG0015,DSG Early Years Block,Transfer Payments,510030,School Children,05/04/2022,3988555-30075,"16,763.47",TOTS `R` US.
Regeneration Economy and Growth,Transport and Contracted Services,Supplies and Services,384199,Miscellaneous Expenses,05/04/2022,3988559-INV-0108,"15,000.00",TRAVELINE INFORMATION LTD.
Dedicated Schools Grant BG0015,DSG Early Years Block,Transfer Payments,510032,School Children,05/04/2022,3988560-29986,"1,066.65",TRIMDON`S LITTLE TYKES LTD.
Resources BK0010,Legal & Democratic Services,Supplies and Services,338042,Services,05/04/2022,3988561-295372/INVJO522,650.00,TRINITY CHAMBERS.
Dedicated Schools Grant BG0015,DSG Early Years Block,Transfer Payments,510030,School Children,05/04/2022,3988563-30209,"4,120.60",TUDHOE LEARNING TRUST T/A SOUTH HETTON PRIMARY SCHOOL.
Regeneration Economy and Growth,Transport and Contracted Services,Supplies and Services,304245,Equipment and Materials,05/04/2022,3988564-3IN/10388439,816.00,TUNSTALL HEALTHCARE (UK) LTD.
Regeneration Economy and Growth,Business Durham CL0850,Supplies and Services,338027,Services,05/04/2022,3988566-INV-181583,"1,200.00",TYPE IN MOTION LTD T/A WE ARE FACTORY.
Regeneration Economy and Growth,Business Durham CL0850,Supplies and Services,352001,Conference Expenses,05/04/2022,3988569-INV-14335,"2,200.00",UMI COMMERCIAL LTD.
Regeneration Economy and Growth,Development and Housing,Supplies and Services,384899,Miscellaneous Expenses,05/04/2022,3988569-SD013/13,"1,949.68",UMI COMMERCIAL LTD.
Dedicated Schools Grant BG0015,DSG Early Years Block,Transfer Payments,510032,School Children,05/04/2022,3988571-29924,533.33,UNIVERSITY OF DURHAM DAY NURSERY.
Dedicated Schools Grant BG0015,DSG Early Years Block,Transfer Payments,510030,School Children,05/04/2022,3988571-30119,"9,034.84",UNIVERSITY OF DURHAM DAY NURSERY.
Dedicated Schools Grant BG0015,DSG Early Years Block,Transfer Payments,510032,School Children,05/04/2022,3988573-29987,"6,933.23",USHAW MOOR DAYCARE.
Dedicated Schools Grant BG0015,DSG Early Years Block,Transfer Payments,510030,School Children,05/04/2022,3988572-30229,"3,188.25",USHAW MOOR DAYCARE.
Dedicated Schools Grant BG0015,DSG Early Years Block,Transfer Payments,510030,School Children,05/04/2022,3988578-30230,"5,716.43",VICTORIA LANE ACADEMY.
Resources BK0010,Digital Services,Supplies and Services,344015,Telephones,05/04/2022,3988583-RD85910,621.00,VODAFONE LTD.
Resources BK0010,Digital Services,Supplies and Services,344015,Telephones,05/04/2022,3988583-RE08443,"3,035.86",VODAFONE LTD.
Resources BK0010,Digital Services,Supplies and Services,344015,Telephones,05/04/2022,3988583-RE08445,899.00,VODAFONE LTD.
Regeneration Economy and Growth,Culture Sport and Tourism,Supplies and Services,338047,Services,05/04/2022,3988585-23007934,626.67,WARNER BROS ENTERTAINMENT UK LTD.
Regeneration Economy and Growth,Corporate Property and Land,Third Party Payments,430100,Rendered by Private Contractors,05/04/2022,3988586-7312,534.27,WARREN (ELECTRICAL) LTD.
Dedicated Schools Grant BG0015,DSG Early Years Block,Transfer Payments,510032,School Children,05/04/2022,3988588-29916,"4,266.60",WAYMAN DEVELOPMENTS LTD T/A CHILDSPLAY PRIVATE NURSERY.
Dedicated Schools Grant BG0015,DSG Early Years Block,Transfer Payments,510032,School Children,05/04/2022,3988589-29917,"4,266.60",WAYMAN DEVELOPMENTS LTD T/A CHILDSPLAY PRIVATE NURSERY.
Dedicated Schools Grant BG0015,DSG Early Years Block,Transfer Payments,510030,School Children,05/04/2022,3988588-30104,"7,439.25",WAYMAN DEVELOPMENTS LTD T/A CHILDSPLAY PRIVATE NURSERY.
Dedicated Schools Grant BG0015,DSG Early Years Block,Transfer Payments,510030,School Children,05/04/2022,3988589-30105,"15,128.10",WAYMAN DEVELOPMENTS LTD T/A CHILDSPLAY PRIVATE NURSERY.
Dedicated Schools Grant BG0015,DSG Early Years Block,Transfer Payments,510032,School Children,05/04/2022,3988592-29896,"3,199.95",WESTFIELD HOUSE NURSERY.
Dedicated Schools Grant BG0015,DSG Early Years Block,Transfer Payments,510030,School Children,05/04/2022,3988592-30078,"43,493.29",WESTFIELD HOUSE NURSERY.
Dedicated Schools Grant BG0015,DSG Early Years Block,Transfer Payments,510032,School Children,05/04/2022,3988593-29990,"3,466.61",WHEATLEY HILL COMMUNITY NURSERY LTD.
Dedicated Schools Grant BG0015,DSG Early Years Block,Transfer Payments,510030,School Children,05/04/2022,3988593-30234,"8,814.49",WHEATLEY HILL COMMUNITY NURSERY LTD.
Regeneration Economy and Growth,Corporate Property and Land,Third Party Payments,430100,Rendered by Private Contractors,05/04/2022,3988594-646,"1,560.00",WHORLTON LAND SURVEYS LTD.
Dedicated Schools Grant BG0015,DSG Early Years Block,Transfer Payments,510032,School Children,05/04/2022,3988597-29991,"6,133.24",WINGATE COMMUNITY CHILDCARE LTD.
Dedicated Schools Grant BG0015,DSG Early Years Block,Transfer Payments,510030,School Children,05/04/2022,3988597-30235,"2,801.50",WINGATE COMMUNITY CHILDCARE LTD.
Neighbourhoods and Climate Change,Community Protection,Supplies and Services,304259,Equipment and Materials,05/04/2022,3988598-INGB11425,"31,100.00",WIRELESS CCTV LTD.
Dedicated Schools Grant BG0015,DSG Early Years Block,Transfer Payments,510030,School Children,05/04/2022,3988599-30079,"21,641.59",WITTON GILBERT PRE SCHOOL.
Regeneration Economy and Growth,Corporate Property and Land,Third Party Payments,430100,Rendered by Private Contractors,05/04/2022,3988603-1/C411/1038,"13,500.00",WRAM FABRICATIONS LTD.
Neighbourhoods and Climate Change,Technical Services CM0300,Supplies and Services,338066,Services,05/04/2022,3988604-64558275,"2,546.39",WSP UK LTD.
Resources BK0010,Digital Services,Vehicles Equipment Furniture and Fittings,912701,Computer equipment,05/04/2022,3988605-LB49832,"1,036.45",XMA LTD.
Dedicated Schools Grant BG0015,DSG Early Years Block,Transfer Payments,510032,School Children,05/04/2022,3988607-29992,"1,066.65",YORK HOUSE NURSERY.
Dedicated Schools Grant BG0015,DSG Early Years Block,Transfer Payments,510030,School Children,05/04/2022,3988607-30236,"13,972.76",YORK HOUSE NURSERY.
Neighbourhoods and Climate Change,Environmental Services,Transport,215005,Running Costs of Vehicles,05/04/2022,3988610-916099,"17,407.20",YOUR NRG LTD.
Resources BK0010,Digital Services,Supplies and Services,342051,Computers and Communications,05/04/2022,3988611-IN0260664,"3,010.74",ZELLIS UK LTD.
Resources BK0010,Digital Services,Supplies and Services,342051,Computers and Communications,05/04/2022,3988611-IN0260665,"23,508.00",ZELLIS UK LTD.
Resources BK0010,HR & Employee Services,Intangible Assets,917003,Software capitalised implementation fees,05/04/2022,3988611-IN0261752,"8,908.00",ZELLIS UK LTD.
Resources BK0010,HR & Employee Services,Intangible Assets,917001,Software capitalised licence fees,05/04/2022,3988611-IN0261751,"1,572.00",ZELLIS UK LTD.
Children and Young Peoples Services,Head of Education and Skills,Transport,230034,Contract Hire,06/04/2022,3988613-32203,"1,232.66",24/7 TAXI SERVICES (PETERLEE) LTD.
Children and Young Peoples Services,Head of Education and Skills,Transport,230034,Contract Hire,06/04/2022,3988613-32202,690.00,24/7 TAXI SERVICES (PETERLEE) LTD.
Children and Young Peoples Services,Head of Education and Skills,Transport,230034,Contract Hire,06/04/2022,3988613-32220,"3,480.00",24/7 TAXI SERVICES (PETERLEE) LTD.
Children and Young Peoples Services,Head of Education and Skills,Transport,230007,Contract Hire,06/04/2022,3988613-32204,943.00,24/7 TAXI SERVICES (PETERLEE) LTD.
Children and Young Peoples Services,Head of Education and Skills,Transport,230007,Contract Hire,06/04/2022,3988613-32201,689.77,24/7 TAXI SERVICES (PETERLEE) LTD.
Children and Young Peoples Services,Head of Education and Skills,Transport,230007,Contract Hire,06/04/2022,3988613-32205,"2,047.00",24/7 TAXI SERVICES (PETERLEE) LTD.
Children and Young Peoples Services,Head of Education and Skills,Transport,230006,Contract Hire,06/04/2022,3988613-32206,"3,012.02",24/7 TAXI SERVICES (PETERLEE) LTD.
Children and Young Peoples Services,Head of Education and Skills,Transport,230006,Contract Hire,06/04/2022,3988613-32207,"1,150.00",24/7 TAXI SERVICES (PETERLEE) LTD.
Children and Young Peoples Services,Head of Education and Skills,Transport,230006,Contract Hire,06/04/2022,3988613-32223,"1,840.00",24/7 TAXI SERVICES (PETERLEE) LTD.
Children and Young Peoples Services,Head of Education and Skills,Transport,230006,Contract Hire,06/04/2022,3988613-32214,638.84,24/7 TAXI SERVICES (PETERLEE) LTD.
Children and Young Peoples Services,Head of Education and Skills,Transport,230006,Contract Hire,06/04/2022,3988613-32224,"1,357.00",24/7 TAXI SERVICES (PETERLEE) LTD.
Children and Young Peoples Services,Head of Education and Skills,Transport,230006,Contract Hire,06/04/2022,3988613-32225,"1,368.00",24/7 TAXI SERVICES (PETERLEE) LTD.
Children and Young Peoples Services,Head of Education and Skills,Transport,230006,Contract Hire,06/04/2022,3988613-32226,"3,754.04",24/7 TAXI SERVICES (PETERLEE) LTD.
Children and Young Peoples Services,Head of Education and Skills,Transport,230012,Contract Hire,06/04/2022,3988613-32216,"2,760.00",24/7 TAXI SERVICES (PETERLEE) LTD.
Children and Young Peoples Services,Head of Education and Skills,Transport,230012,Contract Hire,06/04/2022,3988613-32228,"3,450.00",24/7 TAXI SERVICES (PETERLEE) LTD.
Children and Young Peoples Services,Head of Education and Skills,Transport,230016,Contract Hire,06/04/2022,3988613-32212,"3,040.00",24/7 TAXI SERVICES (PETERLEE) LTD.
Children and Young Peoples Services,Head of Education and Skills,Transport,230008,Contract Hire,06/04/2022,3988613-32217,"3,657.00",24/7 TAXI SERVICES (PETERLEE) LTD.
Children and Young Peoples Services,Head of Education and Skills,Transport,230008,Contract Hire,06/04/2022,3988613-32210,"3,501.68",24/7 TAXI SERVICES (PETERLEE) LTD.
Children and Young Peoples Services,Head of Education and Skills,Transport,230008,Contract Hire,06/04/2022,3988613-32215,"4,347.00",24/7 TAXI SERVICES (PETERLEE) LTD.
Children and Young Peoples Services,Head of Education and Skills,Transport,230008,Contract Hire,06/04/2022,3988613-32219,"5,717.37",24/7 TAXI SERVICES (PETERLEE) LTD.
Children and Young Peoples Services,Head of Education and Skills,Transport,230008,Contract Hire,06/04/2022,3988613-32227,"4,060.98",24/7 TAXI SERVICES (PETERLEE) LTD.
Children and Young Peoples Services,Head of Education and Skills,Transport,230008,Contract Hire,06/04/2022,3988613-32209,636.00,24/7 TAXI SERVICES (PETERLEE) LTD.
Children and Young Peoples Services,Head of Education and Skills,Transport,230008,Contract Hire,06/04/2022,3988613-32211,"3,220.00",24/7 TAXI SERVICES (PETERLEE) LTD.
Children and Young Peoples Services,Head of Education and Skills,Transport,230008,Contract Hire,06/04/2022,3988613-32221,"2,277.00",24/7 TAXI SERVICES (PETERLEE) LTD.
Children and Young Peoples Services,Head of Education and Skills,Transport,230008,Contract Hire,06/04/2022,3988613-32222,"3,680.00",24/7 TAXI SERVICES (PETERLEE) LTD.
Children and Young Peoples Services,Head of Education and Skills,Transport,230008,Contract Hire,06/04/2022,3988613-32213,"5,721.52",24/7 TAXI SERVICES (PETERLEE) LTD.
Children and Young Peoples Services,Head of Education and Skills,Transport,230008,Contract Hire,06/04/2022,3988613-32218,"4,370.00",24/7 TAXI SERVICES (PETERLEE) LTD.
Adult and Health Services,Head of Adults,Transport,230005,Contract Hire,06/04/2022,3988613-32208,"1,764.00",24/7 TAXI SERVICES (PETERLEE) LTD.
Adult and Health Services,Head of Adults,Transport,230005,Contract Hire,06/04/2022,3988613-32229,"1,092.00",24/7 TAXI SERVICES (PETERLEE) LTD.
Children and Young Peoples Services,Head of Education and Skills,Transport,230009,Contract Hire,06/04/2022,3988614-02/22,"1,192.55",A & P TAXIS.
Children and Young Peoples Services,Head of Education and Skills,Transport,230006,Contract Hire,06/04/2022,3988614-MARCH01/22,"2,380.00",A & P TAXIS.
Children and Young Peoples Services,Head of Education and Skills,Transport,230010,Contract Hire,06/04/2022,3988616-O542,"1,685.60",ABC & OUSTON CABS.
Resources BK0010,Legal & Democratic Services,Supplies and Services,340001,Postages E340,06/04/2022,3988618-PSI0189852,"1,400.00",ADARE SEC LTD.
Resources BK0010,Legal & Democratic Services,Supplies and Services,340001,Postages E340,06/04/2022,3988619-PSI0189851,950.00,ADARE SEC LTD.
Resources BK0010,Legal & Democratic Services,Supplies and Services,340001,Postages E340,06/04/2022,3988619-PSI0189853,"2,866.50",ADARE SEC LTD.
Resources BK0010,Legal & Democratic Services,Supplies and Services,340001,Postages E340,06/04/2022,3988619-PSI0190169,"1,400.00",ADARE SEC LTD.
Neighbourhoods and Climate Change,Technical Services CM0300,Supplies and Services,304221,Equipment and Materials,06/04/2022,3988621-32729753,595.36,AGGREGATE INDUSTRIES UK LTD.
Neighbourhoods and Climate Change,Technical Services CM0300,Supplies and Services,304221,Equipment and Materials,06/04/2022,3988621-32845629,"1,574.23",AGGREGATE INDUSTRIES UK LTD.
Neighbourhoods and Climate Change,Technical Services CM0300,Supplies and Services,304221,Equipment and Materials,06/04/2022,3988621-32850663,"1,387.83",AGGREGATE INDUSTRIES UK LTD.
Children and Young Peoples Services,Head of Education and Skills,Transport,230008,Contract Hire,06/04/2022,3988624-007MARCH2022,"2,530.00",AIRPORT TRANSFER DURHAM.
Regeneration Economy and Growth,Corporate Property and Land,Supplies and Services,304221,Equipment and Materials,06/04/2022,3988626-173855,"2,605.00",ALBANY OFFICE EQUIPMENT (WHOLESALE) LTD.
Children and Young Peoples Services,Head of Education and Skills,Supplies and Services,308011,Furniture,06/04/2022,3988626-174179,"2,390.00",ALBANY OFFICE EQUIPMENT (WHOLESALE) LTD.
Adult and Health Services,Commissioning inc Supporting People,Supplies and Services,336005,Advertising E336,06/04/2022,3988628-83633,"4,416.00",ALLWAG PROMOTIONS LTD.
Adult and Health Services,Commissioning inc Supporting People,Supplies and Services,336005,Advertising E336,06/04/2022,3988628-83698,"4,106.46",ALLWAG PROMOTIONS LTD.
Children and Young Peoples Services,Head of Childrens Social Care,Supplies and Services,338045,Services,06/04/2022,3988629-INV604067,"1,315.00",ALPHA BIOLABORATORIES LTD.
Adult and Health Services,Public Health CC0450,Third Party Payments,460803,Contract Payments,06/04/2022,3988632-INV-1178,"5,975.00",AN COMPUTING LTD.
Adult and Health Services,Public Health CC0450,Third Party Payments,460803,Contract Payments,06/04/2022,3988632-INV-1189,"7,000.00",AN COMPUTING LTD.
Resources BK0010,Legal & Democratic Services,Supplies and Services,338102,Services,06/04/2022,3988633-0011017,"9,895.00",ANALYTICAL SERVICES INTERNATIONAL LTD.
Regeneration Economy and Growth,Development and Housing,Supplies and Services,384999,Miscellaneous Expenses,06/04/2022,3988634-4100764389,758.95,ANDREW MARSHALL RESIDENTIAL PROPERTIES LTD T/A AMRP.
Non-Service Specific,Non Service Specific-Financing,Long Term Debtors,924001,Car loans,06/04/2022,3988640-119296,793.00,ARRIVA DURHAM COUNTY LTD.
Children and Young Peoples Services,Head of Education and Skills,Supplies and Services,384199,Miscellaneous Expenses,06/04/2022,3988641-79890,600.00,ASCENTIS.
Children and Young Peoples Services,Head of Education and Skills,Supplies and Services,338035,Services,06/04/2022,3988642-D21/000CX197/AA000444118,"2,265.00",ASSOCIATED BOARD OF THE SCHOOL OF MUSIC (ABRSM).
Children and Young Peoples Services,Head of Education and Skills,Transport,230034,Contract Hire,06/04/2022,3988643-902,"2,714.00",AT TAXIS LTD.
Children and Young Peoples Services,Head of Education and Skills,Transport,230034,Contract Hire,06/04/2022,3988643-904,"1,645.65",AT TAXIS LTD.
Children and Young Peoples Services,Head of Education and Skills,Transport,230007,Contract Hire,06/04/2022,3988643-903,"2,257.22",AT TAXIS LTD.
Children and Young Peoples Services,Head of Education and Skills,Transport,230007,Contract Hire,06/04/2022,3988643-905,"2,328.04",AT TAXIS LTD.
Children and Young Peoples Services,Head of Education and Skills,Transport,230008,Contract Hire,06/04/2022,3988643-900,"3,438.50",AT TAXIS LTD.
Children and Young Peoples Services,Head of Education and Skills,Transport,230008,Contract Hire,06/04/2022,3988643-901,"3,335.00",AT TAXIS LTD.
Children and Young Peoples Services,Head of Education and Skills,Transport,230004,Contract Hire,06/04/2022,3988644-F808/27,"1,561.15",ATLAS TAXIS CONSETT.
Children and Young Peoples Services,Head of Education and Skills,Transport,230006,Contract Hire,06/04/2022,3988644-F815/07,"2,086.40",ATLAS TAXIS CONSETT.
Children and Young Peoples Services,Head of Education and Skills,Transport,230008,Contract Hire,06/04/2022,3988645-088,"3,082.00",AUCKLAND TRAVEL.
Children and Young Peoples Services,Head of Education and Skills,Transport,230008,Contract Hire,06/04/2022,3988645-084,"3,266.00",AUCKLAND TRAVEL.
Children and Young Peoples Services,Head of Education and Skills,Transport,230008,Contract Hire,06/04/2022,3988645-089,528.00,AUCKLAND TRAVEL.
Children and Young Peoples Services,Head of Education and Skills,Transport,230008,Contract Hire,06/04/2022,3988645-086,"3,634.00",AUCKLAND TRAVEL.
Children and Young Peoples Services,Head of Education and Skills,Transport,230008,Contract Hire,06/04/2022,3988645-083,"3,634.00",AUCKLAND TRAVEL.
Children and Young Peoples Services,Head of Education and Skills,Transport,230008,Contract Hire,06/04/2022,3988645-087,"1,287.00",AUCKLAND TRAVEL.
Children and Young Peoples Services,Head of Education and Skills,Transport,230008,Contract Hire,06/04/2022,3988645-085,"4,087.28",AUCKLAND TRAVEL.
Children and Young Peoples Services,Head of Education and Skills,Transport,230034,Contract Hire,06/04/2022,3988646-313224,"2,346.00",AVALON TAXIS.
Children and Young Peoples Services,Head of Education and Skills,Transport,230007,Contract Hire,06/04/2022,3988646-313223,"1,080.00",AVALON TAXIS.
Children and Young Peoples Services,Head of Education and Skills,Transport,230007,Contract Hire,06/04/2022,3988646-313222,"2,840.00",AVALON TAXIS.
Adult and Health Services,Head of Adults,Transport,230005,Contract Hire,06/04/2022,3988646-313221,"1,380.00",AVALON TAXIS.
Regeneration Economy and Growth,Corporate Property and Land,Supplies and Services,304221,Equipment and Materials,06/04/2022,3988647-289335,594.95,AVIRE LTD.
Children and Young Peoples Services,Head of Education and Skills,Transport,230006,Contract Hire,06/04/2022,3988648-7/MARCH,"1,162.00",B&C YELLOWCAB TAXI`S.
Neighbourhoods and Climate Change,Technical Services CM0300,Third Party Payments,430100,Rendered by Private Contractors,06/04/2022,3988649-CSUKOU/INV/122628,"6,303.78",BALFOUR BEATTY LIVING PLACES LTD.*
Neighbourhoods and Climate Change,Technical Services CM0300,Third Party Payments,430100,Rendered by Private Contractors,06/04/2022,3988649-CSUKOU/INV/122636,"6,810.71",BALFOUR BEATTY LIVING PLACES LTD.*
Children and Young Peoples Services,Head of Education and Skills,Transport,230008,Contract Hire,06/04/2022,3988652-993,"2,447.89",BEELINE MINI BUSES.
Children and Young Peoples Services,Head of Education and Skills,Transport,230008,Contract Hire,06/04/2022,3988652-994,"2,234.45",BEELINE MINI BUSES.
Children and Young Peoples Services,Head of Education and Skills,Transport,230008,Contract Hire,06/04/2022,3988652-995,"1,644.96",BEELINE MINI BUSES.
Children and Young Peoples Services,Head of Education and Skills,Transport,230016,Contract Hire,06/04/2022,3988653-SMITH2/MARCH22,"1,229.32",BEELINE PRIVATE HIRE.
Children and Young Peoples Services,Head of Education and Skills,Transport,230034,Contract Hire,06/04/2022,3988654-4492,"2,139.00",BENS TAXIS.
Children and Young Peoples Services,Head of Education and Skills,Transport,230007,Contract Hire,06/04/2022,3988654-SH-PITT0322,"1,453.50",BENS TAXIS.
Children and Young Peoples Services,Head of Education and Skills,Transport,230006,Contract Hire,06/04/2022,3988657-1-MAR22,"2,376.00",BH TRAVEL.
Children and Young Peoples Services,Head of Education and Skills,Transport,230007,Contract Hire,06/04/2022,3988658-MAR22-1283,"1,610.00",BIG MAMA`S TAXI.
Children and Young Peoples Services,Head of Education and Skills,Transport,230006,Contract Hire,06/04/2022,3988658-MAR22-823,875.94,BIG MAMA`S TAXI.
Children and Young Peoples Services,Head of Education and Skills,Transport,230006,Contract Hire,06/04/2022,3988658-MAR22-F109,"2,390.62",BIG MAMA`S TAXI.
Children and Young Peoples Services,Head of Education and Skills,Transport,230006,Contract Hire,06/04/2022,3988658-MAR22-F131,"3,003.99",BIG MAMA`S TAXI.
Children and Young Peoples Services,Head of Education and Skills,Transport,230010,Contract Hire,06/04/2022,3988658-MAR22-BL035,"1,958.54",BIG MAMA`S TAXI.
Children and Young Peoples Services,Head of Education and Skills,Transport,230009,Contract Hire,06/04/2022,3988659-0546,"1,297.34",BIRDS TAXIS LTD.
Children and Young Peoples Services,Head of Education and Skills,Transport,230006,Contract Hire,06/04/2022,3988659-0552,736.00,BIRDS TAXIS LTD.
Children and Young Peoples Services,Head of Education and Skills,Transport,230006,Contract Hire,06/04/2022,3988659-0555,703.47,BIRDS TAXIS LTD.
Children and Young Peoples Services,Head of Education and Skills,Transport,230008,Contract Hire,06/04/2022,3988659-0545,"3,207.58",BIRDS TAXIS LTD.
Children and Young Peoples Services,Head of Education and Skills,Transport,230008,Contract Hire,06/04/2022,3988659-0544,"2,222.49",BIRDS TAXIS LTD.
Adult and Health Services,Head of Adults,Transport,230005,Contract Hire,06/04/2022,3988659-0548,709.38,BIRDS TAXIS LTD.
Adult and Health Services,Head of Adults,Transport,230005,Contract Hire,06/04/2022,3988659-0547,715.53,BIRDS TAXIS LTD.
Adult and Health Services,Head of Adults,Transport,230005,Contract Hire,06/04/2022,3988659-0553,906.43,BIRDS TAXIS LTD.
Adult and Health Services,Head of Adults,Transport,230005,Contract Hire,06/04/2022,3988659-0551,"2,090.17",BIRDS TAXIS LTD.
Adult and Health Services,Head of Adults,Transport,230005,Contract Hire,06/04/2022,3988659-0554,"2,892.25",BIRDS TAXIS LTD.
Children and Young Peoples Services,Head of Education and Skills,Transport,230005,Contract Hire,06/04/2022,3988659-0549,874.00,BIRDS TAXIS LTD.
Children and Young Peoples Services,Head of Education and Skills,Third Party Payments,440999,Other third party payments E440,06/04/2022,3988660-NEI-EXP-04-2022-006,941.16,BISHOP CHADWICK CATHOLIC EDUCATION TRUST.
Children and Young Peoples Services,Head of Education and Skills,Transport,230007,Contract Hire,06/04/2022,3988661-096,835.36,BL CARS.
Children and Young Peoples Services,Head of Education and Skills,Transport,230006,Contract Hire,06/04/2022,3988662-7/MARCH,550.00,BL TAXIS.
Children and Young Peoples Services,Head of Education and Skills,Transport,230009,Contract Hire,06/04/2022,3988664-40004,661.36,BLUELINE SOUTH INCORPORATING NAVIGATION TAXIS T/A BLUELINE TAXIS.
Children and Young Peoples Services,Head of Education and Skills,Transport,230007,Contract Hire,06/04/2022,3988665-G1,989.00,BOBS TAXIS.
Children and Young Peoples Services,Head of Education and Skills,Transport,230007,Contract Hire,06/04/2022,3988665-G,"3,673.10",BOBS TAXIS.
Children and Young Peoples Services,Head of Education and Skills,Transport,230004,Contract Hire,06/04/2022,3988665-G2,575.00,BOBS TAXIS.
Neighbourhoods and Climate Change,Environmental Services,Supplies and Services,304221,Equipment and Materials,06/04/2022,3988667-1029133,"4,872.00",BOSTON SEEDS LTD.
Children and Young Peoples Services,Head of Education and Skills,Transport,230034,Contract Hire,06/04/2022,3988668-006-MAR22,"2,612.96",BOWBURN TAXIS.
Children and Young Peoples Services,Head of Education and Skills,Transport,230007,Contract Hire,06/04/2022,3988668-007-MAR22,920.00,BOWBURN TAXIS.
Children and Young Peoples Services,Head of Education and Skills,Transport,230008,Contract Hire,06/04/2022,3988673-BZ00396,"2,185.46",BREZ`S TAXIS.
Children and Young Peoples Services,Head of Education and Skills,Transport,230008,Contract Hire,06/04/2022,3988673-BZ00397,"1,311.00",BREZ`S TAXIS.
Children and Young Peoples Services,Head of Education and Skills,Third Party Payments,440999,Other third party payments E440,06/04/2022,3988674-NEI-EXP-04-2022-005,716.39,BURNS PETCARE LTD T/A WOOFS N SCRUFFS.
Regeneration Economy and Growth,Culture Sport and Tourism,Premises,120037,Energy Costs,06/04/2022,3988677-34915904,967.78,CALOR GAS LTD.
Adult and Health Services,Commissioning inc Supporting People,Supplies and Services,372009,Subscriptions E372,06/04/2022,3988679-INV-0757,836.00,CARE FRIENDS LTD.
Resources BK0010,Digital Services,Supplies and Services,342051,Computers and Communications,06/04/2022,3988680-42539,"4,485.00",CASEWARE UK LTD.
Children and Young Peoples Services,Head of Education and Skills,Third Party Payments,440999,Other third party payments E440,06/04/2022,3988683-NEI-EXP-04-2022-009,"1,010.75",CHANGING RELATIONS CIC.
Children and Young Peoples Services,Head of Education and Skills,Transport,230008,Contract Hire,06/04/2022,3988684-072,"3,009.15",CHANNER`S CABS.
Children and Young Peoples Services,Head of Education and Skills,Transport,230035,Contract Hire,06/04/2022,3988685-06-MAR22,"1,188.00",CHAPMAN TRAVEL.
Children and Young Peoples Services,Head of Education and Skills,Transport,230007,Contract Hire,06/04/2022,3988685-16-MAR22,"1,143.00",CHAPMAN TRAVEL.
Children and Young Peoples Services,Head of Education and Skills,Transport,230006,Contract Hire,06/04/2022,3988685-07-MAR22,"1,520.00",CHAPMAN TRAVEL.
Neighbourhoods and Climate Change,Environmental Services,Supplies and Services,338099,Services,06/04/2022,3988687-64901,"1,776.30",CHEVIOT TREES LTD.
Children and Young Peoples Services,Head of Education and Skills,Transport,230007,Contract Hire,06/04/2022,3988688-1751,741.00,CHEVRON TAXIS LTD.
Children and Young Peoples Services,Head of Education and Skills,Transport,230007,Contract Hire,06/04/2022,3988688-1750,684.00,CHEVRON TAXIS LTD.
Children and Young Peoples Services,Head of Education and Skills,Transport,230007,Contract Hire,06/04/2022,3988688-1763,"1,564.00",CHEVRON TAXIS LTD.
Children and Young Peoples Services,Head of Education and Skills,Transport,230006,Contract Hire,06/04/2022,3988688-1577,"1,408.00",CHEVRON TAXIS LTD.
Children and Young Peoples Services,Head of Education and Skills,Transport,230006,Contract Hire,06/04/2022,3988688-1727,800.00,CHEVRON TAXIS LTD.
Children and Young Peoples Services,Head of Education and Skills,Transport,230006,Contract Hire,06/04/2022,3988688-1754,"1,248.00",CHEVRON TAXIS LTD.
Children and Young Peoples Services,Head of Education and Skills,Transport,230006,Contract Hire,06/04/2022,3988688-1760,610.40,CHEVRON TAXIS LTD.
Children and Young Peoples Services,Head of Education and Skills,Transport,230008,Contract Hire,06/04/2022,3988688-1733,"1,564.00",CHEVRON TAXIS LTD.
Children and Young Peoples Services,Head of Education and Skills,Transport,230008,Contract Hire,06/04/2022,3988688-1753,"2,332.00",CHEVRON TAXIS LTD.
Children and Young Peoples Services,Head of Education and Skills,Transport,230009,Contract Hire,06/04/2022,3988689-NF03,"1,304.42",CHIPPERS TAXIS.
Children and Young Peoples Services,Head of Education and Skills,Supplies and Services,338027,Services,06/04/2022,3988691-DURHAM030322,"1,538.29",CHRIS TREVOR PRIMARY EDUCATION CONSULTANCY.
Regeneration Economy and Growth,Culture Sport and Tourism,Supplies and Services,304259,Equipment and Materials,06/04/2022,3988694-CN30144634,"1,054.02",CITRON HYGIENE UK LTD.
Regeneration Economy and Growth,Culture Sport and Tourism,Premises,145009,Cleaning and Domestic Supplies,06/04/2022,3988694-CN30164461,537.48,CITRON HYGIENE UK LTD.
Neighbourhoods and Climate Change,Environmental Services,Third Party Payments,430100,Rendered by Private Contractors,06/04/2022,3988694-CN30144643,591.78,CITRON HYGIENE UK LTD.
Children and Young Peoples Services,Head of Education and Skills,Supplies and Services,338035,Services,06/04/2022,3988695-805896442,710.00,CITY & GUILDS OF LONDON INSTITUTE.
Children and Young Peoples Services,Head of Education and Skills,Supplies and Services,338035,Services,06/04/2022,3988695-805967229,"1,420.00",CITY & GUILDS OF LONDON INSTITUTE.
Children and Young Peoples Services,Head of Education and Skills,Transport,230007,Contract Hire,06/04/2022,3988703-INV012-A,850.32,CONSETT EXECUTIVE CABS.
Children and Young Peoples Services,Head of Education and Skills,Transport,230007,Contract Hire,06/04/2022,3988703-INV012-B,"1,322.72",CONSETT EXECUTIVE CABS.
Children and Young Peoples Services,Head of Education and Skills,Supplies and Services,338094,Services,06/04/2022,3988706-815,"1,240.00",CORNERSTONES CENTRE FOR THE COMMUNITY.
Neighbourhoods and Climate Change,Partnerships & Community Engagement Div.,Supplies and Services,308011,Furniture,06/04/2022,3988709-P0004,"2,369.00",COUNTY DURHAM FURNITURE HELP SCHEME (CDFHS).
Neighbourhoods and Climate Change,Partnerships & Community Engagement Div.,Supplies and Services,308011,Furniture,06/04/2022,3988709-P0005,"2,314.00",COUNTY DURHAM FURNITURE HELP SCHEME (CDFHS).
Children and Young Peoples Services,Head of Education and Skills,Transport,230006,Contract Hire,06/04/2022,3988713-530,"1,669.57",DA TRAVEL.
Children and Young Peoples Services,Head of Education and Skills,Transport,230008,Contract Hire,06/04/2022,3988713-527,"3,045.43",DA TRAVEL.
Children and Young Peoples Services,Head of Education and Skills,Transport,230008,Contract Hire,06/04/2022,3988713-528,"2,179.20",DA TRAVEL.
Children and Young Peoples Services,Head of Education and Skills,Transport,230008,Contract Hire,06/04/2022,3988713-531,"1,646.57",DA TRAVEL.
Children and Young Peoples Services,Head of Education and Skills,Transport,230007,Contract Hire,06/04/2022,3988714-49-4227,"4,347.00",DANNY`S TRAVEL.
Children and Young Peoples Services,Head of Education and Skills,Transport,230003,Contract Hire,06/04/2022,3988714-49-4270,"2,748.50",DANNY`S TRAVEL.
Children and Young Peoples Services,Head of Education and Skills,Transport,230008,Contract Hire,06/04/2022,3988715-3699,"2,681.80",DAVES MINIBUSES.
Children and Young Peoples Services,Head of Education and Skills,Transport,230008,Contract Hire,06/04/2022,3988715-3700,"2,346.00",DAVES MINIBUSES.
Children and Young Peoples Services,Head of Education and Skills,Transport,230008,Contract Hire,06/04/2022,3988715-3701,"2,117.84",DAVES MINIBUSES.
Children and Young Peoples Services,Head of Education and Skills,Transport,230008,Contract Hire,06/04/2022,3988715-3702,"2,254.46",DAVES MINIBUSES.
Children and Young Peoples Services,Head of Education and Skills,Transport,230008,Contract Hire,06/04/2022,3988715-3698,"2,880.75",DAVES MINIBUSES.
Children and Young Peoples Services,Head of Education and Skills,Transport,230008,Contract Hire,06/04/2022,3988715-3703,"2,254.00",DAVES MINIBUSES.
Children and Young Peoples Services,Head of Education and Skills,Third Party Payments,440999,Other third party payments E440,06/04/2022,3988716-NEI-EXP-04-2022-010,941.16,DAYPARK LTD T/A YELLOW WELLIES.
Resources BK0010,Digital Services,Supplies and Services,342033,Computers and Communications,06/04/2022,3988717-7402802459,512.40,DELL COMPUTER CORPORATION LTD.
Neighbourhoods and Climate Change,Environmental Services,Supplies and Services,384199,Miscellaneous Expenses,06/04/2022,3988739-INV-22-0277,"4,500.00",EXPERIENCE COMMUNITY CIC.
Neighbourhoods and Climate Change,Environmental Services,Supplies and Services,384199,Miscellaneous Expenses,06/04/2022,3988739-INV-22-0279,"4,500.00",EXPERIENCE COMMUNITY CIC.
Children and Young Peoples Services,Head of Education and Skills,Transport,230008,Contract Hire,06/04/2022,3988740-MAR22-E003,"2,730.00",FAIR FARE TRAVEL (TAXIS).
Children and Young Peoples Services,Head of Education and Skills,Transport,230007,Contract Hire,06/04/2022,3988742-258,"2,277.00",FIGGY BUS (TAXI).
Children and Young Peoples Services,Head of Education and Skills,Transport,230007,Contract Hire,06/04/2022,3988742-259,850.00,FIGGY BUS (TAXI).
Neighbourhoods and Climate Change,Environmental Services,Third Party Payments,430120,Rendered by Private Contractors,06/04/2022,3988743-CTIN06675828,"7,860.24",FINNING (UK) LTD.
Neighbourhoods and Climate Change,Environmental Services,Third Party Payments,430120,Rendered by Private Contractors,06/04/2022,3988743-CTIN06675829,"8,618.85",FINNING (UK) LTD.
Children and Young Peoples Services,Head of Education and Skills,Transport,230009,Contract Hire,06/04/2022,3988745-1564,"1,227.28",FMR SILVA PITA.
Children and Young Peoples Services,Head of Education and Skills,Transport,230009,Contract Hire,06/04/2022,3988745-1565,"1,643.02",FMR SILVA PITA.
Children and Young Peoples Services,Head of Education and Skills,Transport,230006,Contract Hire,06/04/2022,3988745-1566,875.94,FMR SILVA PITA.
Children and Young Peoples Services,Head of Education and Skills,Transport,230008,Contract Hire,06/04/2022,3988745-1563,"2,116.00",FMR SILVA PITA.
Adult and Health Services,Commissioning inc Supporting People,Supplies and Services,352001,Conference Expenses,06/04/2022,3988746-FOU190965,"3,525.00",FOCUS ON UNDERNUTRITION UK LTD.
Neighbourhoods and Climate Change,Environmental Services,Third Party Payments,430100,Rendered by Private Contractors,06/04/2022,3988747-104722,"1,957.98",FR SHARROCK LTD.
Children and Young Peoples Services,Head of Education and Skills,Transport,230008,Contract Hire,06/04/2022,3988750-102822,"4,441.20",G & P JOHNSON LTD T/A NIGHTINGALE COACHES.
Children and Young Peoples Services,Head of Education and Skills,Transport,230008,Contract Hire,06/04/2022,3988750-102821,"5,290.00",G & P JOHNSON LTD T/A NIGHTINGALE COACHES.
Children and Young Peoples Services,Head of Education and Skills,Transport,230007,Contract Hire,06/04/2022,3988752-23429-4034,"3,197.00",GARNETTS LTD (COACHES).
Children and Young Peoples Services,Head of Education and Skills,Transport,230007,Contract Hire,06/04/2022,3988752-23429-4035,"3,335.00",GARNETTS LTD (COACHES).
Children and Young Peoples Services,Head of Education and Skills,Transport,230007,Contract Hire,06/04/2022,3988752-23429-4037,"6,394.00",GARNETTS LTD (COACHES).
Children and Young Peoples Services,Head of Education and Skills,Transport,230007,Contract Hire,06/04/2022,3988752-23429-4038,"3,795.00",GARNETTS LTD (COACHES).
Children and Young Peoples Services,Head of Education and Skills,Transport,230007,Contract Hire,06/04/2022,3988752-23435,"3,553.73",GARNETTS LTD (COACHES).
Children and Young Peoples Services,Head of Education and Skills,Transport,230007,Contract Hire,06/04/2022,3988752-23430-3029,"3,410.67",GARNETTS LTD (COACHES).
Children and Young Peoples Services,Head of Education and Skills,Transport,230007,Contract Hire,06/04/2022,3988752-23430-3199,"3,243.69",GARNETTS LTD (COACHES).
Children and Young Peoples Services,Head of Education and Skills,Transport,230007,Contract Hire,06/04/2022,3988752-23428-3007,"3,404.00",GARNETTS LTD (COACHES).
Children and Young Peoples Services,Head of Education and Skills,Transport,230007,Contract Hire,06/04/2022,3988752-23428-3315,"3,197.00",GARNETTS LTD (COACHES).
Children and Young Peoples Services,Head of Education and Skills,Transport,230007,Contract Hire,06/04/2022,3988752-23428-3435,"4,324.00",GARNETTS LTD (COACHES).
Children and Young Peoples Services,Head of Education and Skills,Transport,230007,Contract Hire,06/04/2022,3988752-23426,"7,314.00",GARNETTS LTD (COACHES).
Children and Young Peoples Services,Head of Education and Skills,Transport,230007,Contract Hire,06/04/2022,3988752-23427,"13,708.00",GARNETTS LTD (COACHES).
Children and Young Peoples Services,Head of Education and Skills,Transport,230007,Contract Hire,06/04/2022,3988752-23424,"5,938.83",GARNETTS LTD (COACHES).
Children and Young Peoples Services,Head of Education and Skills,Transport,230007,Contract Hire,06/04/2022,3988752-23425,"5,843.61",GARNETTS LTD (COACHES).
Children and Young Peoples Services,Head of Education and Skills,Transport,230003,Contract Hire,06/04/2022,3988752-23431-3302,"4,269.26",GARNETTS LTD (COACHES).
Children and Young Peoples Services,Head of Education and Skills,Transport,230003,Contract Hire,06/04/2022,3988752-23431-3303,"4,269.26",GARNETTS LTD (COACHES).
Children and Young Peoples Services,Head of Education and Skills,Transport,230003,Contract Hire,06/04/2022,3988752-23430-3020,"3,434.59",GARNETTS LTD (COACHES).
Children and Young Peoples Services,Head of Education and Skills,Transport,230003,Contract Hire,06/04/2022,3988752-23430-3024,"2,838.20",GARNETTS LTD (COACHES).
Children and Young Peoples Services,Head of Education and Skills,Transport,230003,Contract Hire,06/04/2022,3988752-23430-3027,"3,029.10",GARNETTS LTD (COACHES).
Children and Young Peoples Services,Head of Education and Skills,Transport,230003,Contract Hire,06/04/2022,3988752-23430-3028,"3,315.22",GARNETTS LTD (COACHES).
Children and Young Peoples Services,Head of Education and Skills,Transport,230003,Contract Hire,06/04/2022,3988752-23431-3301,"4,269.26",GARNETTS LTD (COACHES).
Children and Young Peoples Services,Head of Education and Skills,Transport,230003,Contract Hire,06/04/2022,3988752-23432-3004,"4,865.65",GARNETTS LTD (COACHES).
Children and Young Peoples Services,Head of Education and Skills,Transport,230003,Contract Hire,06/04/2022,3988752-23432-3005,"7,107.69",GARNETTS LTD (COACHES).
Children and Young Peoples Services,Head of Education and Skills,Transport,230003,Contract Hire,06/04/2022,3988752-23432-3008,"4,030.75",GARNETTS LTD (COACHES).
Children and Young Peoples Services,Head of Education and Skills,Transport,230003,Contract Hire,06/04/2022,3988752-23432-3203,"3,792.24",GARNETTS LTD (COACHES).
Children and Young Peoples Services,Head of Education and Skills,Transport,230003,Contract Hire,06/04/2022,3988752-23432-3223,"7,584.71",GARNETTS LTD (COACHES).
Children and Young Peoples Services,Head of Education and Skills,Transport,230003,Contract Hire,06/04/2022,3988752-23432-3262,"4,460.16",GARNETTS LTD (COACHES).
Children and Young Peoples Services,Head of Education and Skills,Transport,230003,Contract Hire,06/04/2022,3988752-23432-3333,"4,007.06",GARNETTS LTD (COACHES).
Children and Young Peoples Services,Head of Education and Skills,Transport,230008,Contract Hire,06/04/2022,3988752-23434,"6,074.49",GARNETTS LTD (COACHES).
Children and Young Peoples Services,Head of Education and Skills,Transport,230008,Contract Hire,06/04/2022,3988752-23433,"3,720.71",GARNETTS LTD (COACHES).
Children and Young Peoples Services,Head of Education and Skills,Transport,230007,Contract Hire,06/04/2022,3988755-5880,"1,825.56",GEM TRAVEL.
Children and Young Peoples Services,Head of Education and Skills,Transport,230003,Contract Hire,06/04/2022,3988755-5881,"4,613.80",GEM TRAVEL.
Children and Young Peoples Services,Head of Education and Skills,Transport,230008,Contract Hire,06/04/2022,3988758-025-A,"1,321.10",GMC TAXIS NORTH EAST.
Children and Young Peoples Services,Head of Education and Skills,Transport,230008,Contract Hire,06/04/2022,3988758-025-B,"1,873.43",GMC TAXIS NORTH EAST.
Non-Service Specific,Non Service Specific-Financing,Long Term Debtors,924001,Car loans,06/04/2022,3988759-78568,765.00,GO GATESHEAD LTD.
Children and Young Peoples Services,Head of Education and Skills,Transport,230007,Contract Hire,06/04/2022,3988759-78491,"9,844.00",GO GATESHEAD LTD.
Children and Young Peoples Services,Head of Education and Skills,Transport,230003,Contract Hire,06/04/2022,3988759-78492,"5,497.00",GO GATESHEAD LTD.
Children and Young Peoples Services,Head of Education and Skills,Transport,230007,Contract Hire,06/04/2022,3988762-HT615,"3,339.14",HARRY`S TAXI`S.
Children and Young Peoples Services,Head of Education and Skills,Transport,230006,Contract Hire,06/04/2022,3988762-HT613,"3,680.00",HARRY`S TAXI`S.
Children and Young Peoples Services,Head of Education and Skills,Transport,230016,Contract Hire,06/04/2022,3988762-HT611,"1,482.91",HARRY`S TAXI`S.
Children and Young Peoples Services,Head of Education and Skills,Transport,230008,Contract Hire,06/04/2022,3988762-HT616,"2,070.00",HARRY`S TAXI`S.
Children and Young Peoples Services,Head of Education and Skills,Transport,230008,Contract Hire,06/04/2022,3988762-HT614,"3,436.66",HARRY`S TAXI`S.
Neighbourhoods and Climate Change,Technical Services CM0300,Third Party Payments,430100,Rendered by Private Contractors,06/04/2022,3988767-3367,"3,217.50",HIGHWAY CONSTRUCTION SERVICES LTD.
Children and Young Peoples Services,Head of Education and Skills,Transport,230007,Contract Hire,06/04/2022,3988769-20375,"1,663.13",HODGSONS COACH OPERATORS LTD.
Children and Young Peoples Services,Head of Education and Skills,Transport,230007,Contract Hire,06/04/2022,3988769-20380,"1,716.26",HODGSONS COACH OPERATORS LTD.
Children and Young Peoples Services,Head of Education and Skills,Transport,230007,Contract Hire,06/04/2022,3988769-20377,"1,171.39",HODGSONS COACH OPERATORS LTD.
Children and Young Peoples Services,Head of Education and Skills,Transport,230007,Contract Hire,06/04/2022,3988769-20379,"1,262.24",HODGSONS COACH OPERATORS LTD.
Children and Young Peoples Services,Head of Education and Skills,Transport,230007,Contract Hire,06/04/2022,3988769-20374,786.60,HODGSONS COACH OPERATORS LTD.
Children and Young Peoples Services,Head of Education and Skills,Transport,230007,Contract Hire,06/04/2022,3988769-20378,"1,428.07",HODGSONS COACH OPERATORS LTD.
Children and Young Peoples Services,Head of Education and Skills,Transport,230007,Contract Hire,06/04/2022,3988769-20373,"1,166.79",HODGSONS COACH OPERATORS LTD.
Children and Young Peoples Services,Head of Education and Skills,Transport,230007,Contract Hire,06/04/2022,3988769-20290,761.25,HODGSONS COACH OPERATORS LTD.
Children and Young Peoples Services,Head of Education and Skills,Transport,230007,Contract Hire,06/04/2022,3988769-20366-3042,"4,047.54",HODGSONS COACH OPERATORS LTD.
Children and Young Peoples Services,Head of Education and Skills,Transport,230007,Contract Hire,06/04/2022,3988769-20366-3044,"3,821.68",HODGSONS COACH OPERATORS LTD.
Children and Young Peoples Services,Head of Education and Skills,Transport,230007,Contract Hire,06/04/2022,3988769-20367,"4,768.59",HODGSONS COACH OPERATORS LTD.
Children and Young Peoples Services,Head of Education and Skills,Transport,230007,Contract Hire,06/04/2022,3988769-20369,"2,898.00",HODGSONS COACH OPERATORS LTD.
Children and Young Peoples Services,Head of Education and Skills,Transport,230007,Contract Hire,06/04/2022,3988769-20370,"5,639.14",HODGSONS COACH OPERATORS LTD.
Children and Young Peoples Services,Head of Education and Skills,Transport,230007,Contract Hire,06/04/2022,3988769-20371,"2,235.60",HODGSONS COACH OPERATORS LTD.
Children and Young Peoples Services,Head of Education and Skills,Transport,230007,Contract Hire,06/04/2022,3988769-20372,"2,378.89",HODGSONS COACH OPERATORS LTD.
Children and Young Peoples Services,Head of Education and Skills,Transport,230007,Contract Hire,06/04/2022,3988769-20376,"2,461.69",HODGSONS COACH OPERATORS LTD.
Children and Young Peoples Services,Head of Education and Skills,Transport,230007,Contract Hire,06/04/2022,3988769-20383,"1,380.69",HODGSONS COACH OPERATORS LTD.
Children and Young Peoples Services,Head of Education and Skills,Transport,230007,Contract Hire,06/04/2022,3988769-20381,"1,186.57",HODGSONS COACH OPERATORS LTD.
Children and Young Peoples Services,Head of Education and Skills,Transport,230007,Contract Hire,06/04/2022,3988769-20382,"1,561.70",HODGSONS COACH OPERATORS LTD.
Children and Young Peoples Services,Head of Education and Skills,Transport,230004,Contract Hire,06/04/2022,3988769-20385,629.30,HODGSONS COACH OPERATORS LTD.
Children and Young Peoples Services,Head of Education and Skills,Transport,230006,Contract Hire,06/04/2022,3988769-20388-1,667.00,HODGSONS COACH OPERATORS LTD.
Children and Young Peoples Services,Head of Education and Skills,Transport,230006,Contract Hire,06/04/2022,3988769-20388-2,"1,247.00",HODGSONS COACH OPERATORS LTD.
Dedicated Schools Grant BG0015,DSG Early Years Block,Transfer Payments,510032,School Children,06/04/2022,3988772-30384,"7,199.89",HORDEN YOUTH & COMMUNITY CENTRE NURSERY.
Dedicated Schools Grant BG0015,DSG Early Years Block,Transfer Payments,510030,School Children,06/04/2022,3988772-30387,"24,508.58",HORDEN YOUTH & COMMUNITY CENTRE NURSERY.
Neighbourhoods and Climate Change,Environmental Services,Fees,901002,Professional fees 901002,06/04/2022,3988773-10051,"1,063.00",HOWARTH LITCHFIELD PARTNERSHIP LTD.
Regeneration Economy and Growth,Corporate Property and Land,Supplies and Services,304221,Equipment and Materials,06/04/2022,3988774-A38/0146561,"1,989.79",HOWDENS JOINERY LTD.
Children and Young Peoples Services,Head of Education and Skills,Transport,230008,Contract Hire,06/04/2022,3988775-1047,"2,911.80",I & R EXECUTIVE TRAVEL.
Children and Young Peoples Services,Head of Education and Skills,Transport,230008,Contract Hire,06/04/2022,3988775-1048,"2,275.16",I & R EXECUTIVE TRAVEL.
Adult and Health Services,Head of Adults,Transport,230005,Contract Hire,06/04/2022,3988775-1049,"2,265.96",I & R EXECUTIVE TRAVEL.
Adult and Health Services,Head of Adults,Transport,230005,Contract Hire,06/04/2022,3988775-1050,763.14,I & R EXECUTIVE TRAVEL.
Adult and Health Services,Head of Adults,Transport,230005,Contract Hire,06/04/2022,3988775-1052,962.12,I & R EXECUTIVE TRAVEL.
Neighbourhoods and Climate Change,Environmental Services,Supplies and Services,384199,Miscellaneous Expenses,06/04/2022,3988777-910/DUCC3949,"9,155.00",IMAGEMAKERS DESIGN & CONSULTANCY LTD.
Resources BK0010,Digital Services,Supplies and Services,342033,Computers and Communications,06/04/2022,3988782-2100183203,945.23,INSIGHT DIRECT (UK) LTD.
Children and Young Peoples Services,Head of Education and Skills,Supplies and Services,338035,Services,06/04/2022,3988783-805973922,925.00,INSTITUTE OF LEADERSHIP & MANAGEMENT (ILM).
Children and Young Peoples Services,Head of Childrens Social Care,Supplies and Services,384964,Miscellaneous Expenses,06/04/2022,3988785-ITL39742,551.54,ITL (NORTH EAST) LTD.
Neighbourhoods and Climate Change,Technical Services CM0300,Construction work A908,908105,Construction work,06/04/2022,3988789-26193,646.20,JACK COUPE & SONS LTD T/A COUPE LINE.
Children and Young Peoples Services,Head of Education and Skills,Transport,230008,Contract Hire,06/04/2022,3988790-0855,"2,610.04",JACKSON`S TAXI.
Children and Young Peoples Services,Head of Education and Skills,Transport,230008,Contract Hire,06/04/2022,3988790-0856,"2,473.42",JACKSON`S TAXI.
Children and Young Peoples Services,Head of Education and Skills,Transport,230008,Contract Hire,06/04/2022,3988790-0853,"2,934.80",JACKSON`S TAXI.
Adult and Health Services,Head of Adults,Transport,230005,Contract Hire,06/04/2022,3988790-0857,"2,915.00",JACKSON`S TAXI.
Adult and Health Services,Head of Adults,Transport,230005,Contract Hire,06/04/2022,3988790-0852,770.00,JACKSON`S TAXI.
Adult and Health Services,Head of Adults,Transport,230005,Contract Hire,06/04/2022,3988797-30-MARCH22,"1,925.10",JOHN CRAKE & SONS MINI BUSES LTD.
Adult and Health Services,Head of Adults,Transport,230005,Contract Hire,06/04/2022,3988797-31-MARCH22,630.00,JOHN CRAKE & SONS MINI BUSES LTD.
Children and Young Peoples Services,Head of Education and Skills,Transport,230016,Contract Hire,06/04/2022,3988799-M01547,"3,314.07",JOVIAL PRIVATE HIRE.
Children and Young Peoples Services,Head of Education and Skills,Transport,230008,Contract Hire,06/04/2022,3988799-M00946,"2,165.68",JOVIAL PRIVATE HIRE.
Children and Young Peoples Services,Head of Education and Skills,Transport,230008,Contract Hire,06/04/2022,3988799-M01607,"1,610.00",JOVIAL PRIVATE HIRE.
Children and Young Peoples Services,Head of Education and Skills,Transport,230008,Contract Hire,06/04/2022,3988799-M01746,"1,113.20",JOVIAL PRIVATE HIRE.
Children and Young Peoples Services,Head of Education and Skills,Transport,230008,Contract Hire,06/04/2022,3988799-N03007,"3,353.86",JOVIAL PRIVATE HIRE.
Regeneration Economy and Growth,Corporate Property and Land,Supplies and Services,304221,Equipment and Materials,06/04/2022,3988801-0213/00616627,"1,704.82",JT DOVE LTD.
Regeneration Economy and Growth,Corporate Property and Land,Supplies and Services,304221,Equipment and Materials,06/04/2022,3988801-0213/00616629,877.65,JT DOVE LTD.
Regeneration Economy and Growth,Corporate Property and Land,Supplies and Services,304221,Equipment and Materials,06/04/2022,3988801-0213/00616630,855.55,JT DOVE LTD.
Resources - C A C,LCTSS,Third Party Payments,440070,Other third party payments E440,06/04/2022,3988805-RES-04-2022-018A,"1,872.00",KELLOE PARISH COUNCIL.
Children and Young Peoples Services,Head of Education and Skills,Transport,230006,Contract Hire,06/04/2022,3988806-007-MAR22,"1,400.00",KELLY`S.
Children and Young Peoples Services,Head of Education and Skills,Transport,230008,Contract Hire,06/04/2022,3988807-A050-FEB,600.00,KENNAS CABS.
Children and Young Peoples Services,Head of Education and Skills,Transport,230008,Contract Hire,06/04/2022,3988807-E018-FEB22,525.00,KENNAS CABS.
Children and Young Peoples Services,Head of Education and Skills,Transport,230034,Contract Hire,06/04/2022,3988812-911,"3,565.00",KINGSWAY CABS LTD.
Children and Young Peoples Services,Head of Education and Skills,Transport,230034,Contract Hire,06/04/2022,3988812-919,"2,070.00",KINGSWAY CABS LTD.
Children and Young Peoples Services,Head of Education and Skills,Transport,230007,Contract Hire,06/04/2022,3988812-925,"1,150.00",KINGSWAY CABS LTD.
Children and Young Peoples Services,Head of Education and Skills,Transport,230007,Contract Hire,06/04/2022,3988812-1282-MARC22,"1,870.00",KINGSWAY CABS LTD.
Children and Young Peoples Services,Head of Education and Skills,Transport,230007,Contract Hire,06/04/2022,3988812-1,"2,970.00",KINGSWAY CABS LTD.
Children and Young Peoples Services,Head of Education and Skills,Transport,230007,Contract Hire,06/04/2022,3988812-908,"2,024.00",KINGSWAY CABS LTD.
Children and Young Peoples Services,Head of Education and Skills,Transport,230006,Contract Hire,06/04/2022,3988812-902,"2,023.12",KINGSWAY CABS LTD.
Children and Young Peoples Services,Head of Education and Skills,Transport,230006,Contract Hire,06/04/2022,3988812-921,"2,420.48",KINGSWAY CABS LTD.
Children and Young Peoples Services,Head of Education and Skills,Transport,230010,Contract Hire,06/04/2022,3988812-923-MAR22,"1,400.00",KINGSWAY CABS LTD.
Children and Young Peoples Services,Head of Education and Skills,Transport,230008,Contract Hire,06/04/2022,3988812-916,"4,255.00",KINGSWAY CABS LTD.
Children and Young Peoples Services,Head of Education and Skills,Transport,230008,Contract Hire,06/04/2022,3988812-917,"2,090.70",KINGSWAY CABS LTD.
Children and Young Peoples Services,Head of Education and Skills,Transport,230008,Contract Hire,06/04/2022,3988812-923,"3,220.00",KINGSWAY CABS LTD.
Children and Young Peoples Services,Head of Education and Skills,Transport,230008,Contract Hire,06/04/2022,3988812-A042-MAR22,"2,132.00",KINGSWAY CABS LTD.
Children and Young Peoples Services,Head of Education and Skills,Transport,230008,Contract Hire,06/04/2022,3988812-915,"3,421.02",KINGSWAY CABS LTD.
Children and Young Peoples Services,Head of Education and Skills,Transport,230008,Contract Hire,06/04/2022,3988812-924,"2,944.00",KINGSWAY CABS LTD.
Children and Young Peoples Services,Head of Education and Skills,Transport,230008,Contract Hire,06/04/2022,3988812-N025-MARCH22,"3,105.00",KINGSWAY CABS LTD.
Children and Young Peoples Services,Head of Education and Skills,Transport,230008,Contract Hire,06/04/2022,3988812-909,"4,025.00",KINGSWAY CABS LTD.
Children and Young Peoples Services,Head of Education and Skills,Transport,230008,Contract Hire,06/04/2022,3988812-922,"3,404.00",KINGSWAY CABS LTD.
Children and Young Peoples Services,Head of Education and Skills,Transport,230008,Contract Hire,06/04/2022,3988812-N095-MAR22,"2,300.00",KINGSWAY CABS LTD.
Children and Young Peoples Services,Head of Education and Skills,Transport,230008,Contract Hire,06/04/2022,3988812-903,"4,025.00",KINGSWAY CABS LTD.
Children and Young Peoples Services,Head of Education and Skills,Transport,230008,Contract Hire,06/04/2022,3988812-918,"2,530.00",KINGSWAY CABS LTD.
Children and Young Peoples Services,Head of Education and Skills,Transport,230008,Contract Hire,06/04/2022,3988812-901,"4,067.78",KINGSWAY CABS LTD.
Resources BK0010,Legal & Democratic Services,Supplies and Services,372009,Subscriptions E372,06/04/2022,3988817-LGM-7470,"1,345.00",LAWYERS IN LOCAL GOVERNMENT (LLG).
Children and Young Peoples Services,Head of Education and Skills,Transport,230007,Contract Hire,06/04/2022,3988818-30748,"3,450.00",LEE`S COACHES LTD.
Children and Young Peoples Services,Head of Education and Skills,Transport,230007,Contract Hire,06/04/2022,3988818-30744,"2,373.14",LEE`S COACHES LTD.
Children and Young Peoples Services,Head of Education and Skills,Transport,230007,Contract Hire,06/04/2022,3988818-30745,"4,507.77",LEE`S COACHES LTD.
Children and Young Peoples Services,Head of Education and Skills,Transport,230007,Contract Hire,06/04/2022,3988818-30746,"2,645.00",LEE`S COACHES LTD.
Children and Young Peoples Services,Head of Education and Skills,Transport,230007,Contract Hire,06/04/2022,3988818-30747,"2,645.00",LEE`S COACHES LTD.
Children and Young Peoples Services,Head of Education and Skills,Transport,230003,Contract Hire,06/04/2022,3988818-30743,"5,223.30",LEE`S COACHES LTD.
Children and Young Peoples Services,Head of Education and Skills,Transport,230003,Contract Hire,06/04/2022,3988818-30741,"4,710.63",LEE`S COACHES LTD.
Children and Young Peoples Services,Head of Education and Skills,Transport,230003,Contract Hire,06/04/2022,3988818-30742,"5,712.28",LEE`S COACHES LTD.
Adult and Health Services,Commissioning inc Supporting People,Third Party Payments,442002,Supporting People E442,06/04/2022,3988822-PPSP/06,"3,750.00",LET`S CONNECT (ENG) LTD.
Children and Young Peoples Services,Head of Education and Skills,Transport,230007,Contract Hire,06/04/2022,3988824-4759,"1,819.44",LINCAB TAXIS.
Children and Young Peoples Services,Head of Education and Skills,Transport,230008,Contract Hire,06/04/2022,3988824-4760,"2,899.38",LINCAB TAXIS.
Children and Young Peoples Services,Head of Education and Skills,Transport,230008,Contract Hire,06/04/2022,3988824-4762,"3,790.86",LINCAB TAXIS.
Children and Young Peoples Services,Head of Education and Skills,Transport,230008,Contract Hire,06/04/2022,3988824-4761,"3,977.85",LINCAB TAXIS.
Resources BK0010,Digital Services,Supplies and Services,344131,Telephones,06/04/2022,3988832-12652126,"31,517.00",MAINTEL EUROPE LTD.
Regeneration Economy and Growth,Corporate Property and Land,Third Party Payments,430100,Rendered by Private Contractors,06/04/2022,3988849-1884,"1,072.00",MITREPOINT LTD T/A ROOFCLAD SYSTEMS.
Regeneration Economy and Growth,Corporate Property and Land,Third Party Payments,430100,Rendered by Private Contractors,06/04/2022,3988849-1921,"1,562.00",MITREPOINT LTD T/A ROOFCLAD SYSTEMS.
Regeneration Economy and Growth,Culture Sport and Tourism,Supplies and Services,324001,Provisions E324,06/04/2022,3988850-906433306,"1,575.18",MOLSON COORS BREWING COMPANY (UK) LTD.
Children and Young Peoples Services,Head of Education and Skills,Transport,230035,Contract Hire,06/04/2022,3988871-3-MARCH22,"2,300.00",NC TAXI`S.
Regeneration Economy and Growth,Corporate Property and Land,Third Party Payments,430100,Rendered by Private Contractors,06/04/2022,3988872-36842,"1,997.00",NE & C WINDOWS & DOORS LTD.
Resources BK0010,Transactional & Customer Services,Supplies and Services,338066,Services,06/04/2022,3988873-91459804,"3,540.00",NEC SOFTWARE SOLUTIONS UK LTD.
Neighbourhoods and Climate Change,Community Protection,Supplies and Services,384540,Miscellaneous Expenses,06/04/2022,3988877-39542596,"1,109.00",NEWSQUEST (YORKSHIRE & NORTH EAST) LTD.
Children and Young Peoples Services,Head of Education and Skills,Transport,230007,Contract Hire,06/04/2022,3988883-INV-7136,"6,854.00",NORTH EAST COACHWAYS LTD.
Children and Young Peoples Services,Head of Education and Skills,Transport,230007,Contract Hire,06/04/2022,3988883-INV-7137,"2,760.00",NORTH EAST COACHWAYS LTD.
Children and Young Peoples Services,Head of Education and Skills,Transport,230007,Contract Hire,06/04/2022,3988883-INV-7138,"2,875.00",NORTH EAST COACHWAYS LTD.
Children and Young Peoples Services,Head of Education and Skills,Transport,230007,Contract Hire,06/04/2022,3988883-INV-7139,"3,197.00",NORTH EAST COACHWAYS LTD.
Children and Young Peoples Services,Head of Education and Skills,Transport,230007,Contract Hire,06/04/2022,3988883-INV-7140,"3,082.00",NORTH EAST COACHWAYS LTD.
Children and Young Peoples Services,Head of Education and Skills,Transport,230007,Contract Hire,06/04/2022,3988883-INV-7134,"3,887.00",NORTH EAST COACHWAYS LTD.
Children and Young Peoples Services,Head of Education and Skills,Transport,230007,Contract Hire,06/04/2022,3988883-INV-7135,"3,427.00",NORTH EAST COACHWAYS LTD.
Regeneration Economy and Growth,Business Durham CL0850,Supplies and Services,336005,Advertising E336,06/04/2022,3988884-INV-0035,"4,995.00",NORTH EAST TIMES MAGAZINE LTD.
Neighbourhoods and Climate Change,Technical Services CM0300,Third Party Payments,430100,Rendered by Private Contractors,06/04/2022,3988888-7611,"8,324.90",NU PHALT CONTRACTING LTD.
Regeneration Economy and Growth,Culture Sport and Tourism,Supplies and Services,332029,Printing Stationery and Gen Off Exps,06/04/2022,3988894-24146,"4,441.34",PA PROMOTIONS LTD.
Regeneration Economy and Growth,Corporate Property and Land,Supplies and Services,384199,Miscellaneous Expenses,06/04/2022,3988900-DCC002,"1,040.00",PEARSONS DEVELOPMENT & PROPERTY SERVICES LIMITED.
Children and Young Peoples Services,Head of Education and Skills,Transport,230034,Contract Hire,06/04/2022,3988904-3422-MARCH22,"1,192.55",PETER`S TAXIS.
Children and Young Peoples Services,Head of Education and Skills,Transport,230034,Contract Hire,06/04/2022,3988904-3482-MARCH22,"1,760.00",PETER`S TAXIS.
Children and Young Peoples Services,Head of Education and Skills,Transport,230034,Contract Hire,06/04/2022,3988904-5294-MARCH22,950.36,PETER`S TAXIS.
Children and Young Peoples Services,Head of Education and Skills,Transport,230007,Contract Hire,06/04/2022,3988904-2088-MARCH,"1,150.00",PETER`S TAXIS.
Children and Young Peoples Services,Head of Education and Skills,Transport,230006,Contract Hire,06/04/2022,3988904-F789-MARCH22,"1,900.00",PETER`S TAXIS.
Children and Young Peoples Services,Head of Education and Skills,Supplies and Services,338099,Services,06/04/2022,3988908-900956089,"1,300.01",PORTAKABIN LTD.
Resources BK0010,Digital Services,Supplies and Services,332029,Printing Stationery and Gen Off Exps,06/04/2022,3988910-703487,"1,100.00",POTTS PRINTERS LTD.
Resources BK0010,Digital Services,Supplies and Services,332029,Printing Stationery and Gen Off Exps,06/04/2022,3988910-703716,745.00,POTTS PRINTERS LTD.
Neighbourhoods and Climate Change,Technical Services CM0300,Third Party Payments,430100,Rendered by Private Contractors,06/04/2022,3988916-13892,"3,507.84",QUANTUM POWER CONNECTIONS LTD.
Neighbourhoods and Climate Change,Technical Services CM0300,Third Party Payments,430100,Rendered by Private Contractors,06/04/2022,3988916-13914,"14,550.35",QUANTUM POWER CONNECTIONS LTD.
Neighbourhoods and Climate Change,Technical Services CM0300,Third Party Payments,430100,Rendered by Private Contractors,06/04/2022,3988916-13922,504.96,QUANTUM POWER CONNECTIONS LTD.
Neighbourhoods and Climate Change,Technical Services CM0300,Third Party Payments,430100,Rendered by Private Contractors,06/04/2022,3988916-13941,"14,550.35",QUANTUM POWER CONNECTIONS LTD.
Neighbourhoods and Climate Change,Technical Services CM0300,Third Party Payments,430100,Rendered by Private Contractors,06/04/2022,3988916-13951,832.48,QUANTUM POWER CONNECTIONS LTD.
Neighbourhoods and Climate Change,Technical Services CM0300,Third Party Payments,430100,Rendered by Private Contractors,06/04/2022,3988916-13967,"22,057.67",QUANTUM POWER CONNECTIONS LTD.
Neighbourhoods and Climate Change,Technical Services CM0300,Third Party Payments,430100,Rendered by Private Contractors,06/04/2022,3988916-13985,997.22,QUANTUM POWER CONNECTIONS LTD.
Neighbourhoods and Climate Change,Technical Services CM0300,Third Party Payments,430100,Rendered by Private Contractors,06/04/2022,3988916-13994,"1,753.92",QUANTUM POWER CONNECTIONS LTD.
Neighbourhoods and Climate Change,Technical Services CM0300,Third Party Payments,430100,Rendered by Private Contractors,06/04/2022,3988916-13995,"3,312.96",QUANTUM POWER CONNECTIONS LTD.
Children and Young Peoples Services,Head of Education and Skills,Transport,230007,Contract Hire,06/04/2022,3988921-7-4062,"1,722.70",RAYNERS COACHES.
Children and Young Peoples Services,Head of Education and Skills,Transport,230007,Contract Hire,06/04/2022,3988921-7-4036,"2,875.00",RAYNERS COACHES.
Children and Young Peoples Services,Head of Education and Skills,Transport,230007,Contract Hire,06/04/2022,3988921-7/2022,"1,817.00",RAYNERS COACHES.
Children and Young Peoples Services,Head of Education and Skills,Transport,230007,Contract Hire,06/04/2022,3988921-7-4004,"1,771.00",RAYNERS COACHES.
Children and Young Peoples Services,Head of Education and Skills,Transport,230007,Contract Hire,06/04/2022,3988921-7-4005,"4,818.50",RAYNERS COACHES.
Children and Young Peoples Services,Head of Education and Skills,Transport,230008,Contract Hire,06/04/2022,3988921-7-M008,"3,222.75",RAYNERS COACHES.
Children and Young Peoples Services,Head of Education and Skills,Transport,230008,Contract Hire,06/04/2022,3988921-7-W042,"2,210.76",RAYNERS COACHES.
Adult and Health Services,Head of Adults,Transport,230005,Contract Hire,06/04/2022,3988924-RDS076,"1,104.00",RDS TAXI.
Children and Young Peoples Services,Head of Education and Skills,Transport,230016,Contract Hire,06/04/2022,3988635-0138,"3,220.00",REDACTED - PAYMENT TO INDIVIDUAL
Children and Young Peoples Services,Head of Education and Skills,Transport,230006,Contract Hire,06/04/2022,3988636-00395,"3,565.69",REDACTED - PAYMENT TO INDIVIDUAL
Children and Young Peoples Services,Head of Education and Skills,Transport,230012,Contract Hire,06/04/2022,3988636-00394,"3,939.44",REDACTED - PAYMENT TO INDIVIDUAL
Children and Young Peoples Services,Head of Education and Skills,Transport,230008,Contract Hire,06/04/2022,3988636-00398,"2,160.00",REDACTED - PAYMENT TO INDIVIDUAL
Children and Young Peoples Services,Head of Education and Skills,Transport,230008,Contract Hire,06/04/2022,3988636-00391,"4,140.00",REDACTED - PAYMENT TO INDIVIDUAL
Adult and Health Services,Head of Adults,Transport,230005,Contract Hire,06/04/2022,3988636-00390,"1,840.00",REDACTED - PAYMENT TO INDIVIDUAL
Adult and Health Services,Head of Adults,Transport,230005,Contract Hire,06/04/2022,3988690-EAS199-MAR22,"1,150.00",REDACTED - PAYMENT TO INDIVIDUAL
Children and Young Peoples Services,Head of Education and Skills,Transport,230007,Contract Hire,06/04/2022,3988692-47416,"3,450.00",REDACTED - PAYMENT TO INDIVIDUAL
Children and Young Peoples Services,Head of Education and Skills,Transport,230007,Contract Hire,06/04/2022,3988692-47419-4297,"3,427.00",REDACTED - PAYMENT TO INDIVIDUAL
Children and Young Peoples Services,Head of Education and Skills,Transport,230007,Contract Hire,06/04/2022,3988692-47420,"5,750.00",REDACTED - PAYMENT TO INDIVIDUAL
Children and Young Peoples Services,Head of Education and Skills,Transport,230003,Contract Hire,06/04/2022,3988692-47417,"3,816.16",REDACTED - PAYMENT TO INDIVIDUAL
Children and Young Peoples Services,Head of Education and Skills,Transport,230003,Contract Hire,06/04/2022,3988692-47418-3335,"7,131.38",REDACTED - PAYMENT TO INDIVIDUAL
Children and Young Peoples Services,Head of Education and Skills,Transport,230003,Contract Hire,06/04/2022,3988692-47421,"3,565.00",REDACTED - PAYMENT TO INDIVIDUAL
Children and Young Peoples Services,Head of Education and Skills,Transport,230003,Contract Hire,06/04/2022,3988692-47422,"3,680.00",REDACTED - PAYMENT TO INDIVIDUAL
Children and Young Peoples Services,Head of Education and Skills,Transport,230003,Contract Hire,06/04/2022,3988692-47423,"3,795.00",REDACTED - PAYMENT TO INDIVIDUAL
Children and Young Peoples Services,Head of Education and Skills,Transport,230009,Contract Hire,06/04/2022,3988751-20/22,"2,181.78",REDACTED - PAYMENT TO INDIVIDUAL
Children and Young Peoples Services,Head of Education and Skills,Transport,230006,Contract Hire,06/04/2022,3988751-21,"3,913.95",REDACTED - PAYMENT TO INDIVIDUAL
Children and Young Peoples Services,Head of Education and Skills,Transport,230034,Contract Hire,06/04/2022,3988753-SM007,"1,656.00",REDACTED - PAYMENT TO INDIVIDUAL
Children and Young Peoples Services,Head of Education and Skills,Transport,230006,Contract Hire,06/04/2022,3988756-TT-PCP2203,"1,251.60",REDACTED - PAYMENT TO INDIVIDUAL
Children and Young Peoples Services,Head of Education and Skills,Transport,230008,Contract Hire,06/04/2022,3988756-TT-OC2203,"1,910.84",REDACTED - PAYMENT TO INDIVIDUAL
Children and Young Peoples Services,Head of Education and Skills,Transport,230008,Contract Hire,06/04/2022,3988756-TT-OM2203,"2,377.74",REDACTED - PAYMENT TO INDIVIDUAL
Children and Young Peoples Services,Head of Education and Skills,Transport,230006,Contract Hire,06/04/2022,3988757-12C-MARCH22,"3,009.00",REDACTED - PAYMENT TO INDIVIDUAL
Children and Young Peoples Services,Head of Education and Skills,Transport,230006,Contract Hire,06/04/2022,3988761-03-MAR22,"1,106.00",REDACTED - PAYMENT TO INDIVIDUAL
Children and Young Peoples Services,Head of Education and Skills,Transport,230006,Contract Hire,06/04/2022,3988761-07-MAR22,"1,504.80",REDACTED - PAYMENT TO INDIVIDUAL
Children and Young Peoples Services,Head of Education and Skills,Transport,230006,Contract Hire,06/04/2022,3988761-61,"2,269.87",REDACTED - PAYMENT TO INDIVIDUAL
Children and Young Peoples Services,Head of Education and Skills,Transport,230009,Contract Hire,06/04/2022,3988776-7370-MAR22,"1,155.22",REDACTED - PAYMENT TO INDIVIDUAL
Children and Young Peoples Services,Head of Education and Skills,Transport,230009,Contract Hire,06/04/2022,3988776-G030-MAR22,"1,132.00",REDACTED - PAYMENT TO INDIVIDUAL
Children and Young Peoples Services,Head of Education and Skills,Transport,230006,Contract Hire,06/04/2022,3988776-F877-MAR22,"1,292.40",REDACTED - PAYMENT TO INDIVIDUAL
Children and Young Peoples Services,Head of Education and Skills,Transport,230008,Contract Hire,06/04/2022,3988776-N084-MAR22,"3,551.35",REDACTED - PAYMENT TO INDIVIDUAL
Adult and Health Services,Head of Adults,Transport,230005,Contract Hire,06/04/2022,3988776-CLS078-MAR22,996.09,REDACTED - PAYMENT TO INDIVIDUAL
Children and Young Peoples Services,Head of Education and Skills,Transport,230010,Contract Hire,06/04/2022,3988791-76-MARCH22,"4,150.47",REDACTED - PAYMENT TO INDIVIDUAL
Children and Young Peoples Services,Head of Education and Skills,Transport,230016,Contract Hire,06/04/2022,3988791-72-MARCH22,"3,780.00",REDACTED - PAYMENT TO INDIVIDUAL
Children and Young Peoples Services,Head of Education and Skills,Transport,230008,Contract Hire,06/04/2022,3988791-71-MARCH22,"3,680.00",REDACTED - PAYMENT TO INDIVIDUAL
Children and Young Peoples Services,Head of Education and Skills,Transport,230008,Contract Hire,06/04/2022,3988791-73-MARCH22,"2,300.00",REDACTED - PAYMENT TO INDIVIDUAL
Children and Young Peoples Services,Head of Education and Skills,Transport,230008,Contract Hire,06/04/2022,3988791-76-A043,"1,150.00",REDACTED - PAYMENT TO INDIVIDUAL
Children and Young Peoples Services,Head of Education and Skills,Transport,230008,Contract Hire,06/04/2022,3988791-74-MARCH22,"3,914.88",REDACTED - PAYMENT TO INDIVIDUAL
Children and Young Peoples Services,Head of Education and Skills,Transport,230008,Contract Hire,06/04/2022,3988791-75-MARCH22,"4,370.00",REDACTED - PAYMENT TO INDIVIDUAL
Children and Young Peoples Services,Head of Education and Skills,Transport,230008,Contract Hire,06/04/2022,3988791-77,"4,370.00",REDACTED - PAYMENT TO INDIVIDUAL
Children and Young Peoples Services,Head of Education and Skills,Transport,230008,Contract Hire,06/04/2022,3988791-70-MARCH22,"1,840.00",REDACTED - PAYMENT TO INDIVIDUAL
Children and Young Peoples Services,Head of Education and Skills,Transport,230006,Contract Hire,06/04/2022,3988798-259,"1,288.00",REDACTED - PAYMENT TO INDIVIDUAL
Children and Young Peoples Services,Head of Education and Skills,Transport,230008,Contract Hire,06/04/2022,3988804-A026/03,"3,078.68",REDACTED - PAYMENT TO INDIVIDUAL
Children and Young Peoples Services,Head of Education and Skills,Transport,230008,Contract Hire,06/04/2022,3988804-S020/03,"3,404.92",REDACTED - PAYMENT TO INDIVIDUAL
Children and Young Peoples Services,Head of Education and Skills,Transport,230008,Contract Hire,06/04/2022,3988804-S103/03,"1,840.00",REDACTED - PAYMENT TO INDIVIDUAL
Children and Young Peoples Services,Head of Education and Skills,Transport,230009,Contract Hire,06/04/2022,3988808-010322,"1,806.88",REDACTED - PAYMENT TO INDIVIDUAL
Children and Young Peoples Services,Head of Education and Skills,Transport,230007,Contract Hire,06/04/2022,3988810-CTD0007/22,"1,725.00",REDACTED - PAYMENT TO INDIVIDUAL
Children and Young Peoples Services,Head of Education and Skills,Transport,230013,Contract Hire,06/04/2022,3988815-006-MAR22,"1,472.00",REDACTED - PAYMENT TO INDIVIDUAL
Children and Young Peoples Services,Head of Education and Skills,Transport,230008,Contract Hire,06/04/2022,3988823-0072,"2,384.00",REDACTED - PAYMENT TO INDIVIDUAL
Children and Young Peoples Services,Head of Education and Skills,Transport,230008,Contract Hire,06/04/2022,3988823-0071,"2,760.00",REDACTED - PAYMENT TO INDIVIDUAL
Children and Young Peoples Services,Head of Education and Skills,Transport,230008,Contract Hire,06/04/2022,3988833-7-MAR22,"2,760.00",REDACTED - PAYMENT TO INDIVIDUAL
Regeneration Economy and Growth,Culture Sport and Tourism,Supplies and Services,304337,Equipment and Materials,06/04/2022,3988835-4236052107A,"1,357.83",REDACTED - PAYMENT TO INDIVIDUAL
Children and Young Peoples Services,Head of Education and Skills,Transport,230007,Contract Hire,06/04/2022,3988837-310322,759.00,REDACTED - PAYMENT TO INDIVIDUAL
Children and Young Peoples Services,Head of Education and Skills,Transport,230007,Contract Hire,06/04/2022,3988837-310322-4311,690.00,REDACTED - PAYMENT TO INDIVIDUAL
Children and Young Peoples Services,Head of Education and Skills,Transport,230007,Contract Hire,06/04/2022,3988837-310322-4485,"1,179.67",REDACTED - PAYMENT TO INDIVIDUAL
Children and Young Peoples Services,Head of Education and Skills,Transport,230008,Contract Hire,06/04/2022,3988838-0087,"2,829.00",REDACTED - PAYMENT TO INDIVIDUAL
Children and Young Peoples Services,Head of Education and Skills,Transport,230008,Contract Hire,06/04/2022,3988838-0088,"2,835.67",REDACTED - PAYMENT TO INDIVIDUAL
Children and Young Peoples Services,Head of Education and Skills,Transport,230008,Contract Hire,06/04/2022,3988838-0091,"1,380.00",REDACTED - PAYMENT TO INDIVIDUAL
Children and Young Peoples Services,Head of Education and Skills,Transport,230008,Contract Hire,06/04/2022,3988844-A033/0322,"2,600.00",REDACTED - PAYMENT TO INDIVIDUAL
Children and Young Peoples Services,Head of Education and Skills,Transport,230006,Contract Hire,06/04/2022,3988845-232,"1,496.00",REDACTED - PAYMENT TO INDIVIDUAL
Children and Young Peoples Services,Head of Education and Skills,Transport,230006,Contract Hire,06/04/2022,3988845-233,686.00,REDACTED - PAYMENT TO INDIVIDUAL
Children and Young Peoples Services,Head of Education and Skills,Transport,230009,Contract Hire,06/04/2022,3988846-0620,610.42,REDACTED - PAYMENT TO INDIVIDUAL
Children and Young Peoples Services,Head of Education and Skills,Supplies and Services,338027,Services,06/04/2022,3988848-8-2022,"2,927.50",REDACTED - PAYMENT TO INDIVIDUAL
Children and Young Peoples Services,Head of Education and Skills,Transport,230034,Contract Hire,06/04/2022,3988852-AT261,"1,080.00",REDACTED - PAYMENT TO INDIVIDUAL
Children and Young Peoples Services,Head of Education and Skills,Transport,230009,Contract Hire,06/04/2022,3988854-FRAM1-03-22,"1,669.92",REDACTED - PAYMENT TO INDIVIDUAL
Children and Young Peoples Services,Head of Education and Skills,Transport,230008,Contract Hire,06/04/2022,3988854-CROFT1-3-22,"3,703.68",REDACTED - PAYMENT TO INDIVIDUAL
Children and Young Peoples Services,Head of Education and Skills,Transport,230008,Contract Hire,06/04/2022,3988854-OAK2-03-22,"2,758.85",REDACTED - PAYMENT TO INDIVIDUAL
Children and Young Peoples Services,Head of Education and Skills,Transport,230008,Contract Hire,06/04/2022,3988854-THPK03-22,"2,365.55",REDACTED - PAYMENT TO INDIVIDUAL
Children and Young Peoples Services,Head of Education and Skills,Transport,230012,Contract Hire,06/04/2022,3988855-E054-MAR22,"2,430.70",REDACTED - PAYMENT TO INDIVIDUAL
Children and Young Peoples Services,Head of Education and Skills,Transport,230007,Contract Hire,06/04/2022,3988856-5428-MAR22,"1,840.00",REDACTED - PAYMENT TO INDIVIDUAL
Children and Young Peoples Services,Head of Education and Skills,Transport,230006,Contract Hire,06/04/2022,3988856-E217-MAR22,"2,990.00",REDACTED - PAYMENT TO INDIVIDUAL
Children and Young Peoples Services,Head of Education and Skills,Transport,230010,Contract Hire,06/04/2022,3988856-PL013-MAR22,"2,850.00",REDACTED - PAYMENT TO INDIVIDUAL
Children and Young Peoples Services,Head of Education and Skills,Transport,230012,Contract Hire,06/04/2022,3988856-E037-MAR22,"1,764.10",REDACTED - PAYMENT TO INDIVIDUAL
Children and Young Peoples Services,Head of Education and Skills,Transport,230012,Contract Hire,06/04/2022,3988856-A015-MAR22,775.00,REDACTED - PAYMENT TO INDIVIDUAL
Children and Young Peoples Services,Head of Education and Skills,Transport,230008,Contract Hire,06/04/2022,3988856-A046-MAR22,"3,910.00",REDACTED - PAYMENT TO INDIVIDUAL
Children and Young Peoples Services,Head of Education and Skills,Transport,230008,Contract Hire,06/04/2022,3988856-M020-MAR22,"2,708.16",REDACTED - PAYMENT TO INDIVIDUAL
Children and Young Peoples Services,Head of Education and Skills,Transport,230008,Contract Hire,06/04/2022,3988856-E049-MAR22,"3,816.24",REDACTED - PAYMENT TO INDIVIDUAL
Children and Young Peoples Services,Head of Education and Skills,Transport,230006,Contract Hire,06/04/2022,3988857-PEC07,"1,060.80",REDACTED - PAYMENT TO INDIVIDUAL
Children and Young Peoples Services,Head of Education and Skills,Transport,230034,Contract Hire,06/04/2022,3988858-KDK/MAR22,"1,736.73",REDACTED - PAYMENT TO INDIVIDUAL
Children and Young Peoples Services,Head of Education and Skills,Transport,230009,Contract Hire,06/04/2022,3988858-KDK/MAR22-4390,"1,363.67",REDACTED - PAYMENT TO INDIVIDUAL
Children and Young Peoples Services,Head of Education and Skills,Transport,230006,Contract Hire,06/04/2022,3988859-07-MARCH22,"1,710.00",REDACTED - PAYMENT TO INDIVIDUAL
Children and Young Peoples Services,Head of Education and Skills,Transport,230034,Contract Hire,06/04/2022,3988860-4470-MARCH22,"1,610.00",REDACTED - PAYMENT TO INDIVIDUAL
Children and Young Peoples Services,Head of Education and Skills,Transport,230034,Contract Hire,06/04/2022,3988860-4423-MARCH22,"2,484.82",REDACTED - PAYMENT TO INDIVIDUAL
Dedicated Schools Grant BG0015,DSG High Needs Block,Transport,230011,Contract Hire,06/04/2022,3988860-9003-MARCH22,638.40,REDACTED - PAYMENT TO INDIVIDUAL
Children and Young Peoples Services,Head of Education and Skills,Transport,230009,Contract Hire,06/04/2022,3988861-268,"1,818.84",REDACTED - PAYMENT TO INDIVIDUAL
Children and Young Peoples Services,Head of Education and Skills,Transport,230012,Contract Hire,06/04/2022,3988861-263,"2,070.00",REDACTED - PAYMENT TO INDIVIDUAL
Children and Young Peoples Services,Head of Education and Skills,Transport,230012,Contract Hire,06/04/2022,3988861-262,"3,961.65",REDACTED - PAYMENT TO INDIVIDUAL
Children and Young Peoples Services,Head of Education and Skills,Transport,230008,Contract Hire,06/04/2022,3988861-266,"2,254.00",REDACTED - PAYMENT TO INDIVIDUAL
Children and Young Peoples Services,Head of Education and Skills,Transport,230008,Contract Hire,06/04/2022,3988861-261,"2,328.29",REDACTED - PAYMENT TO INDIVIDUAL
Children and Young Peoples Services,Head of Education and Skills,Transport,230008,Contract Hire,06/04/2022,3988861-264,"2,636.26",REDACTED - PAYMENT TO INDIVIDUAL
Children and Young Peoples Services,Head of Education and Skills,Transport,230008,Contract Hire,06/04/2022,3988861-267,"2,108.64",REDACTED - PAYMENT TO INDIVIDUAL
Children and Young Peoples Services,Head of Education and Skills,Transport,230008,Contract Hire,06/04/2022,3988861-260,"4,065.48",REDACTED - PAYMENT TO INDIVIDUAL
Children and Young Peoples Services,Head of Education and Skills,Transport,230008,Contract Hire,06/04/2022,3988861-265,"3,450.00",REDACTED - PAYMENT TO INDIVIDUAL
Adult and Health Services,Head of Adults,Transport,230005,Contract Hire,06/04/2022,3988861-269,720.00,REDACTED - PAYMENT TO INDIVIDUAL
Adult and Health Services,Head of Adults,Transport,230005,Contract Hire,06/04/2022,3988861-270,882.00,REDACTED - PAYMENT TO INDIVIDUAL
Children and Young Peoples Services,Head of Education and Skills,Transport,230006,Contract Hire,06/04/2022,3988862-066,"1,267.00",REDACTED - PAYMENT TO INDIVIDUAL
Children and Young Peoples Services,Head of Education and Skills,Transport,230008,Contract Hire,06/04/2022,3988862-067,"2,760.00",REDACTED - PAYMENT TO INDIVIDUAL
Children and Young Peoples Services,Head of Education and Skills,Transport,230008,Contract Hire,06/04/2022,3988862-068,"2,230.00",REDACTED - PAYMENT TO INDIVIDUAL
Children and Young Peoples Services,Head of Education and Skills,Transport,230008,Contract Hire,06/04/2022,3988862-0065,"3,762.50",REDACTED - PAYMENT TO INDIVIDUAL
Regeneration Economy and Growth,Transport and Contracted Services,Supplies and Services,384199,Miscellaneous Expenses,06/04/2022,3988863-DRS/DCC/MAR22/BAB,"1,077.50",REDACTED - PAYMENT TO INDIVIDUAL
Children and Young Peoples Services,Head of Education and Skills,Transport,230008,Contract Hire,06/04/2022,3988864-36B,"2,024.23",REDACTED - PAYMENT TO INDIVIDUAL
Children and Young Peoples Services,Head of Education and Skills,Transport,230007,Contract Hire,06/04/2022,3988865-129,"1,840.00",REDACTED - PAYMENT TO INDIVIDUAL
Children and Young Peoples Services,Head of Education and Skills,Transport,230009,Contract Hire,06/04/2022,3988865-126,"3,040.00",REDACTED - PAYMENT TO INDIVIDUAL
Children and Young Peoples Services,Head of Education and Skills,Transport,230006,Contract Hire,06/04/2022,3988865-131,980.00,REDACTED - PAYMENT TO INDIVIDUAL
Children and Young Peoples Services,Head of Education and Skills,Transport,230008,Contract Hire,06/04/2022,3988865-130,"1,840.00",REDACTED - PAYMENT TO INDIVIDUAL
Children and Young Peoples Services,Head of Education and Skills,Transport,230007,Contract Hire,06/04/2022,3988866-7-21/22,805.00,REDACTED - PAYMENT TO INDIVIDUAL
Children and Young Peoples Services,Head of Education and Skills,Transport,230010,Contract Hire,06/04/2022,3988866-7-21/22-B011,"2,747.35",REDACTED - PAYMENT TO INDIVIDUAL
Children and Young Peoples Services,Head of Education and Skills,Transport,230006,Contract Hire,06/04/2022,3988867-CBC07,893.45,REDACTED - PAYMENT TO INDIVIDUAL
Children and Young Peoples Services,Head of Education and Skills,Transport,230012,Contract Hire,06/04/2022,3988867-TNB26,"1,065.95",REDACTED - PAYMENT TO INDIVIDUAL
Children and Young Peoples Services,Head of Education and Skills,Transport,230035,Contract Hire,06/04/2022,3988868-311228,"2,508.38",REDACTED - PAYMENT TO INDIVIDUAL
Children and Young Peoples Services,Head of Education and Skills,Transport,230007,Contract Hire,06/04/2022,3988868-311227,"1,150.00",REDACTED - PAYMENT TO INDIVIDUAL
Children and Young Peoples Services,Head of Education and Skills,Transport,230010,Contract Hire,06/04/2022,3988868-311226,"2,456.96",REDACTED - PAYMENT TO INDIVIDUAL
Children and Young Peoples Services,Head of Education and Skills,Transport,230007,Contract Hire,06/04/2022,3988876-278-5421,"2,445.59",REDACTED - PAYMENT TO INDIVIDUAL
Children and Young Peoples Services,Head of Education and Skills,Transport,230006,Contract Hire,06/04/2022,3988897-N061-MAR22,"1,610.00",REDACTED - PAYMENT TO INDIVIDUAL
Children and Young Peoples Services,Head of Education and Skills,Transport,230009,Contract Hire,06/04/2022,3988903-7381-MARCH22,"2,047.00",REDACTED - PAYMENT TO INDIVIDUAL
Children and Young Peoples Services,Head of Education and Skills,Transport,230006,Contract Hire,06/04/2022,3988903-F180-MARCH,"1,820.00",REDACTED - PAYMENT TO INDIVIDUAL
Children and Young Peoples Services,Head of Education and Skills,Transport,230008,Contract Hire,06/04/2022,3988903-A028-MARCH,"4,692.00",REDACTED - PAYMENT TO INDIVIDUAL
Children and Young Peoples Services,Head of Education and Skills,Transport,230008,Contract Hire,06/04/2022,3988903-A059-MARCH,"4,947.00",REDACTED - PAYMENT TO INDIVIDUAL
Children and Young Peoples Services,Head of Education and Skills,Transport,230008,Contract Hire,06/04/2022,3988903-A191-MARCH22,"5,175.00",REDACTED - PAYMENT TO INDIVIDUAL
Children and Young Peoples Services,Head of Education and Skills,Transport,230008,Contract Hire,06/04/2022,3988903-N097-MARCH,"4,266.42",REDACTED - PAYMENT TO INDIVIDUAL
Children and Young Peoples Services,Head of Education and Skills,Transport,230008,Contract Hire,06/04/2022,3988903-E007-MAR22,"2,254.00",REDACTED - PAYMENT TO INDIVIDUAL
Children and Young Peoples Services,Head of Education and Skills,Transport,230008,Contract Hire,06/04/2022,3988903-E014-MAR22,"2,651.90",REDACTED - PAYMENT TO INDIVIDUAL
Children and Young Peoples Services,Head of Education and Skills,Transport,230008,Contract Hire,06/04/2022,3988903-E025-MAR22,"2,792.20",REDACTED - PAYMENT TO INDIVIDUAL
Children and Young Peoples Services,Head of Education and Skills,Transport,230008,Contract Hire,06/04/2022,3988903-E051-MAR22,"3,105.00",REDACTED - PAYMENT TO INDIVIDUAL
Children and Young Peoples Services,Head of Education and Skills,Transport,230008,Contract Hire,06/04/2022,3988903-E061-MARCH,"4,423.36",REDACTED - PAYMENT TO INDIVIDUAL
Children and Young Peoples Services,Head of Education and Skills,Transport,230008,Contract Hire,06/04/2022,3988903-M066-MAR22,"2,507.00",REDACTED - PAYMENT TO INDIVIDUAL
Children and Young Peoples Services,Head of Education and Skills,Transport,230008,Contract Hire,06/04/2022,3988903-N053-MAR22,"1,456.00",REDACTED - PAYMENT TO INDIVIDUAL
Adult and Health Services,Head of Adults,Transport,230005,Contract Hire,06/04/2022,3988903-SLD011-MAR,"1,933.26",REDACTED - PAYMENT TO INDIVIDUAL
Children and Young Peoples Services,Head of Education and Skills,Transport,230034,Contract Hire,06/04/2022,3988901-106,"2,110.48",REDACTED - PAYMENT TO INDIVIDUAL
Children and Young Peoples Services,Head of Education and Skills,Transport,230007,Contract Hire,06/04/2022,3988901-108,874.00,REDACTED - PAYMENT TO INDIVIDUAL
Children and Young Peoples Services,Head of Education and Skills,Transport,230007,Contract Hire,06/04/2022,3988901-109,"1,472.00",REDACTED - PAYMENT TO INDIVIDUAL
Children and Young Peoples Services,Head of Education and Skills,Transport,230007,Contract Hire,06/04/2022,3988901-107,"1,012.00",REDACTED - PAYMENT TO INDIVIDUAL
Children and Young Peoples Services,Head of Education and Skills,Transport,230007,Contract Hire,06/04/2022,3988901-111,"1,178.52",REDACTED - PAYMENT TO INDIVIDUAL
Children and Young Peoples Services,Head of Education and Skills,Transport,230008,Contract Hire,06/04/2022,3988901-110,"2,415.00",REDACTED - PAYMENT TO INDIVIDUAL
